{"text_format":"1","workbook":"xlsx","n_sheets":7,"sheets":["Info","Trial","Instructions","Logbook","Clients","Vehicles","Form"],"not_rendered":{"charts":0,"images":2,"macros":1,"external_links":0,"defined_names":23,"comments":0,"pivot_tables":0},"unopened":[],"bounds":{"document_bytes":16777216,"sheet_cells":100000,"rows_first":2000,"rows_last":500,"rows_between":2000,"halvings":0,"cell_chars":16384,"cell_head_chars":4096},"cells_cut":0,"cells_raw":0,"read":"whole","date_system":"1900"}

{"sheet":"Info","index":0,"n_rows":0,"n_cols":0,"rows_kept":0,"cut":false,"hidden":false,"merged":[]}

{"sheet":"Trial","index":1,"n_rows":0,"n_cols":0,"rows_kept":0,"cut":false,"hidden":true,"merged":[]}

{"sheet":"Instructions","index":2,"n_rows":141,"n_cols":1,"rows_kept":141,"cut":false,"hidden":true,"merged":[]}
["Excel Skills | Vehicle Logbook Template"]
["Instructions"]
["www.excel-skills.com"]
[]
["This unique template enables users to compile a complete vehicle logbook for all business and private travel. The template accommodates multiple vehicles and can also be used to calculate travel charges for invoicing to clients. The template is suitable for individuals who need to compile a vehicle logbook for income tax purposes and for businesses that need to manage a fleet of vehicles, calculate amounts that need to be charged to clients, manage pool cars and analyse business & private use of vehicles."]
[]
["The template includes the following sheets:"]
["Logbook - this sheet can be used to compile a comprehensive vehicle logbook for multiple vehicles. The vehicle registration number and client code selections are based on the contents of the Vehicles and Clients sheets. The travel distance is calculated based on the opening & closing odometer readings and is compared to the standard distance for the selected client which is defined on the Clients sheet."]
["Clients - create client codes for all clients on this sheet and enter a client name & standard travel distance. The calculations on this sheet can be used to calculate the amounts that need to be charged to clients based on any user defined date range & vehicle selection. The sheet also contains calculations which can be used to analyse the travel that is charged to clients on a monthly basis."]
["Vehicles - add vehicle registration numbers for all vehicles and enter a vehicle description. The calculations on this sheet can be used to calculate the business & private mileage of each vehicle based on any user defined date range & client selection. The sheet also contains a monthly analysis of the total mileage, business travel % and number of business trips over a three month period."]
["Form - this sheet contains a form which can be printed and supplied to all drivers in order to record all business & private trip details. The trip details that are recorded on these forms can then be entered on the Logbook sheet in order to compile a comprehensive logbook for each vehicle."]
[]
["Vehicle Logbook Details"]
[]
["All business & private trip details for each of the vehicles that are included in this template need to be recorded on the Logbook sheet. All the columns with yellow column headings require user input while the columns with light blue column headings contain formulas which are automatically copied for all the new rows that are added to this sheet."]
[]
["Note: The contents on the Logbook sheet have been included in an Excel data table. All the columns on the Logbook sheet with yellow column headings require user input. The columns with light blue column headings contain formulas that are automatically copied for all new entries that are added to the table. Entries can be added to the table by simply entering a travel date in the first empty cell in column A - the table will be extended automatically to include the new entry."]
[]
["The Logbook sheet contains the following user input columns (columns with yellow column headings):"]
["Travel Date - enter the date of the trip in this column. All dates must be entered in accordance with the regional date settings that are specified in your System Control Panel."]
["Travel Time - enter the time of the trip in this column. All times must be entered in accordance with the regional time settings that are specified in your System Control Panel."]
["Form Number - enter the form number of the printed form which was used to record all the trip details. If forms are printed with sequential form numbers, the sequence of the form numbers can be checked in order to ensure that all forms have been recorded on the Logbook sheet."]
["Vehicle Reg Number - select the vehicle registration number from the list box in this column. The list box includes all the vehicles that have been added to the Vehicles sheet. New vehicles must therefore be added to the Vehicles sheet before the registration number will be available for selection on this sheet."]
["Odometer Opening - enter the odometer reading at the start of the trip in this column."]
["Odometer Closing - enter the odometer reading at the end of the trip in this column."]
["Travel Type - select either \"Business\" or \"Private\" from the list box in this column. If any cell in this column is left blank, the trip will be seen as a private trip."]
["Client Code - select the client code from the list box in this column. The list box includes all the client codes added to the Clients sheet. New client codes must therefore be created on the Clients sheet before being available for selection on this sheet."]
["From - enter the location from which the trip started."]
["To - enter the trip destination in this column."]
["Purpose - enter the purpose of the trip in this column."]
["Rate - enter the rate per mile or kilometre that needs to be charged to the client. Charges are typically only applicable to business trips and a nil value is usually therefore specified for private trips."]
["Driver - enter the name of the driver in this column."]
[]
["The Logbook sheet contains the following calculated columns (columns with light blue column headings):"]
["Total Trip Distance - the distance of the trip is calculated by deducting the opening odometer reading from the closing odometer reading. If the odometer reading is in miles, the trip distance will be in miles. If the odometer reading is in kilometres, the trip distance will be in kilometres."]
["Total Trip Charges - this amount is calculated by multiplying the rate in column L by the trip distance in the previous column."]
["Standard Distance - the standard trip distance is defined for each client on the Clients sheet."]
["Distance Variance - this calculation is the difference between the standard client distance in the previous column and the trip distance which is calculated in column N. It therefore indicates a variance between the logbook entry and the standard distance to the appropriate client location and can be used to identify errors in recording the distance travelled for business purposes. There is no standard distance for private travel which means that this calculation is not performed for private trips."]
["Error Code - this column will contain an error code if there is a problem with the input in any of the user input columns. Refer to the Error Codes section of the instructions for more info on the error codes that may be encountered. All error codes must be resolved in order to ensure that the template calculations remain accurate."]
[]
["Note: Trips can be added to the logbook on a single or round trip basis. If you are basically travelling to and from a client, it may not be necessary to add both trips to the logbook as it will only result in additional entries needing to be recorded. If round trips are used, the odometer readings should be entered accordingly in order for the correct distance to be calculated and the basis of entering round trips should be applied consistently to all the business & private trips that are added to this template."]
[]
["Note: Aside from the mileage that is travelled, private trips usually do not need to be specified in detail on a per trip basis. The mileage of multiple private trips can therefore be determined at the start of the next business trip based on the odometer reading at the time. The template does however provide for entering individual private trips - this basis of input will only result in more entries having to be added to the template."]
[]
["Note: A customer code of \"XXX01\" needs to be assigned to all private trips. This customer code has been created specifically for private trips and has been added to the Clients sheet. This default private trip client code therefore needs to be retained in the list of client codes."]
[]
["All the column headings on the Logbook sheet contain filter selection arrows which indicate that the Filter feature has been activated on the Logbook sheet. This feature can be used to filter the data on the sheet based on requirements. Note that the totals above the column headings will also only be based on the filtered records once a filter has been applied to the sheet."]
[]
["Note: The Filter feature can be used to display the detailed logbook records for any of the individual or combined totals on the Clients or Vehicles sheet by simply applying the same filter criteria as has been applied to the appropriate sheet to the columns on the Logbook sheet. This is especially useful if you want to supply a client with the detailed logbook entries which make up the total that is charged to the client for any particular period."]
[]
["Client Charge Sheet"]
[]
["The Clients sheet can be used to calculate the travel charges that needs to be invoiced to each client based on any user defined date range. Simply create a new client code for all client accounts, enter a client name and enter the standard distance which is applicable when travelling to the particular client. The columns with light blue column headings contain formulas which need to be copied for all new client codes that are created."]
[]
["Note: All the client codes that are created on the Clients sheet need to be entered in a continuous cell range otherwise some entries may not be included in the template calculations. You should therefore not insert any blank rows between the rows that contain data."]
[]
["The Client sheet contains the following user input columns:"]
["Client Code - a unique client code needs to be created for each client account. Our sample data uses three letters and two numbers but client codes can be created in any format (we do recommend using a combination of letters and numbers though)."]
["Client Name - enter the client name in this column."]
["Travel Distance - enter the standard distance which is applicable when travelling to the client. The distance should be based on the same measurement (miles or kilometres) which the odometer readings on the Logbook sheet are in. This standard distance is compared to the trip distances on the Logbook sheet in order to ensure that accurate travel distances are recorded."]
[]
["The Clients sheet contains the following calculated columns (columns with light blue column headings) which are all based on the filter selections at the top of the sheet:"]
["Total Mileage - this is the total mileage that has been travelled to the client during the user defined period based on the logbook entries which have been recorded on the Logbook sheet."]
["Total Charges - this is the total charges which have been allocated to the client code and is calculated by multiplying the travel distance in column N on the Logbook sheet by the rate in column L on the Logbook sheet."]
["Rate Charged - this is the average rate which has been charged for travelling to the client and is calculated by dividing the total charges by the total mileage."]
["Number of Trips - this is the number of trips which have been allocated to the client. If round trips are recorded as a single trip, the number of trips would reflect round trips."]
["Average Distance - this is the average distance of the trips to the client as recorded on the Logbook sheet and is calculated by dividing the total mileage by the number of trips."]
["Distance Variance - this is the variance between the standard client distance in column C and the average distance in the previous column. This calculation indicates whether the trip distance which is recorded on the Logbook sheet is consistent with the standard distance which is specified for the particular client."]
["Total Mileage by Month - these three columns display the total mileage per month which has been allocated to the client. The monthly reporting periods are determined by the To Date which is specified in cell I4. The calculations in these columns can be used to review the mileage which have been allocated to clients for the appropriate quarter."]
["Number of Trips by Month - these three columns display the number of trips per month which has been allocated to the client. The monthly reporting periods are determined by the To Date which is specified in cell I4. The calculations in these columns can be used to review the number of trips which have been allocated to clients for the appropriate quarter. This is especially useful when you need to monitor sales representatives with fixed routes."]
[]
["Note: A customer code of \"XXX01\" needs to be assigned to all private trips. This customer code has been created specifically for private trips and has been added to the Clients sheet. This default private trip client code therefore needs to be retained in the list of client codes."]
[]
["Note: The total business & private mileage as well as the appropriate percentages are displayed in column C and D at the top of the sheet."]
[]
["Note: The template calculations only include the first 200 client codes on the Clients sheet. If this default value is not sufficient, open the Name Manager feature (Formulas tab on the ribbon) and simply change the value of 200 which is specified for the CRecords named range to the required number of client codes which need to be included in the template calculations."]
[]
["Filter Selection Options"]
[]
["All the calculations in the light blue columns on the Clients sheet are based on the filter selections which have been specified at the top of the sheet. These selections enable users to compile a client charge sheet based on any user defined date range and for any individual vehicle. The filter selections on the Client sheet include the following user input cells:"]
["From Date - the date range for which the calculations on the sheet are performed starts on the user defined date in cell G4. The date should be entered based on the regional date settings which are specified in the System Control Panel. If this cell is left blank, the date range will commence on the first day of the year that is five years before the current year (it can therefore be reasonably expected that all logbook entries for the past 5 years will be included in the calculations on the Clients sheet)."]
["To Date - the date range for which the calculations on the sheet are performed ends on the user defined date in cell I4. The date should be entered based on the regional date settings which are specified in the System Control Panel. If this cell is left blank, the date range will end on the last day of the current calendar month (which is determined based on the current system date)."]
["Vehicle - the calculations on the Clients sheet can be performed based on a single vehicle or all the vehicles added to the Vehicles sheet. If you want the calculations to be based on a specific vehicle, simple select the appropriate vehicle from the list box in cell K4. If you want the calculations to be based on all vehicles, simply delete the contents of cell K4 in order to display a blank cell."]
[]
["Vehicle Charge Sheet"]
[]
["The Vehicle sheet can be used to analyse the business & private mileage of any vehicle based on any user defined date range. Simply add a new vehicle registration number and enter a description for the vehicle. The columns with light blue column headings contain formulas which need to be copied for all new vehicles that are added to the sheet."]
[]
["Note: All the vehicle registration numbers that are added to the Vehicles sheet need to be entered in a continuous cell range otherwise some entries may not be included in the template calculations. You should therefore not insert any blank rows between the rows that contain data."]
[]
["The Vehicles sheet contains the following user input columns:"]
["Vehicle Reg Number - a unique vehicle registration number needs to be entered for each vehicle."]
["Vehicle Description - enter a description of the vehicle in this column."]
[]
["The Vehicles sheet contains the following calculated columns (columns with light blue column headings) which are all based on the filter selections at the top of the sheet:"]
["Total Mileage - this is the total mileage that has been recorded for the particular vehicle during the user defined period based on the logbook entries on the Logbook sheet."]
["Total Charges - this is the total charges which have been allocated to the vehicle and is calculated by multiplying the travel distance in column N on the Logbook sheet by the rate in column L on the Logbook sheet."]
["Business Mileage - this is the total business trip mileage that has been recorded for the particular vehicle during the user defined period based on the logbook entries on the Logbook sheet."]
["Business Travel % - this is the percentage of travel for business purposes associated with the particular vehicle. This calculation indicates the level of usage of the vehicle for business purposes and can be compared to the same calculation for other vehicles in order to identify excessive private use of vehicles."]
["Rate Charged - this is the average rate which has been charged to clients based on the use of the vehicle for business purposes and is calculated by dividing the total charges by the business mileage."]
["Business Trips - this is the number of business trips which have been allocated to the vehicle. If round trips are recorded as a single trip, the number of business trips would reflect round trips."]
["Total Mileage by Month - these three columns display the total mileage per month which has been allocated to the vehicle. The monthly reporting periods are determined by the To Date which is specified in cell I4. The calculations in these columns can be used to review the total mileage which have been allocated to each vehicle for the appropriate quarter."]
["Business % by Month - these three columns display the percentage monthly business use of the vehicle. The monthly reporting periods are determined by the To Date which is specified in cell I4. The calculations in these columns can be used to review the business use of the vehicle for the appropriate quarter."]
["Number of Business Trips by Month - these three columns display the number of business trips per month which has been allocated to the vehicle. The monthly reporting periods are determined by the To Date which is specified in cell I4. The calculations in these columns can be used to review the number of trips which have been allocated to the vehicle for the appropriate quarter. This is especially useful when you need to monitor sales representatives with fixed routes where each sales representative uses a separate vehicle."]
[]
["Note: The total business & private mileage as well as the appropriate percentages are displayed in column C and D at the top of the sheet."]
[]
["Note: The template calculations only include the first 200 vehicle registration numbers on the Vehicles sheet. If this default value is not sufficient, open the Name Manager feature (Formulas tab on the ribbon) and simply change the value of 200 which is specified for the VRecords named range to the required number of vehicle registration numbers which need to be included in the template calculations."]
[]
["Filter Selection Options"]
[]
["All the calculations in the light blue columns on the Vehicles sheet are based on the filter selections which have been specified at the top of the sheet. These selections enable users to compile a vehicle charge sheet based on any user defined date range and for any individual client. The filter selections on the Vehicles sheet include the following user input cells:"]
["From Date - the date range for which the calculations on the sheet are performed starts on the user defined date in cell G4. The date should be entered based on the regional date settings which are specified in the System Control Panel. If this cell is left blank, the date range will commence on the first day of the year that is five years before the current year (it can therefore be reasonably expected that all logbook entries for the past 5 years will be included in the calculations on the Vehicles sheet)."]
["To Date - the date range for which the calculations on the sheet are performed ends on the user defined date in cell I4. The date should be entered based on the regional date settings which are specified in the System Control Panel. If this cell is left blank, the date range will end on the last day of the current calendar month (which is determined based on the current system date)."]
["Client - the calculations on the Vehicles sheet can be performed based on a single client or all the client codes which have been added to the Clients sheet. If you want the calculations to be based on a specific client code, simple select the appropriate client code from the list box in cell K4. If you want the calculations to be based on all clients, simply delete the contents of cell K4 in order to display a blank cell."]
[]
["Vehicle Logbook Form"]
[]
["The vehicle logbook form on the Form sheet can be printed and supplied to drivers in order for them to record all business & private trips. The contents of these forms can then be recorded on the Logbook sheet."]
[]
["Note: An example of the input which is required in each column is supplied at the top of the sheet."]
[]
["Note: We strongly recommend issuing these forms in a numeric sequence by changing the form number at the top of the sheet before printing the form. This will enable users to check the form sequence in order to ensure that all vehicle logbook entries have been recorded."]
[]
["Error Codes"]
[]
["The following error codes may result from inaccurate input on the Logbook sheet and will be displayed in the Error Code column. The heading of the affected input column will also be highlighted in orange:"]
["■ E1 - this error code means that the vehicle registration number that has been selected in column D is invalid. All the vehicle registration numbers that have been added to the Vehicles sheet will be included in the list boxes in column D and the error can therefore be rectified by simply selecting a valid vehicle registration number from the list box. New vehicle registration numbers must be created on the Vehicles sheet before being available for selection."]
["■ E2 - this error code means that the client code selected in column H is invalid. All the client codes that have been added to the Clients sheet will be included in the list boxes in column H and the error can therefore be rectified by simply selecting a valid client code from the list box. New client codes must be created on the Clients sheet before being available for selection."]
["■ E3 - this error code indicates that an incorrect client code has been specified for a private trip on the Logbook sheet. All private trips must be allocated to the default \"XXX01\" client code in column H on the Logbook sheet.  The error can be corrected by simply selecting the correct client code (\"XXX01\") in column H or changing the type of travel to business and selecting the correct client code."]
["■ E4 - this error code indicates that an incorrect client code has been specified for a business trip on the Logbook sheet. All private trips must be allocated to the default \"XXX01\" client code in column H on the Logbook sheet. If you use this default private trip code for a business trip, this error will be displayed. The error can be corrected by simply selecting the correct client code in column H or changing the type of travel to private."]
[]
["Note: Input errors may result in inaccurate template calculations and it is therefore imperative that all errors are resolved before reviewing the template calculations."]
[]
["Help & Customization"]
[]
["If you experience any difficulty while using this template and you are not able to find the appropriate guidance in these instructions, please e-mail us at support@excel-skills.com for assistance. This template has been designed with flexibility in mind to ensure that it can be used in most business environments. If however you need an Excel based template that is customized specifically for your business requirements, please e-mail our Support function and provide a brief explanation of your requirements."]
[]
["© Copyright"]
[]
["This template remains the intellectual property of www.excel-skills.com and is protected by international copyright laws. Any publication or distribution of this template outside the scope of the permitted use of the template is expressly prohibited. In terms of the permitted use of this template, only the distribution of the template to persons within the same organisation as the registered user or persons outside the organisation who can reasonably be expected to require access to the template as a direct result of the use of the template by the registered user is allowed. Subsequent distribution of the template by parties outside of the organisation is however expressly prohibited and represents an infringement of international copyright laws."]

{"sheet":"Logbook","index":3,"n_rows":215,"n_cols":18,"rows_kept":215,"cut":false,"hidden":true,"merged":[]}
["Vehicle Logbook Entries"]
["© www.excel-skills.com",null,null,null,null,null,null,null,null,null,null,null,null,{"$f":"SUBTOTAL(109,LogDistance)","v":17910},{"$f":"SUBTOTAL(109,LogCost)","v":40134}]
["Travel Date","Travel Time","Form Number","Vehicle Reg Number","Odometer Opening","Odometer Closing","Travel Type","Client Code","From","To","Purpose","Rate","Driver","Total Trip Distance","Total Trip Charges","Standard Distance","Distance Variance","Error Code"]
["2020-01-06","08:00:00","TL0001","EXS111WC",50415,50515,"Business","ENE01","Work","Client","Client Consultation",3,"A Smith",{"$f":"F4-E4","v":100},{"$f":"N4*L4","v":300},{"$f":"IF(ISNA(VLOOKUP($H4,ClientAll,COLUMN(Clients!$C$8),0))=TRUE,0,VLOOKUP($H4,ClientAll,COLUMN(Clients!$C$8),0))","v":100},{"$f":"IF(G4=\"Private\",0,N4-P4)","v":0},{"$f":"IF(ISNA(VLOOKUP($D4,VehicleID,COLUMN(Vehicles!$A$8),0))=TRUE,\"E1\",IF(ISNA(VLOOKUP($H4,ClientID,COLUMN(Vehicles!$A$8),0))=TRUE,\"E2\",IF(AND($G4<>\"Business\",$H4<>\"XXX01\"),\"E3\",IF(AND($G4=\"Business\",$H4=\"XXX01\"),\"E4\",\"-\"))))","v":"-"}]
["2020-01-06","08:00:00","TL0002","EXS222WC",33215,33365,"Business","PTY01","Work","Client","Client Consultation",3,"C Wilson",150,450,{"$f":"IF(ISNA(VLOOKUP($H5,ClientAll,COLUMN(Clients!$C$8),0))=TRUE,0,VLOOKUP($H5,ClientAll,COLUMN(Clients!$C$8),0))","v":150},0,{"$f":"IF(ISNA(VLOOKUP($D5,VehicleID,COLUMN(Vehicles!$A$8),0))=TRUE,\"E1\",IF(ISNA(VLOOKUP($H5,ClientID,COLUMN(Vehicles!$A$8),0))=TRUE,\"E2\",IF(AND($G5<>\"Business\",$H5<>\"XXX01\"),\"E3\",IF(AND($G5=\"Business\",$H5=\"XXX01\"),\"E4\",\"-\"))))","v":"-"}]
["2020-01-06",null,"TL0001","EXS111WC",50515,50545,"Private","XXX01","Various Private","Various Private","Private Travel",0,"A Smith",30,0,{"$f":"IF(ISNA(VLOOKUP($H6,ClientAll,COLUMN(Clients!$C$8),0))=TRUE,0,VLOOKUP($H6,ClientAll,COLUMN(Clients!$C$8),0))","v":0},0,{"$f":"IF(ISNA(VLOOKUP($D6,VehicleID,COLUMN(Vehicles!$A$8),0))=TRUE,\"E1\",IF(ISNA(VLOOKUP($H6,ClientID,COLUMN(Vehicles!$A$8),0))=TRUE,\"E2\",IF(AND($G6<>\"Business\",$H6<>\"XXX01\"),\"E3\",IF(AND($G6=\"Business\",$H6=\"XXX01\"),\"E4\",\"-\"))))","v":"-"}]
["2020-01-06",null,"TL0002","EXS222WC",33365,33375,"Private","XXX01","Various Private","Various Private","Private Travel",0,"C Wilson",10,0,{"$f":"IF(ISNA(VLOOKUP($H7,ClientAll,COLUMN(Clients!$C$8),0))=TRUE,0,VLOOKUP($H7,ClientAll,COLUMN(Clients!$C$8),0))","v":0},0,{"$f":"IF(ISNA(VLOOKUP($D7,VehicleID,COLUMN(Vehicles!$A$8),0))=TRUE,\"E1\",IF(ISNA(VLOOKUP($H7,ClientID,COLUMN(Vehicles!$A$8),0))=TRUE,\"E2\",IF(AND($G7<>\"Business\",$H7<>\"XXX01\"),\"E3\",IF(AND($G7=\"Business\",$H7=\"XXX01\"),\"E4\",\"-\"))))","v":"-"}]
["2020-01-07","08:00:00","TL0001","EXS111WC",50545,50645,"Business","ENE01","Work","Client","Client Consultation",3,"A Smith",100,300,{"$f":"IF(ISNA(VLOOKUP($H8,ClientAll,COLUMN(Clients!$C$8),0))=TRUE,0,VLOOKUP($H8,ClientAll,COLUMN(Clients!$C$8),0))","v":100},0,{"$f":"IF(ISNA(VLOOKUP($D8,VehicleID,COLUMN(Vehicles!$A$8),0))=TRUE,\"E1\",IF(ISNA(VLOOKUP($H8,ClientID,COLUMN(Vehicles!$A$8),0))=TRUE,\"E2\",IF(AND($G8<>\"Business\",$H8<>\"XXX01\"),\"E3\",IF(AND($G8=\"Business\",$H8=\"XXX01\"),\"E4\",\"-\"))))","v":"-"}]
["2020-01-07","08:30:00","TL0002","EXS222WC",33375,33525,"Business","PTY01","Work","Client","Client Consultation",3,"C Wilson",150,450,{"$f":"IF(ISNA(VLOOKUP($H9,ClientAll,COLUMN(Clients!$C$8),0))=TRUE,0,VLOOKUP($H9,ClientAll,COLUMN(Clients!$C$8),0))","v":150},0,{"$f":"IF(ISNA(VLOOKUP($D9,VehicleID,COLUMN(Vehicles!$A$8),0))=TRUE,\"E1\",IF(ISNA(VLOOKUP($H9,ClientID,COLUMN(Vehicles!$A$8),0))=TRUE,\"E2\",IF(AND($G9<>\"Business\",$H9<>\"XXX01\"),\"E3\",IF(AND($G9=\"Business\",$H9=\"XXX01\"),\"E4\",\"-\"))))","v":"-"}]
["2020-01-07",null,"TL0001","EXS111WC",50645,50795,"Private","XXX01","Various Private","Various Private","Private Travel",0,"A Smith",150,0,{"$f":"IF(ISNA(VLOOKUP($H10,ClientAll,COLUMN(Clients!$C$8),0))=TRUE,0,VLOOKUP($H10,ClientAll,COLUMN(Clients!$C$8),0))","v":0},0,{"$f":"IF(ISNA(VLOOKUP($D10,VehicleID,COLUMN(Vehicles!$A$8),0))=TRUE,\"E1\",IF(ISNA(VLOOKUP($H10,ClientID,COLUMN(Vehicles!$A$8),0))=TRUE,\"E2\",IF(AND($G10<>\"Business\",$H10<>\"XXX01\"),\"E3\",IF(AND($G10=\"Business\",$H10=\"XXX01\"),\"E4\",\"-\"))))","v":"-"}]
["2020-01-07",null,"TL0002","EXS222WC",33525,33525,"Private","XXX01","Various Private","Various Private","Private Travel",0,"C Wilson",0,0,{"$f":"IF(ISNA(VLOOKUP($H11,ClientAll,COLUMN(Clients!$C$8),0))=TRUE,0,VLOOKUP($H11,ClientAll,COLUMN(Clients!$C$8),0))","v":0},0,{"$f":"IF(ISNA(VLOOKUP($D11,VehicleID,COLUMN(Vehicles!$A$8),0))=TRUE,\"E1\",IF(ISNA(VLOOKUP($H11,ClientID,COLUMN(Vehicles!$A$8),0))=TRUE,\"E2\",IF(AND($G11<>\"Business\",$H11<>\"XXX01\"),\"E3\",IF(AND($G11=\"Business\",$H11=\"XXX01\"),\"E4\",\"-\"))))","v":"-"}]
["2020-01-08","08:00:00","TL0001","EXS111WC",50795,50895,"Business","ENE01","Work","Client","Client Consultation",3,"A Smith",100,300,{"$f":"IF(ISNA(VLOOKUP($H12,ClientAll,COLUMN(Clients!$C$8),0))=TRUE,0,VLOOKUP($H12,ClientAll,COLUMN(Clients!$C$8),0))","v":100},0,{"$f":"IF(ISNA(VLOOKUP($D12,VehicleID,COLUMN(Vehicles!$A$8),0))=TRUE,\"E1\",IF(ISNA(VLOOKUP($H12,ClientID,COLUMN(Vehicles!$A$8),0))=TRUE,\"E2\",IF(AND($G12<>\"Business\",$H12<>\"XXX01\"),\"E3\",IF(AND($G12=\"Business\",$H12=\"XXX01\"),\"E4\",\"-\"))))","v":"-"}]
["2020-01-08","08:00:00","TL0002","EXS222WC",33525,33675,"Business","PTY01","Work","Client","Client Consultation",3,"C Wilson",150,450,{"$f":"IF(ISNA(VLOOKUP($H13,ClientAll,COLUMN(Clients!$C$8),0))=TRUE,0,VLOOKUP($H13,ClientAll,COLUMN(Clients!$C$8),0))","v":150},0,{"$f":"IF(ISNA(VLOOKUP($D13,VehicleID,COLUMN(Vehicles!$A$8),0))=TRUE,\"E1\",IF(ISNA(VLOOKUP($H13,ClientID,COLUMN(Vehicles!$A$8),0))=TRUE,\"E2\",IF(AND($G13<>\"Business\",$H13<>\"XXX01\"),\"E3\",IF(AND($G13=\"Business\",$H13=\"XXX01\"),\"E4\",\"-\"))))","v":"-"}]
["2020-01-08",null,"TL0001","EXS111WC",50895,50915,"Private","XXX01","Various Private","Various Private","Private Travel",0,"A Smith",20,0,{"$f":"IF(ISNA(VLOOKUP($H14,ClientAll,COLUMN(Clients!$C$8),0))=TRUE,0,VLOOKUP($H14,ClientAll,COLUMN(Clients!$C$8),0))","v":0},0,{"$f":"IF(ISNA(VLOOKUP($D14,VehicleID,COLUMN(Vehicles!$A$8),0))=TRUE,\"E1\",IF(ISNA(VLOOKUP($H14,ClientID,COLUMN(Vehicles!$A$8),0))=TRUE,\"E2\",IF(AND($G14<>\"Business\",$H14<>\"XXX01\"),\"E3\",IF(AND($G14=\"Business\",$H14=\"XXX01\"),\"E4\",\"-\"))))","v":"-"}]
["2020-01-08",null,"TL0002","EXS222WC",33675,33700,"Private","XXX01","Various Private","Various Private","Private Travel",0,"C Wilson",25,0,{"$f":"IF(ISNA(VLOOKUP($H15,ClientAll,COLUMN(Clients!$C$8),0))=TRUE,0,VLOOKUP($H15,ClientAll,COLUMN(Clients!$C$8),0))","v":0},0,{"$f":"IF(ISNA(VLOOKUP($D15,VehicleID,COLUMN(Vehicles!$A$8),0))=TRUE,\"E1\",IF(ISNA(VLOOKUP($H15,ClientID,COLUMN(Vehicles!$A$8),0))=TRUE,\"E2\",IF(AND($G15<>\"Business\",$H15<>\"XXX01\"),\"E3\",IF(AND($G15=\"Business\",$H15=\"XXX01\"),\"E4\",\"-\"))))","v":"-"}]
["2020-01-09","08:00:00","TL0001","EXS111WC",50915,50975,"Business","CCS01","Work","Client","Client Consultation",3,"A Smith",60,180,{"$f":"IF(ISNA(VLOOKUP($H16,ClientAll,COLUMN(Clients!$C$8),0))=TRUE,0,VLOOKUP($H16,ClientAll,COLUMN(Clients!$C$8),0))","v":60},0,{"$f":"IF(ISNA(VLOOKUP($D16,VehicleID,COLUMN(Vehicles!$A$8),0))=TRUE,\"E1\",IF(ISNA(VLOOKUP($H16,ClientID,COLUMN(Vehicles!$A$8),0))=TRUE,\"E2\",IF(AND($G16<>\"Business\",$H16<>\"XXX01\"),\"E3\",IF(AND($G16=\"Business\",$H16=\"XXX01\"),\"E4\",\"-\"))))","v":"-"}]
["2020-01-09","08:00:00","TL0002","EXS222WC",33700,33850,"Business","PTY01","Work","Client","Client Consultation",3,"C Wilson",150,450,{"$f":"IF(ISNA(VLOOKUP($H17,ClientAll,COLUMN(Clients!$C$8),0))=TRUE,0,VLOOKUP($H17,ClientAll,COLUMN(Clients!$C$8),0))","v":150},0,{"$f":"IF(ISNA(VLOOKUP($D17,VehicleID,COLUMN(Vehicles!$A$8),0))=TRUE,\"E1\",IF(ISNA(VLOOKUP($H17,ClientID,COLUMN(Vehicles!$A$8),0))=TRUE,\"E2\",IF(AND($G17<>\"Business\",$H17<>\"XXX01\"),\"E3\",IF(AND($G17=\"Business\",$H17=\"XXX01\"),\"E4\",\"-\"))))","v":"-"}]
["2020-01-10",null,"TL0001","EXS111WC",50975,51010,"Private","XXX01","Various Private","Various Private","Private Travel",0,"A Smith",35,0,{"$f":"IF(ISNA(VLOOKUP($H18,ClientAll,COLUMN(Clients!$C$8),0))=TRUE,0,VLOOKUP($H18,ClientAll,COLUMN(Clients!$C$8),0))","v":0},0,{"$f":"IF(ISNA(VLOOKUP($D18,VehicleID,COLUMN(Vehicles!$A$8),0))=TRUE,\"E1\",IF(ISNA(VLOOKUP($H18,ClientID,COLUMN(Vehicles!$A$8),0))=TRUE,\"E2\",IF(AND($G18<>\"Business\",$H18<>\"XXX01\"),\"E3\",IF(AND($G18=\"Business\",$H18=\"XXX01\"),\"E4\",\"-\"))))","v":"-"}]
["2020-01-10",null,"TL0002","EXS222WC",33850,33886,"Private","XXX01","Various Private","Various Private","Private Travel",0,"C Wilson",36,0,{"$f":"IF(ISNA(VLOOKUP($H19,ClientAll,COLUMN(Clients!$C$8),0))=TRUE,0,VLOOKUP($H19,ClientAll,COLUMN(Clients!$C$8),0))","v":0},0,{"$f":"IF(ISNA(VLOOKUP($D19,VehicleID,COLUMN(Vehicles!$A$8),0))=TRUE,\"E1\",IF(ISNA(VLOOKUP($H19,ClientID,COLUMN(Vehicles!$A$8),0))=TRUE,\"E2\",IF(AND($G19<>\"Business\",$H19<>\"XXX01\"),\"E3\",IF(AND($G19=\"Business\",$H19=\"XXX01\"),\"E4\",\"-\"))))","v":"-"}]
["2020-01-13","08:00:00","TL0001","EXS111WC",51010,51110,"Business","ENE01","Work","Client","Client Consultation",3,"A Smith",100,300,{"$f":"IF(ISNA(VLOOKUP($H20,ClientAll,COLUMN(Clients!$C$8),0))=TRUE,0,VLOOKUP($H20,ClientAll,COLUMN(Clients!$C$8),0))","v":100},0,{"$f":"IF(ISNA(VLOOKUP($D20,VehicleID,COLUMN(Vehicles!$A$8),0))=TRUE,\"E1\",IF(ISNA(VLOOKUP($H20,ClientID,COLUMN(Vehicles!$A$8),0))=TRUE,\"E2\",IF(AND($G20<>\"Business\",$H20<>\"XXX01\"),\"E3\",IF(AND($G20=\"Business\",$H20=\"XXX01\"),\"E4\",\"-\"))))","v":"-"}]
["2020-01-13","08:00:00","TL0002","EXS222WC",33886,34036,"Business","PTY01","Work","Client","Client Consultation",3,"C Wilson",150,450,{"$f":"IF(ISNA(VLOOKUP($H21,ClientAll,COLUMN(Clients!$C$8),0))=TRUE,0,VLOOKUP($H21,ClientAll,COLUMN(Clients!$C$8),0))","v":150},0,{"$f":"IF(ISNA(VLOOKUP($D21,VehicleID,COLUMN(Vehicles!$A$8),0))=TRUE,\"E1\",IF(ISNA(VLOOKUP($H21,ClientID,COLUMN(Vehicles!$A$8),0))=TRUE,\"E2\",IF(AND($G21<>\"Business\",$H21<>\"XXX01\"),\"E3\",IF(AND($G21=\"Business\",$H21=\"XXX01\"),\"E4\",\"-\"))))","v":"-"}]
["2020-01-13","08:00:00","TL0003","EXS333WC",110213,110628,"Business","ITS01","Work","Client","Client Consultation",2.5,"R Hughes",415,1037.5,{"$f":"IF(ISNA(VLOOKUP($H22,ClientAll,COLUMN(Clients!$C$8),0))=TRUE,0,VLOOKUP($H22,ClientAll,COLUMN(Clients!$C$8),0))","v":415},0,{"$f":"IF(ISNA(VLOOKUP($D22,VehicleID,COLUMN(Vehicles!$A$8),0))=TRUE,\"E1\",IF(ISNA(VLOOKUP($H22,ClientID,COLUMN(Vehicles!$A$8),0))=TRUE,\"E2\",IF(AND($G22<>\"Business\",$H22<>\"XXX01\"),\"E3\",IF(AND($G22=\"Business\",$H22=\"XXX01\"),\"E4\",\"-\"))))","v":"-"}]
["2020-01-13",null,"TL0001","EXS111WC",51110,51199,"Private","XXX01","Various Private","Various Private","Private Travel",0,"A Smith",89,0,{"$f":"IF(ISNA(VLOOKUP($H23,ClientAll,COLUMN(Clients!$C$8),0))=TRUE,0,VLOOKUP($H23,ClientAll,COLUMN(Clients!$C$8),0))","v":0},0,{"$f":"IF(ISNA(VLOOKUP($D23,VehicleID,COLUMN(Vehicles!$A$8),0))=TRUE,\"E1\",IF(ISNA(VLOOKUP($H23,ClientID,COLUMN(Vehicles!$A$8),0))=TRUE,\"E2\",IF(AND($G23<>\"Business\",$H23<>\"XXX01\"),\"E3\",IF(AND($G23=\"Business\",$H23=\"XXX01\"),\"E4\",\"-\"))))","v":"-"}]
["2020-01-13",null,"TL0002","EXS222WC",34036,34051,"Private","XXX01","Various Private","Various Private","Private Travel",0,"C Wilson",15,0,{"$f":"IF(ISNA(VLOOKUP($H24,ClientAll,COLUMN(Clients!$C$8),0))=TRUE,0,VLOOKUP($H24,ClientAll,COLUMN(Clients!$C$8),0))","v":0},0,{"$f":"IF(ISNA(VLOOKUP($D24,VehicleID,COLUMN(Vehicles!$A$8),0))=TRUE,\"E1\",IF(ISNA(VLOOKUP($H24,ClientID,COLUMN(Vehicles!$A$8),0))=TRUE,\"E2\",IF(AND($G24<>\"Business\",$H24<>\"XXX01\"),\"E3\",IF(AND($G24=\"Business\",$H24=\"XXX01\"),\"E4\",\"-\"))))","v":"-"}]
["2020-01-14","08:00:00","TL0001","EXS111WC",51199,51299,"Business","ENE01","Work","Client","Client Consultation",3,"A Smith",100,300,{"$f":"IF(ISNA(VLOOKUP($H25,ClientAll,COLUMN(Clients!$C$8),0))=TRUE,0,VLOOKUP($H25,ClientAll,COLUMN(Clients!$C$8),0))","v":100},0,{"$f":"IF(ISNA(VLOOKUP($D25,VehicleID,COLUMN(Vehicles!$A$8),0))=TRUE,\"E1\",IF(ISNA(VLOOKUP($H25,ClientID,COLUMN(Vehicles!$A$8),0))=TRUE,\"E2\",IF(AND($G25<>\"Business\",$H25<>\"XXX01\"),\"E3\",IF(AND($G25=\"Business\",$H25=\"XXX01\"),\"E4\",\"-\"))))","v":"-"}]
["2020-01-14","08:00:00","TL0002","EXS222WC",34051,34201,"Business","PTY01","Work","Client","Client Consultation",3,"C Wilson",150,450,{"$f":"IF(ISNA(VLOOKUP($H26,ClientAll,COLUMN(Clients!$C$8),0))=TRUE,0,VLOOKUP($H26,ClientAll,COLUMN(Clients!$C$8),0))","v":150},0,{"$f":"IF(ISNA(VLOOKUP($D26,VehicleID,COLUMN(Vehicles!$A$8),0))=TRUE,\"E1\",IF(ISNA(VLOOKUP($H26,ClientID,COLUMN(Vehicles!$A$8),0))=TRUE,\"E2\",IF(AND($G26<>\"Business\",$H26<>\"XXX01\"),\"E3\",IF(AND($G26=\"Business\",$H26=\"XXX01\"),\"E4\",\"-\"))))","v":"-"}]
["2020-01-14",null,"TL0001","EXS111WC",51299,51354,"Private","XXX01","Various Private","Various Private","Private Travel",0,"A Smith",55,0,{"$f":"IF(ISNA(VLOOKUP($H27,ClientAll,COLUMN(Clients!$C$8),0))=TRUE,0,VLOOKUP($H27,ClientAll,COLUMN(Clients!$C$8),0))","v":0},0,{"$f":"IF(ISNA(VLOOKUP($D27,VehicleID,COLUMN(Vehicles!$A$8),0))=TRUE,\"E1\",IF(ISNA(VLOOKUP($H27,ClientID,COLUMN(Vehicles!$A$8),0))=TRUE,\"E2\",IF(AND($G27<>\"Business\",$H27<>\"XXX01\"),\"E3\",IF(AND($G27=\"Business\",$H27=\"XXX01\"),\"E4\",\"-\"))))","v":"-"}]
["2020-01-14",null,"TL0002","EXS222WC",34201,34203,"Private","XXX01","Various Private","Various Private","Private Travel",0,"C Wilson",2,0,{"$f":"IF(ISNA(VLOOKUP($H28,ClientAll,COLUMN(Clients!$C$8),0))=TRUE,0,VLOOKUP($H28,ClientAll,COLUMN(Clients!$C$8),0))","v":0},0,{"$f":"IF(ISNA(VLOOKUP($D28,VehicleID,COLUMN(Vehicles!$A$8),0))=TRUE,\"E1\",IF(ISNA(VLOOKUP($H28,ClientID,COLUMN(Vehicles!$A$8),0))=TRUE,\"E2\",IF(AND($G28<>\"Business\",$H28<>\"XXX01\"),\"E3\",IF(AND($G28=\"Business\",$H28=\"XXX01\"),\"E4\",\"-\"))))","v":"-"}]
["2020-01-15","08:00:00","TL0001","EXS111WC",51354,51454,"Business","ENE01","Work","Client","Client Consultation",3,"A Smith",100,300,{"$f":"IF(ISNA(VLOOKUP($H29,ClientAll,COLUMN(Clients!$C$8),0))=TRUE,0,VLOOKUP($H29,ClientAll,COLUMN(Clients!$C$8),0))","v":100},0,{"$f":"IF(ISNA(VLOOKUP($D29,VehicleID,COLUMN(Vehicles!$A$8),0))=TRUE,\"E1\",IF(ISNA(VLOOKUP($H29,ClientID,COLUMN(Vehicles!$A$8),0))=TRUE,\"E2\",IF(AND($G29<>\"Business\",$H29<>\"XXX01\"),\"E3\",IF(AND($G29=\"Business\",$H29=\"XXX01\"),\"E4\",\"-\"))))","v":"-"}]
["2020-01-15","08:00:00","TL0002","EXS222WC",34203,34353,"Business","PTY01","Work","Client","Client Consultation",3,"C Wilson",150,450,{"$f":"IF(ISNA(VLOOKUP($H30,ClientAll,COLUMN(Clients!$C$8),0))=TRUE,0,VLOOKUP($H30,ClientAll,COLUMN(Clients!$C$8),0))","v":150},0,{"$f":"IF(ISNA(VLOOKUP($D30,VehicleID,COLUMN(Vehicles!$A$8),0))=TRUE,\"E1\",IF(ISNA(VLOOKUP($H30,ClientID,COLUMN(Vehicles!$A$8),0))=TRUE,\"E2\",IF(AND($G30<>\"Business\",$H30<>\"XXX01\"),\"E3\",IF(AND($G30=\"Business\",$H30=\"XXX01\"),\"E4\",\"-\"))))","v":"-"}]
["2020-01-15",null,"TL0001","EXS111WC",51454,51500,"Private","XXX01","Various Private","Various Private","Private Travel",0,"A Smith",46,0,{"$f":"IF(ISNA(VLOOKUP($H31,ClientAll,COLUMN(Clients!$C$8),0))=TRUE,0,VLOOKUP($H31,ClientAll,COLUMN(Clients!$C$8),0))","v":0},0,{"$f":"IF(ISNA(VLOOKUP($D31,VehicleID,COLUMN(Vehicles!$A$8),0))=TRUE,\"E1\",IF(ISNA(VLOOKUP($H31,ClientID,COLUMN(Vehicles!$A$8),0))=TRUE,\"E2\",IF(AND($G31<>\"Business\",$H31<>\"XXX01\"),\"E3\",IF(AND($G31=\"Business\",$H31=\"XXX01\"),\"E4\",\"-\"))))","v":"-"}]
["2020-01-15",null,"TL0002","EXS222WC",34353,34368,"Private","XXX01","Various Private","Various Private","Private Travel",0,"C Wilson",15,0,{"$f":"IF(ISNA(VLOOKUP($H32,ClientAll,COLUMN(Clients!$C$8),0))=TRUE,0,VLOOKUP($H32,ClientAll,COLUMN(Clients!$C$8),0))","v":0},0,{"$f":"IF(ISNA(VLOOKUP($D32,VehicleID,COLUMN(Vehicles!$A$8),0))=TRUE,\"E1\",IF(ISNA(VLOOKUP($H32,ClientID,COLUMN(Vehicles!$A$8),0))=TRUE,\"E2\",IF(AND($G32<>\"Business\",$H32<>\"XXX01\"),\"E3\",IF(AND($G32=\"Business\",$H32=\"XXX01\"),\"E4\",\"-\"))))","v":"-"}]
["2020-01-16","08:00:00","TL0001","EXS111WC",51500,51588,"Business","DIG01","Work","Client","Client Consultation",3,"A Smith",88,264,{"$f":"IF(ISNA(VLOOKUP($H33,ClientAll,COLUMN(Clients!$C$8),0))=TRUE,0,VLOOKUP($H33,ClientAll,COLUMN(Clients!$C$8),0))","v":88},0,{"$f":"IF(ISNA(VLOOKUP($D33,VehicleID,COLUMN(Vehicles!$A$8),0))=TRUE,\"E1\",IF(ISNA(VLOOKUP($H33,ClientID,COLUMN(Vehicles!$A$8),0))=TRUE,\"E2\",IF(AND($G33<>\"Business\",$H33<>\"XXX01\"),\"E3\",IF(AND($G33=\"Business\",$H33=\"XXX01\"),\"E4\",\"-\"))))","v":"-"}]
["2020-01-16","08:00:00","TL0002","EXS222WC",34368,34518,"Business","PTY01","Work","Client","Client Consultation",3,"C Wilson",150,450,{"$f":"IF(ISNA(VLOOKUP($H34,ClientAll,COLUMN(Clients!$C$8),0))=TRUE,0,VLOOKUP($H34,ClientAll,COLUMN(Clients!$C$8),0))","v":150},0,{"$f":"IF(ISNA(VLOOKUP($D34,VehicleID,COLUMN(Vehicles!$A$8),0))=TRUE,\"E1\",IF(ISNA(VLOOKUP($H34,ClientID,COLUMN(Vehicles!$A$8),0))=TRUE,\"E2\",IF(AND($G34<>\"Business\",$H34<>\"XXX01\"),\"E3\",IF(AND($G34=\"Business\",$H34=\"XXX01\"),\"E4\",\"-\"))))","v":"-"}]
["2020-01-16",null,"TL0001","EXS111WC",51588,51652,"Private","XXX01","Various Private","Various Private","Private Travel",0,"A Smith",64,0,{"$f":"IF(ISNA(VLOOKUP($H35,ClientAll,COLUMN(Clients!$C$8),0))=TRUE,0,VLOOKUP($H35,ClientAll,COLUMN(Clients!$C$8),0))","v":0},0,{"$f":"IF(ISNA(VLOOKUP($D35,VehicleID,COLUMN(Vehicles!$A$8),0))=TRUE,\"E1\",IF(ISNA(VLOOKUP($H35,ClientID,COLUMN(Vehicles!$A$8),0))=TRUE,\"E2\",IF(AND($G35<>\"Business\",$H35<>\"XXX01\"),\"E3\",IF(AND($G35=\"Business\",$H35=\"XXX01\"),\"E4\",\"-\"))))","v":"-"}]
["2020-01-16",null,"TL0002","EXS222WC",34518,34539,"Private","XXX01","Various Private","Various Private","Private Travel",0,"C Wilson",21,0,{"$f":"IF(ISNA(VLOOKUP($H36,ClientAll,COLUMN(Clients!$C$8),0))=TRUE,0,VLOOKUP($H36,ClientAll,COLUMN(Clients!$C$8),0))","v":0},0,{"$f":"IF(ISNA(VLOOKUP($D36,VehicleID,COLUMN(Vehicles!$A$8),0))=TRUE,\"E1\",IF(ISNA(VLOOKUP($H36,ClientID,COLUMN(Vehicles!$A$8),0))=TRUE,\"E2\",IF(AND($G36<>\"Business\",$H36<>\"XXX01\"),\"E3\",IF(AND($G36=\"Business\",$H36=\"XXX01\"),\"E4\",\"-\"))))","v":"-"}]
["2020-01-17","08:00:00","TL0001","EXS111WC",51652,51740,"Business","DIG01","Work","Client","Client Consultation",3,"A Smith",88,264,{"$f":"IF(ISNA(VLOOKUP($H37,ClientAll,COLUMN(Clients!$C$8),0))=TRUE,0,VLOOKUP($H37,ClientAll,COLUMN(Clients!$C$8),0))","v":88},0,{"$f":"IF(ISNA(VLOOKUP($D37,VehicleID,COLUMN(Vehicles!$A$8),0))=TRUE,\"E1\",IF(ISNA(VLOOKUP($H37,ClientID,COLUMN(Vehicles!$A$8),0))=TRUE,\"E2\",IF(AND($G37<>\"Business\",$H37<>\"XXX01\"),\"E3\",IF(AND($G37=\"Business\",$H37=\"XXX01\"),\"E4\",\"-\"))))","v":"-"}]
["2020-01-17","08:00:00","TL0002","EXS222WC",34539,34689,"Business","PTY01","Work","Client","Client Consultation",3,"C Wilson",150,450,{"$f":"IF(ISNA(VLOOKUP($H38,ClientAll,COLUMN(Clients!$C$8),0))=TRUE,0,VLOOKUP($H38,ClientAll,COLUMN(Clients!$C$8),0))","v":150},0,{"$f":"IF(ISNA(VLOOKUP($D38,VehicleID,COLUMN(Vehicles!$A$8),0))=TRUE,\"E1\",IF(ISNA(VLOOKUP($H38,ClientID,COLUMN(Vehicles!$A$8),0))=TRUE,\"E2\",IF(AND($G38<>\"Business\",$H38<>\"XXX01\"),\"E3\",IF(AND($G38=\"Business\",$H38=\"XXX01\"),\"E4\",\"-\"))))","v":"-"}]
["2020-01-17","17:00:00","TL0003","EXS333WC",110628,111043,"Business","ITS01","Client","Work","Client Consultation",2.5,"R Hughes",415,1037.5,{"$f":"IF(ISNA(VLOOKUP($H39,ClientAll,COLUMN(Clients!$C$8),0))=TRUE,0,VLOOKUP($H39,ClientAll,COLUMN(Clients!$C$8),0))","v":415},0,{"$f":"IF(ISNA(VLOOKUP($D39,VehicleID,COLUMN(Vehicles!$A$8),0))=TRUE,\"E1\",IF(ISNA(VLOOKUP($H39,ClientID,COLUMN(Vehicles!$A$8),0))=TRUE,\"E2\",IF(AND($G39<>\"Business\",$H39<>\"XXX01\"),\"E3\",IF(AND($G39=\"Business\",$H39=\"XXX01\"),\"E4\",\"-\"))))","v":"-"}]
["2020-01-20","08:00:00","TL0003","EXS333WC",111043,111458,"Business","ITS01","Work","Client","Client Consultation",2.5,"R Hughes",415,1037.5,{"$f":"IF(ISNA(VLOOKUP($H40,ClientAll,COLUMN(Clients!$C$8),0))=TRUE,0,VLOOKUP($H40,ClientAll,COLUMN(Clients!$C$8),0))","v":415},0,{"$f":"IF(ISNA(VLOOKUP($D40,VehicleID,COLUMN(Vehicles!$A$8),0))=TRUE,\"E1\",IF(ISNA(VLOOKUP($H40,ClientID,COLUMN(Vehicles!$A$8),0))=TRUE,\"E2\",IF(AND($G40<>\"Business\",$H40<>\"XXX01\"),\"E3\",IF(AND($G40=\"Business\",$H40=\"XXX01\"),\"E4\",\"-\"))))","v":"-"}]
["2020-01-20",null,"TL0001","EXS111WC",51740,52042,"Private","XXX01","Various Private","Various Private","Private Travel",0,"A Smith",302,0,{"$f":"IF(ISNA(VLOOKUP($H41,ClientAll,COLUMN(Clients!$C$8),0))=TRUE,0,VLOOKUP($H41,ClientAll,COLUMN(Clients!$C$8),0))","v":0},0,{"$f":"IF(ISNA(VLOOKUP($D41,VehicleID,COLUMN(Vehicles!$A$8),0))=TRUE,\"E1\",IF(ISNA(VLOOKUP($H41,ClientID,COLUMN(Vehicles!$A$8),0))=TRUE,\"E2\",IF(AND($G41<>\"Business\",$H41<>\"XXX01\"),\"E3\",IF(AND($G41=\"Business\",$H41=\"XXX01\"),\"E4\",\"-\"))))","v":"-"}]
["2020-01-20",null,"TL0002","EXS222WC",34689,34712,"Private","XXX01","Various Private","Various Private","Private Travel",0,"C Wilson",23,0,{"$f":"IF(ISNA(VLOOKUP($H42,ClientAll,COLUMN(Clients!$C$8),0))=TRUE,0,VLOOKUP($H42,ClientAll,COLUMN(Clients!$C$8),0))","v":0},0,{"$f":"IF(ISNA(VLOOKUP($D42,VehicleID,COLUMN(Vehicles!$A$8),0))=TRUE,\"E1\",IF(ISNA(VLOOKUP($H42,ClientID,COLUMN(Vehicles!$A$8),0))=TRUE,\"E2\",IF(AND($G42<>\"Business\",$H42<>\"XXX01\"),\"E3\",IF(AND($G42=\"Business\",$H42=\"XXX01\"),\"E4\",\"-\"))))","v":"-"}]
["2020-01-21","08:00:00","TL0001","EXS111WC",52042,52142,"Business","ENE01","Work","Client","Client Consultation",3,"A Smith",100,300,{"$f":"IF(ISNA(VLOOKUP($H43,ClientAll,COLUMN(Clients!$C$8),0))=TRUE,0,VLOOKUP($H43,ClientAll,COLUMN(Clients!$C$8),0))","v":100},0,{"$f":"IF(ISNA(VLOOKUP($D43,VehicleID,COLUMN(Vehicles!$A$8),0))=TRUE,\"E1\",IF(ISNA(VLOOKUP($H43,ClientID,COLUMN(Vehicles!$A$8),0))=TRUE,\"E2\",IF(AND($G43<>\"Business\",$H43<>\"XXX01\"),\"E3\",IF(AND($G43=\"Business\",$H43=\"XXX01\"),\"E4\",\"-\"))))","v":"-"}]
["2020-01-21","08:00:00","TL0002","EXS222WC",34712,34862,"Business","PTY01","Work","Client","Client Consultation",3,"C Wilson",150,450,{"$f":"IF(ISNA(VLOOKUP($H44,ClientAll,COLUMN(Clients!$C$8),0))=TRUE,0,VLOOKUP($H44,ClientAll,COLUMN(Clients!$C$8),0))","v":150},0,{"$f":"IF(ISNA(VLOOKUP($D44,VehicleID,COLUMN(Vehicles!$A$8),0))=TRUE,\"E1\",IF(ISNA(VLOOKUP($H44,ClientID,COLUMN(Vehicles!$A$8),0))=TRUE,\"E2\",IF(AND($G44<>\"Business\",$H44<>\"XXX01\"),\"E3\",IF(AND($G44=\"Business\",$H44=\"XXX01\"),\"E4\",\"-\"))))","v":"-"}]
["2020-01-21",null,"TL0001","EXS111WC",52142,52172,"Private","XXX01","Various Private","Various Private","Private Travel",0,"A Smith",30,0,{"$f":"IF(ISNA(VLOOKUP($H45,ClientAll,COLUMN(Clients!$C$8),0))=TRUE,0,VLOOKUP($H45,ClientAll,COLUMN(Clients!$C$8),0))","v":0},0,{"$f":"IF(ISNA(VLOOKUP($D45,VehicleID,COLUMN(Vehicles!$A$8),0))=TRUE,\"E1\",IF(ISNA(VLOOKUP($H45,ClientID,COLUMN(Vehicles!$A$8),0))=TRUE,\"E2\",IF(AND($G45<>\"Business\",$H45<>\"XXX01\"),\"E3\",IF(AND($G45=\"Business\",$H45=\"XXX01\"),\"E4\",\"-\"))))","v":"-"}]
["2020-01-21",null,"TL0002","EXS222WC",34862,34887,"Private","XXX01","Various Private","Various Private","Private Travel",0,"C Wilson",25,0,{"$f":"IF(ISNA(VLOOKUP($H46,ClientAll,COLUMN(Clients!$C$8),0))=TRUE,0,VLOOKUP($H46,ClientAll,COLUMN(Clients!$C$8),0))","v":0},0,{"$f":"IF(ISNA(VLOOKUP($D46,VehicleID,COLUMN(Vehicles!$A$8),0))=TRUE,\"E1\",IF(ISNA(VLOOKUP($H46,ClientID,COLUMN(Vehicles!$A$8),0))=TRUE,\"E2\",IF(AND($G46<>\"Business\",$H46<>\"XXX01\"),\"E3\",IF(AND($G46=\"Business\",$H46=\"XXX01\"),\"E4\",\"-\"))))","v":"-"}]
["2020-01-22","08:00:00","TL0004","EXS111WC",52172,52272,"Business","ENE01","Work","Client","Client Consultation",3,"A Smith",100,300,{"$f":"IF(ISNA(VLOOKUP($H47,ClientAll,COLUMN(Clients!$C$8),0))=TRUE,0,VLOOKUP($H47,ClientAll,COLUMN(Clients!$C$8),0))","v":100},0,{"$f":"IF(ISNA(VLOOKUP($D47,VehicleID,COLUMN(Vehicles!$A$8),0))=TRUE,\"E1\",IF(ISNA(VLOOKUP($H47,ClientID,COLUMN(Vehicles!$A$8),0))=TRUE,\"E2\",IF(AND($G47<>\"Business\",$H47<>\"XXX01\"),\"E3\",IF(AND($G47=\"Business\",$H47=\"XXX01\"),\"E4\",\"-\"))))","v":"-"}]
["2020-01-22","08:00:00","TL0005","EXS222WC",34887,34927,"Business","SAB01","Work","Client","Client Consultation",3,"C Wilson",40,120,{"$f":"IF(ISNA(VLOOKUP($H48,ClientAll,COLUMN(Clients!$C$8),0))=TRUE,0,VLOOKUP($H48,ClientAll,COLUMN(Clients!$C$8),0))","v":40},0,{"$f":"IF(ISNA(VLOOKUP($D48,VehicleID,COLUMN(Vehicles!$A$8),0))=TRUE,\"E1\",IF(ISNA(VLOOKUP($H48,ClientID,COLUMN(Vehicles!$A$8),0))=TRUE,\"E2\",IF(AND($G48<>\"Business\",$H48<>\"XXX01\"),\"E3\",IF(AND($G48=\"Business\",$H48=\"XXX01\"),\"E4\",\"-\"))))","v":"-"}]
["2020-01-22",null,"TL0004","EXS111WC",52272,52297,"Private","XXX01","Various Private","Various Private","Private Travel",0,"A Smith",25,0,{"$f":"IF(ISNA(VLOOKUP($H49,ClientAll,COLUMN(Clients!$C$8),0))=TRUE,0,VLOOKUP($H49,ClientAll,COLUMN(Clients!$C$8),0))","v":0},0,{"$f":"IF(ISNA(VLOOKUP($D49,VehicleID,COLUMN(Vehicles!$A$8),0))=TRUE,\"E1\",IF(ISNA(VLOOKUP($H49,ClientID,COLUMN(Vehicles!$A$8),0))=TRUE,\"E2\",IF(AND($G49<>\"Business\",$H49<>\"XXX01\"),\"E3\",IF(AND($G49=\"Business\",$H49=\"XXX01\"),\"E4\",\"-\"))))","v":"-"}]
["2020-01-22",null,"TL0005","EXS222WC",34927,34932,"Private","XXX01","Various Private","Various Private","Private Travel",0,"C Wilson",5,0,{"$f":"IF(ISNA(VLOOKUP($H50,ClientAll,COLUMN(Clients!$C$8),0))=TRUE,0,VLOOKUP($H50,ClientAll,COLUMN(Clients!$C$8),0))","v":0},0,{"$f":"IF(ISNA(VLOOKUP($D50,VehicleID,COLUMN(Vehicles!$A$8),0))=TRUE,\"E1\",IF(ISNA(VLOOKUP($H50,ClientID,COLUMN(Vehicles!$A$8),0))=TRUE,\"E2\",IF(AND($G50<>\"Business\",$H50<>\"XXX01\"),\"E3\",IF(AND($G50=\"Business\",$H50=\"XXX01\"),\"E4\",\"-\"))))","v":"-"}]
["2020-01-23","08:00:00","TL0004","EXS111WC",52297,52397,"Business","ENE01","Work","Client","Client Consultation",3,"A Smith",100,300,{"$f":"IF(ISNA(VLOOKUP($H51,ClientAll,COLUMN(Clients!$C$8),0))=TRUE,0,VLOOKUP($H51,ClientAll,COLUMN(Clients!$C$8),0))","v":100},0,{"$f":"IF(ISNA(VLOOKUP($D51,VehicleID,COLUMN(Vehicles!$A$8),0))=TRUE,\"E1\",IF(ISNA(VLOOKUP($H51,ClientID,COLUMN(Vehicles!$A$8),0))=TRUE,\"E2\",IF(AND($G51<>\"Business\",$H51<>\"XXX01\"),\"E3\",IF(AND($G51=\"Business\",$H51=\"XXX01\"),\"E4\",\"-\"))))","v":"-"}]
["2020-01-23","08:00:00","TL0005","EXS222WC",34932,34972,"Business","SAB01","Work","Client","Client Consultation",3,"C Wilson",40,120,{"$f":"IF(ISNA(VLOOKUP($H52,ClientAll,COLUMN(Clients!$C$8),0))=TRUE,0,VLOOKUP($H52,ClientAll,COLUMN(Clients!$C$8),0))","v":40},0,{"$f":"IF(ISNA(VLOOKUP($D52,VehicleID,COLUMN(Vehicles!$A$8),0))=TRUE,\"E1\",IF(ISNA(VLOOKUP($H52,ClientID,COLUMN(Vehicles!$A$8),0))=TRUE,\"E2\",IF(AND($G52<>\"Business\",$H52<>\"XXX01\"),\"E3\",IF(AND($G52=\"Business\",$H52=\"XXX01\"),\"E4\",\"-\"))))","v":"-"}]
["2020-01-23",null,"TL0004","EXS111WC",52397,52453,"Private","XXX01","Various Private","Various Private","Private Travel",0,"A Smith",56,0,{"$f":"IF(ISNA(VLOOKUP($H53,ClientAll,COLUMN(Clients!$C$8),0))=TRUE,0,VLOOKUP($H53,ClientAll,COLUMN(Clients!$C$8),0))","v":0},0,{"$f":"IF(ISNA(VLOOKUP($D53,VehicleID,COLUMN(Vehicles!$A$8),0))=TRUE,\"E1\",IF(ISNA(VLOOKUP($H53,ClientID,COLUMN(Vehicles!$A$8),0))=TRUE,\"E2\",IF(AND($G53<>\"Business\",$H53<>\"XXX01\"),\"E3\",IF(AND($G53=\"Business\",$H53=\"XXX01\"),\"E4\",\"-\"))))","v":"-"}]
["2020-01-23",null,"TL0005","EXS222WC",34972,35026,"Private","XXX01","Various Private","Various Private","Private Travel",0,"C Wilson",54,0,{"$f":"IF(ISNA(VLOOKUP($H54,ClientAll,COLUMN(Clients!$C$8),0))=TRUE,0,VLOOKUP($H54,ClientAll,COLUMN(Clients!$C$8),0))","v":0},0,{"$f":"IF(ISNA(VLOOKUP($D54,VehicleID,COLUMN(Vehicles!$A$8),0))=TRUE,\"E1\",IF(ISNA(VLOOKUP($H54,ClientID,COLUMN(Vehicles!$A$8),0))=TRUE,\"E2\",IF(AND($G54<>\"Business\",$H54<>\"XXX01\"),\"E3\",IF(AND($G54=\"Business\",$H54=\"XXX01\"),\"E4\",\"-\"))))","v":"-"}]
["2020-01-24","08:00:00","TL0004","EXS111WC",52453,52541,"Business","DIG01","Work","Client","Client Consultation",3,"A Smith",88,264,{"$f":"IF(ISNA(VLOOKUP($H55,ClientAll,COLUMN(Clients!$C$8),0))=TRUE,0,VLOOKUP($H55,ClientAll,COLUMN(Clients!$C$8),0))","v":88},0,{"$f":"IF(ISNA(VLOOKUP($D55,VehicleID,COLUMN(Vehicles!$A$8),0))=TRUE,\"E1\",IF(ISNA(VLOOKUP($H55,ClientID,COLUMN(Vehicles!$A$8),0))=TRUE,\"E2\",IF(AND($G55<>\"Business\",$H55<>\"XXX01\"),\"E3\",IF(AND($G55=\"Business\",$H55=\"XXX01\"),\"E4\",\"-\"))))","v":"-"}]
["2020-01-24","08:00:00","TL0005","EXS222WC",35026,35066,"Business","SAB01","Work","Client","Client Consultation",3,"C Wilson",40,120,{"$f":"IF(ISNA(VLOOKUP($H56,ClientAll,COLUMN(Clients!$C$8),0))=TRUE,0,VLOOKUP($H56,ClientAll,COLUMN(Clients!$C$8),0))","v":40},0,{"$f":"IF(ISNA(VLOOKUP($D56,VehicleID,COLUMN(Vehicles!$A$8),0))=TRUE,\"E1\",IF(ISNA(VLOOKUP($H56,ClientID,COLUMN(Vehicles!$A$8),0))=TRUE,\"E2\",IF(AND($G56<>\"Business\",$H56<>\"XXX01\"),\"E3\",IF(AND($G56=\"Business\",$H56=\"XXX01\"),\"E4\",\"-\"))))","v":"-"}]
["2020-01-24","17:00:00","TL0003","EXS333WC",111458,111873,"Business","ITS01","Client","Work","Client Consultation",2.5,"R Hughes",415,1037.5,{"$f":"IF(ISNA(VLOOKUP($H57,ClientAll,COLUMN(Clients!$C$8),0))=TRUE,0,VLOOKUP($H57,ClientAll,COLUMN(Clients!$C$8),0))","v":415},0,{"$f":"IF(ISNA(VLOOKUP($D57,VehicleID,COLUMN(Vehicles!$A$8),0))=TRUE,\"E1\",IF(ISNA(VLOOKUP($H57,ClientID,COLUMN(Vehicles!$A$8),0))=TRUE,\"E2\",IF(AND($G57<>\"Business\",$H57<>\"XXX01\"),\"E3\",IF(AND($G57=\"Business\",$H57=\"XXX01\"),\"E4\",\"-\"))))","v":"-"}]
["2020-01-24",null,"TL0004","EXS111WC",52541,52582,"Private","XXX01","Various Private","Various Private","Private Travel",0,"A Smith",41,0,{"$f":"IF(ISNA(VLOOKUP($H58,ClientAll,COLUMN(Clients!$C$8),0))=TRUE,0,VLOOKUP($H58,ClientAll,COLUMN(Clients!$C$8),0))","v":0},0,{"$f":"IF(ISNA(VLOOKUP($D58,VehicleID,COLUMN(Vehicles!$A$8),0))=TRUE,\"E1\",IF(ISNA(VLOOKUP($H58,ClientID,COLUMN(Vehicles!$A$8),0))=TRUE,\"E2\",IF(AND($G58<>\"Business\",$H58<>\"XXX01\"),\"E3\",IF(AND($G58=\"Business\",$H58=\"XXX01\"),\"E4\",\"-\"))))","v":"-"}]
["2020-01-24",null,"TL0005","EXS222WC",35066,35171,"Private","XXX01","Various Private","Various Private","Private Travel",0,"C Wilson",105,0,{"$f":"IF(ISNA(VLOOKUP($H59,ClientAll,COLUMN(Clients!$C$8),0))=TRUE,0,VLOOKUP($H59,ClientAll,COLUMN(Clients!$C$8),0))","v":0},0,{"$f":"IF(ISNA(VLOOKUP($D59,VehicleID,COLUMN(Vehicles!$A$8),0))=TRUE,\"E1\",IF(ISNA(VLOOKUP($H59,ClientID,COLUMN(Vehicles!$A$8),0))=TRUE,\"E2\",IF(AND($G59<>\"Business\",$H59<>\"XXX01\"),\"E3\",IF(AND($G59=\"Business\",$H59=\"XXX01\"),\"E4\",\"-\"))))","v":"-"}]
["2020-01-27","08:00:00","TL0004","EXS111WC",52582,52670,"Business","DIG01","Work","Client","Client Consultation",3,"A Smith",88,264,{"$f":"IF(ISNA(VLOOKUP($H60,ClientAll,COLUMN(Clients!$C$8),0))=TRUE,0,VLOOKUP($H60,ClientAll,COLUMN(Clients!$C$8),0))","v":88},0,{"$f":"IF(ISNA(VLOOKUP($D60,VehicleID,COLUMN(Vehicles!$A$8),0))=TRUE,\"E1\",IF(ISNA(VLOOKUP($H60,ClientID,COLUMN(Vehicles!$A$8),0))=TRUE,\"E2\",IF(AND($G60<>\"Business\",$H60<>\"XXX01\"),\"E3\",IF(AND($G60=\"Business\",$H60=\"XXX01\"),\"E4\",\"-\"))))","v":"-"}]
["2020-01-27","08:00:00","TL0005","EXS222WC",35171,35186,"Business","WCA01","Work","Client","Client Consultation",3,"C Wilson",15,45,{"$f":"IF(ISNA(VLOOKUP($H61,ClientAll,COLUMN(Clients!$C$8),0))=TRUE,0,VLOOKUP($H61,ClientAll,COLUMN(Clients!$C$8),0))","v":15},0,{"$f":"IF(ISNA(VLOOKUP($D61,VehicleID,COLUMN(Vehicles!$A$8),0))=TRUE,\"E1\",IF(ISNA(VLOOKUP($H61,ClientID,COLUMN(Vehicles!$A$8),0))=TRUE,\"E2\",IF(AND($G61<>\"Business\",$H61<>\"XXX01\"),\"E3\",IF(AND($G61=\"Business\",$H61=\"XXX01\"),\"E4\",\"-\"))))","v":"-"}]
["2020-01-27",null,"TL0004","EXS111WC",52670,52706,"Private","XXX01","Various Private","Various Private","Private Travel",0,"A Smith",36,0,{"$f":"IF(ISNA(VLOOKUP($H62,ClientAll,COLUMN(Clients!$C$8),0))=TRUE,0,VLOOKUP($H62,ClientAll,COLUMN(Clients!$C$8),0))","v":0},0,{"$f":"IF(ISNA(VLOOKUP($D62,VehicleID,COLUMN(Vehicles!$A$8),0))=TRUE,\"E1\",IF(ISNA(VLOOKUP($H62,ClientID,COLUMN(Vehicles!$A$8),0))=TRUE,\"E2\",IF(AND($G62<>\"Business\",$H62<>\"XXX01\"),\"E3\",IF(AND($G62=\"Business\",$H62=\"XXX01\"),\"E4\",\"-\"))))","v":"-"}]
["2020-01-27",null,"TL0005","EXS222WC",35186,35211,"Private","XXX01","Various Private","Various Private","Private Travel",0,"C Wilson",25,0,{"$f":"IF(ISNA(VLOOKUP($H63,ClientAll,COLUMN(Clients!$C$8),0))=TRUE,0,VLOOKUP($H63,ClientAll,COLUMN(Clients!$C$8),0))","v":0},0,{"$f":"IF(ISNA(VLOOKUP($D63,VehicleID,COLUMN(Vehicles!$A$8),0))=TRUE,\"E1\",IF(ISNA(VLOOKUP($H63,ClientID,COLUMN(Vehicles!$A$8),0))=TRUE,\"E2\",IF(AND($G63<>\"Business\",$H63<>\"XXX01\"),\"E3\",IF(AND($G63=\"Business\",$H63=\"XXX01\"),\"E4\",\"-\"))))","v":"-"}]
["2020-01-28","08:00:00","TL0004","EXS111WC",52706,52794,"Business","DIG01","Work","Client","Client Consultation",3,"A Smith",88,264,{"$f":"IF(ISNA(VLOOKUP($H64,ClientAll,COLUMN(Clients!$C$8),0))=TRUE,0,VLOOKUP($H64,ClientAll,COLUMN(Clients!$C$8),0))","v":88},0,{"$f":"IF(ISNA(VLOOKUP($D64,VehicleID,COLUMN(Vehicles!$A$8),0))=TRUE,\"E1\",IF(ISNA(VLOOKUP($H64,ClientID,COLUMN(Vehicles!$A$8),0))=TRUE,\"E2\",IF(AND($G64<>\"Business\",$H64<>\"XXX01\"),\"E3\",IF(AND($G64=\"Business\",$H64=\"XXX01\"),\"E4\",\"-\"))))","v":"-"}]
["2020-01-28","08:00:00","TL0005","EXS222WC",35211,35226,"Business","WCA01","Work","Client","Client Consultation",3,"C Wilson",15,45,{"$f":"IF(ISNA(VLOOKUP($H65,ClientAll,COLUMN(Clients!$C$8),0))=TRUE,0,VLOOKUP($H65,ClientAll,COLUMN(Clients!$C$8),0))","v":15},0,{"$f":"IF(ISNA(VLOOKUP($D65,VehicleID,COLUMN(Vehicles!$A$8),0))=TRUE,\"E1\",IF(ISNA(VLOOKUP($H65,ClientID,COLUMN(Vehicles!$A$8),0))=TRUE,\"E2\",IF(AND($G65<>\"Business\",$H65<>\"XXX01\"),\"E3\",IF(AND($G65=\"Business\",$H65=\"XXX01\"),\"E4\",\"-\"))))","v":"-"}]
["2020-01-28",null,"TL0004","EXS111WC",52794,52902,"Private","XXX01","Various Private","Various Private","Private Travel",0,"A Smith",108,0,{"$f":"IF(ISNA(VLOOKUP($H66,ClientAll,COLUMN(Clients!$C$8),0))=TRUE,0,VLOOKUP($H66,ClientAll,COLUMN(Clients!$C$8),0))","v":0},0,{"$f":"IF(ISNA(VLOOKUP($D66,VehicleID,COLUMN(Vehicles!$A$8),0))=TRUE,\"E1\",IF(ISNA(VLOOKUP($H66,ClientID,COLUMN(Vehicles!$A$8),0))=TRUE,\"E2\",IF(AND($G66<>\"Business\",$H66<>\"XXX01\"),\"E3\",IF(AND($G66=\"Business\",$H66=\"XXX01\"),\"E4\",\"-\"))))","v":"-"}]
["2020-01-28",null,"TL0005","EXS222WC",35226,35231,"Private","XXX01","Various Private","Various Private","Private Travel",0,"C Wilson",5,0,{"$f":"IF(ISNA(VLOOKUP($H67,ClientAll,COLUMN(Clients!$C$8),0))=TRUE,0,VLOOKUP($H67,ClientAll,COLUMN(Clients!$C$8),0))","v":0},0,{"$f":"IF(ISNA(VLOOKUP($D67,VehicleID,COLUMN(Vehicles!$A$8),0))=TRUE,\"E1\",IF(ISNA(VLOOKUP($H67,ClientID,COLUMN(Vehicles!$A$8),0))=TRUE,\"E2\",IF(AND($G67<>\"Business\",$H67<>\"XXX01\"),\"E3\",IF(AND($G67=\"Business\",$H67=\"XXX01\"),\"E4\",\"-\"))))","v":"-"}]
["2020-01-29","08:00:00","TL0004","EXS111WC",52902,53002,"Business","ENE01","Work","Client","Client Consultation",3,"A Smith",{"$f":"F68-E68","v":100},{"$f":"N68*L68","v":300},{"$f":"IF(ISNA(VLOOKUP($H68,ClientAll,COLUMN(Clients!$C$8),0))=TRUE,0,VLOOKUP($H68,ClientAll,COLUMN(Clients!$C$8),0))","v":100},{"$f":"IF(G68=\"Private\",0,N68-P68)","v":0},{"$f":"IF(ISNA(VLOOKUP($D68,VehicleID,COLUMN(Vehicles!$A$8),0))=TRUE,\"E1\",IF(ISNA(VLOOKUP($H68,ClientID,COLUMN(Vehicles!$A$8),0))=TRUE,\"E2\",IF(AND($G68<>\"Business\",$H68<>\"XXX01\"),\"E3\",IF(AND($G68=\"Business\",$H68=\"XXX01\"),\"E4\",\"-\"))))","v":"-"}]
["2020-01-29","08:00:00","TL0005","EXS222WC",35231,35331,"Business","ENE01","Work","Client","Client Consultation",3,"C Wilson",100,300,{"$f":"IF(ISNA(VLOOKUP($H69,ClientAll,COLUMN(Clients!$C$8),0))=TRUE,0,VLOOKUP($H69,ClientAll,COLUMN(Clients!$C$8),0))","v":100},0,{"$f":"IF(ISNA(VLOOKUP($D69,VehicleID,COLUMN(Vehicles!$A$8),0))=TRUE,\"E1\",IF(ISNA(VLOOKUP($H69,ClientID,COLUMN(Vehicles!$A$8),0))=TRUE,\"E2\",IF(AND($G69<>\"Business\",$H69<>\"XXX01\"),\"E3\",IF(AND($G69=\"Business\",$H69=\"XXX01\"),\"E4\",\"-\"))))","v":"-"}]
["2020-01-29",null,"TL0004","EXS111WC",53002,53038,"Private","XXX01","Various Private","Various Private","Private Travel",0,"A Smith",36,0,{"$f":"IF(ISNA(VLOOKUP($H70,ClientAll,COLUMN(Clients!$C$8),0))=TRUE,0,VLOOKUP($H70,ClientAll,COLUMN(Clients!$C$8),0))","v":0},0,{"$f":"IF(ISNA(VLOOKUP($D70,VehicleID,COLUMN(Vehicles!$A$8),0))=TRUE,\"E1\",IF(ISNA(VLOOKUP($H70,ClientID,COLUMN(Vehicles!$A$8),0))=TRUE,\"E2\",IF(AND($G70<>\"Business\",$H70<>\"XXX01\"),\"E3\",IF(AND($G70=\"Business\",$H70=\"XXX01\"),\"E4\",\"-\"))))","v":"-"}]
["2020-01-29",null,"TL0005","EXS222WC",35331,35331,"Private","XXX01","Various Private","Various Private","Private Travel",0,"C Wilson",0,0,{"$f":"IF(ISNA(VLOOKUP($H71,ClientAll,COLUMN(Clients!$C$8),0))=TRUE,0,VLOOKUP($H71,ClientAll,COLUMN(Clients!$C$8),0))","v":0},0,{"$f":"IF(ISNA(VLOOKUP($D71,VehicleID,COLUMN(Vehicles!$A$8),0))=TRUE,\"E1\",IF(ISNA(VLOOKUP($H71,ClientID,COLUMN(Vehicles!$A$8),0))=TRUE,\"E2\",IF(AND($G71<>\"Business\",$H71<>\"XXX01\"),\"E3\",IF(AND($G71=\"Business\",$H71=\"XXX01\"),\"E4\",\"-\"))))","v":"-"}]
["2020-01-30","08:00:00","TL0004","EXS111WC",53038,53138,"Business","ENE01","Work","Client","Client Consultation",3,"A Smith",100,300,{"$f":"IF(ISNA(VLOOKUP($H72,ClientAll,COLUMN(Clients!$C$8),0))=TRUE,0,VLOOKUP($H72,ClientAll,COLUMN(Clients!$C$8),0))","v":100},0,{"$f":"IF(ISNA(VLOOKUP($D72,VehicleID,COLUMN(Vehicles!$A$8),0))=TRUE,\"E1\",IF(ISNA(VLOOKUP($H72,ClientID,COLUMN(Vehicles!$A$8),0))=TRUE,\"E2\",IF(AND($G72<>\"Business\",$H72<>\"XXX01\"),\"E3\",IF(AND($G72=\"Business\",$H72=\"XXX01\"),\"E4\",\"-\"))))","v":"-"}]
["2020-01-30","08:00:00","TL0005","EXS222WC",35331,35431,"Business","ENE01","Work","Client","Client Consultation",3,"C Wilson",100,300,{"$f":"IF(ISNA(VLOOKUP($H73,ClientAll,COLUMN(Clients!$C$8),0))=TRUE,0,VLOOKUP($H73,ClientAll,COLUMN(Clients!$C$8),0))","v":100},0,{"$f":"IF(ISNA(VLOOKUP($D73,VehicleID,COLUMN(Vehicles!$A$8),0))=TRUE,\"E1\",IF(ISNA(VLOOKUP($H73,ClientID,COLUMN(Vehicles!$A$8),0))=TRUE,\"E2\",IF(AND($G73<>\"Business\",$H73<>\"XXX01\"),\"E3\",IF(AND($G73=\"Business\",$H73=\"XXX01\"),\"E4\",\"-\"))))","v":"-"}]
["2020-01-30",null,"TL0004","EXS111WC",53138,53392,"Private","XXX01","Various Private","Various Private","Private Travel",0,"A Smith",254,0,{"$f":"IF(ISNA(VLOOKUP($H74,ClientAll,COLUMN(Clients!$C$8),0))=TRUE,0,VLOOKUP($H74,ClientAll,COLUMN(Clients!$C$8),0))","v":0},0,{"$f":"IF(ISNA(VLOOKUP($D74,VehicleID,COLUMN(Vehicles!$A$8),0))=TRUE,\"E1\",IF(ISNA(VLOOKUP($H74,ClientID,COLUMN(Vehicles!$A$8),0))=TRUE,\"E2\",IF(AND($G74<>\"Business\",$H74<>\"XXX01\"),\"E3\",IF(AND($G74=\"Business\",$H74=\"XXX01\"),\"E4\",\"-\"))))","v":"-"}]
["2020-01-30",null,"TL0005","EXS222WC",35431,35436,"Private","XXX01","Various Private","Various Private","Private Travel",0,"C Wilson",5,0,{"$f":"IF(ISNA(VLOOKUP($H75,ClientAll,COLUMN(Clients!$C$8),0))=TRUE,0,VLOOKUP($H75,ClientAll,COLUMN(Clients!$C$8),0))","v":0},0,{"$f":"IF(ISNA(VLOOKUP($D75,VehicleID,COLUMN(Vehicles!$A$8),0))=TRUE,\"E1\",IF(ISNA(VLOOKUP($H75,ClientID,COLUMN(Vehicles!$A$8),0))=TRUE,\"E2\",IF(AND($G75<>\"Business\",$H75<>\"XXX01\"),\"E3\",IF(AND($G75=\"Business\",$H75=\"XXX01\"),\"E4\",\"-\"))))","v":"-"}]
["2020-02-03","08:00:00","TL0004","EXS111WC",53392,53492,"Business","ENE01","Work","Client","Client Consultation",3,"A Smith",100,300,{"$f":"IF(ISNA(VLOOKUP($H76,ClientAll,COLUMN(Clients!$C$8),0))=TRUE,0,VLOOKUP($H76,ClientAll,COLUMN(Clients!$C$8),0))","v":100},0,{"$f":"IF(ISNA(VLOOKUP($D76,VehicleID,COLUMN(Vehicles!$A$8),0))=TRUE,\"E1\",IF(ISNA(VLOOKUP($H76,ClientID,COLUMN(Vehicles!$A$8),0))=TRUE,\"E2\",IF(AND($G76<>\"Business\",$H76<>\"XXX01\"),\"E3\",IF(AND($G76=\"Business\",$H76=\"XXX01\"),\"E4\",\"-\"))))","v":"-"}]
["2020-02-03","08:00:00","TL0005","EXS222WC",35436,35536,"Business","ENE01","Work","Client","Client Consultation",3,"C Wilson",100,300,{"$f":"IF(ISNA(VLOOKUP($H77,ClientAll,COLUMN(Clients!$C$8),0))=TRUE,0,VLOOKUP($H77,ClientAll,COLUMN(Clients!$C$8),0))","v":100},0,{"$f":"IF(ISNA(VLOOKUP($D77,VehicleID,COLUMN(Vehicles!$A$8),0))=TRUE,\"E1\",IF(ISNA(VLOOKUP($H77,ClientID,COLUMN(Vehicles!$A$8),0))=TRUE,\"E2\",IF(AND($G77<>\"Business\",$H77<>\"XXX01\"),\"E3\",IF(AND($G77=\"Business\",$H77=\"XXX01\"),\"E4\",\"-\"))))","v":"-"}]
["2020-02-03","08:00:00","TL0003","EXS333WC",111873,112293,"Business","KZB01","Work","Client","Client Consultation",2.5,"P Butler",420,1050,{"$f":"IF(ISNA(VLOOKUP($H78,ClientAll,COLUMN(Clients!$C$8),0))=TRUE,0,VLOOKUP($H78,ClientAll,COLUMN(Clients!$C$8),0))","v":420},0,{"$f":"IF(ISNA(VLOOKUP($D78,VehicleID,COLUMN(Vehicles!$A$8),0))=TRUE,\"E1\",IF(ISNA(VLOOKUP($H78,ClientID,COLUMN(Vehicles!$A$8),0))=TRUE,\"E2\",IF(AND($G78<>\"Business\",$H78<>\"XXX01\"),\"E3\",IF(AND($G78=\"Business\",$H78=\"XXX01\"),\"E4\",\"-\"))))","v":"-"}]
["2020-02-03",null,"TL0004","EXS111WC",53492,53525,"Private","XXX01","Various Private","Various Private","Private Travel",0,"A Smith",33,0,{"$f":"IF(ISNA(VLOOKUP($H79,ClientAll,COLUMN(Clients!$C$8),0))=TRUE,0,VLOOKUP($H79,ClientAll,COLUMN(Clients!$C$8),0))","v":0},0,{"$f":"IF(ISNA(VLOOKUP($D79,VehicleID,COLUMN(Vehicles!$A$8),0))=TRUE,\"E1\",IF(ISNA(VLOOKUP($H79,ClientID,COLUMN(Vehicles!$A$8),0))=TRUE,\"E2\",IF(AND($G79<>\"Business\",$H79<>\"XXX01\"),\"E3\",IF(AND($G79=\"Business\",$H79=\"XXX01\"),\"E4\",\"-\"))))","v":"-"}]
["2020-02-03",null,"TL0005","EXS222WC",35536,35541,"Private","XXX01","Various Private","Various Private","Private Travel",0,"C Wilson",5,0,{"$f":"IF(ISNA(VLOOKUP($H80,ClientAll,COLUMN(Clients!$C$8),0))=TRUE,0,VLOOKUP($H80,ClientAll,COLUMN(Clients!$C$8),0))","v":0},0,{"$f":"IF(ISNA(VLOOKUP($D80,VehicleID,COLUMN(Vehicles!$A$8),0))=TRUE,\"E1\",IF(ISNA(VLOOKUP($H80,ClientID,COLUMN(Vehicles!$A$8),0))=TRUE,\"E2\",IF(AND($G80<>\"Business\",$H80<>\"XXX01\"),\"E3\",IF(AND($G80=\"Business\",$H80=\"XXX01\"),\"E4\",\"-\"))))","v":"-"}]
["2020-02-04","08:00:00","TL0004","EXS111WC",53525,53600,"Business","ABC01","Work","Client","Client Consultation",3,"A Smith",75,225,{"$f":"IF(ISNA(VLOOKUP($H81,ClientAll,COLUMN(Clients!$C$8),0))=TRUE,0,VLOOKUP($H81,ClientAll,COLUMN(Clients!$C$8),0))","v":75},0,{"$f":"IF(ISNA(VLOOKUP($D81,VehicleID,COLUMN(Vehicles!$A$8),0))=TRUE,\"E1\",IF(ISNA(VLOOKUP($H81,ClientID,COLUMN(Vehicles!$A$8),0))=TRUE,\"E2\",IF(AND($G81<>\"Business\",$H81<>\"XXX01\"),\"E3\",IF(AND($G81=\"Business\",$H81=\"XXX01\"),\"E4\",\"-\"))))","v":"-"}]
["2020-02-04","08:00:00","TL0005","EXS222WC",35541,35573,"Business","TPS01","Work","Client","Client Consultation",3,"C Wilson",32,96,{"$f":"IF(ISNA(VLOOKUP($H82,ClientAll,COLUMN(Clients!$C$8),0))=TRUE,0,VLOOKUP($H82,ClientAll,COLUMN(Clients!$C$8),0))","v":32},0,{"$f":"IF(ISNA(VLOOKUP($D82,VehicleID,COLUMN(Vehicles!$A$8),0))=TRUE,\"E1\",IF(ISNA(VLOOKUP($H82,ClientID,COLUMN(Vehicles!$A$8),0))=TRUE,\"E2\",IF(AND($G82<>\"Business\",$H82<>\"XXX01\"),\"E3\",IF(AND($G82=\"Business\",$H82=\"XXX01\"),\"E4\",\"-\"))))","v":"-"}]
["2020-02-04",null,"TL0004","EXS111WC",53600,53685,"Private","XXX01","Various Private","Various Private","Private Travel",0,"A Smith",85,0,{"$f":"IF(ISNA(VLOOKUP($H83,ClientAll,COLUMN(Clients!$C$8),0))=TRUE,0,VLOOKUP($H83,ClientAll,COLUMN(Clients!$C$8),0))","v":0},0,{"$f":"IF(ISNA(VLOOKUP($D83,VehicleID,COLUMN(Vehicles!$A$8),0))=TRUE,\"E1\",IF(ISNA(VLOOKUP($H83,ClientID,COLUMN(Vehicles!$A$8),0))=TRUE,\"E2\",IF(AND($G83<>\"Business\",$H83<>\"XXX01\"),\"E3\",IF(AND($G83=\"Business\",$H83=\"XXX01\"),\"E4\",\"-\"))))","v":"-"}]
["2020-02-04",null,"TL0005","EXS222WC",35573,35587,"Private","XXX01","Various Private","Various Private","Private Travel",0,"C Wilson",14,0,{"$f":"IF(ISNA(VLOOKUP($H84,ClientAll,COLUMN(Clients!$C$8),0))=TRUE,0,VLOOKUP($H84,ClientAll,COLUMN(Clients!$C$8),0))","v":0},0,{"$f":"IF(ISNA(VLOOKUP($D84,VehicleID,COLUMN(Vehicles!$A$8),0))=TRUE,\"E1\",IF(ISNA(VLOOKUP($H84,ClientID,COLUMN(Vehicles!$A$8),0))=TRUE,\"E2\",IF(AND($G84<>\"Business\",$H84<>\"XXX01\"),\"E3\",IF(AND($G84=\"Business\",$H84=\"XXX01\"),\"E4\",\"-\"))))","v":"-"}]
["2020-02-05","08:00:00","TL0004","EXS111WC",53685,53760,"Business","ABC01","Work","Client","Client Consultation",3,"A Smith",75,225,{"$f":"IF(ISNA(VLOOKUP($H85,ClientAll,COLUMN(Clients!$C$8),0))=TRUE,0,VLOOKUP($H85,ClientAll,COLUMN(Clients!$C$8),0))","v":75},0,{"$f":"IF(ISNA(VLOOKUP($D85,VehicleID,COLUMN(Vehicles!$A$8),0))=TRUE,\"E1\",IF(ISNA(VLOOKUP($H85,ClientID,COLUMN(Vehicles!$A$8),0))=TRUE,\"E2\",IF(AND($G85<>\"Business\",$H85<>\"XXX01\"),\"E3\",IF(AND($G85=\"Business\",$H85=\"XXX01\"),\"E4\",\"-\"))))","v":"-"}]
["2020-02-05","08:00:00","TL0005","EXS222WC",35587,35619,"Business","TPS01","Work","Client","Client Consultation",3,"C Wilson",32,96,{"$f":"IF(ISNA(VLOOKUP($H86,ClientAll,COLUMN(Clients!$C$8),0))=TRUE,0,VLOOKUP($H86,ClientAll,COLUMN(Clients!$C$8),0))","v":32},0,{"$f":"IF(ISNA(VLOOKUP($D86,VehicleID,COLUMN(Vehicles!$A$8),0))=TRUE,\"E1\",IF(ISNA(VLOOKUP($H86,ClientID,COLUMN(Vehicles!$A$8),0))=TRUE,\"E2\",IF(AND($G86<>\"Business\",$H86<>\"XXX01\"),\"E3\",IF(AND($G86=\"Business\",$H86=\"XXX01\"),\"E4\",\"-\"))))","v":"-"}]
["2020-02-05",null,"TL0004","EXS111WC",53760,53836,"Private","XXX01","Various Private","Various Private","Private Travel",0,"A Smith",76,0,{"$f":"IF(ISNA(VLOOKUP($H87,ClientAll,COLUMN(Clients!$C$8),0))=TRUE,0,VLOOKUP($H87,ClientAll,COLUMN(Clients!$C$8),0))","v":0},0,{"$f":"IF(ISNA(VLOOKUP($D87,VehicleID,COLUMN(Vehicles!$A$8),0))=TRUE,\"E1\",IF(ISNA(VLOOKUP($H87,ClientID,COLUMN(Vehicles!$A$8),0))=TRUE,\"E2\",IF(AND($G87<>\"Business\",$H87<>\"XXX01\"),\"E3\",IF(AND($G87=\"Business\",$H87=\"XXX01\"),\"E4\",\"-\"))))","v":"-"}]
["2020-02-05",null,"TL0005","EXS222WC",35619,35633,"Private","XXX01","Various Private","Various Private","Private Travel",0,"C Wilson",14,0,{"$f":"IF(ISNA(VLOOKUP($H88,ClientAll,COLUMN(Clients!$C$8),0))=TRUE,0,VLOOKUP($H88,ClientAll,COLUMN(Clients!$C$8),0))","v":0},0,{"$f":"IF(ISNA(VLOOKUP($D88,VehicleID,COLUMN(Vehicles!$A$8),0))=TRUE,\"E1\",IF(ISNA(VLOOKUP($H88,ClientID,COLUMN(Vehicles!$A$8),0))=TRUE,\"E2\",IF(AND($G88<>\"Business\",$H88<>\"XXX01\"),\"E3\",IF(AND($G88=\"Business\",$H88=\"XXX01\"),\"E4\",\"-\"))))","v":"-"}]
["2020-02-06","08:00:00","TL0006","EXS111WC",53836,53911,"Business","ABC01","Work","Client","Client Consultation",3,"A Smith",75,225,{"$f":"IF(ISNA(VLOOKUP($H89,ClientAll,COLUMN(Clients!$C$8),0))=TRUE,0,VLOOKUP($H89,ClientAll,COLUMN(Clients!$C$8),0))","v":75},0,{"$f":"IF(ISNA(VLOOKUP($D89,VehicleID,COLUMN(Vehicles!$A$8),0))=TRUE,\"E1\",IF(ISNA(VLOOKUP($H89,ClientID,COLUMN(Vehicles!$A$8),0))=TRUE,\"E2\",IF(AND($G89<>\"Business\",$H89<>\"XXX01\"),\"E3\",IF(AND($G89=\"Business\",$H89=\"XXX01\"),\"E4\",\"-\"))))","v":"-"}]
["2020-02-06","08:00:00","TL0007","EXS222WC",35633,35665,"Business","TPS01","Work","Client","Client Consultation",3,"C Wilson",32,96,{"$f":"IF(ISNA(VLOOKUP($H90,ClientAll,COLUMN(Clients!$C$8),0))=TRUE,0,VLOOKUP($H90,ClientAll,COLUMN(Clients!$C$8),0))","v":32},0,{"$f":"IF(ISNA(VLOOKUP($D90,VehicleID,COLUMN(Vehicles!$A$8),0))=TRUE,\"E1\",IF(ISNA(VLOOKUP($H90,ClientID,COLUMN(Vehicles!$A$8),0))=TRUE,\"E2\",IF(AND($G90<>\"Business\",$H90<>\"XXX01\"),\"E3\",IF(AND($G90=\"Business\",$H90=\"XXX01\"),\"E4\",\"-\"))))","v":"-"}]
["2020-02-06","17:00:00","TL0003","EXS333WC",112293,112713,"Business","KZB01","Client","Work","Client Consultation",2.5,"P Butler",420,1050,{"$f":"IF(ISNA(VLOOKUP($H91,ClientAll,COLUMN(Clients!$C$8),0))=TRUE,0,VLOOKUP($H91,ClientAll,COLUMN(Clients!$C$8),0))","v":420},0,{"$f":"IF(ISNA(VLOOKUP($D91,VehicleID,COLUMN(Vehicles!$A$8),0))=TRUE,\"E1\",IF(ISNA(VLOOKUP($H91,ClientID,COLUMN(Vehicles!$A$8),0))=TRUE,\"E2\",IF(AND($G91<>\"Business\",$H91<>\"XXX01\"),\"E3\",IF(AND($G91=\"Business\",$H91=\"XXX01\"),\"E4\",\"-\"))))","v":"-"}]
["2020-02-07",null,"TL0006","EXS111WC",53911,53974,"Private","XXX01","Various Private","Various Private","Private Travel",0,"A Smith",63,0,{"$f":"IF(ISNA(VLOOKUP($H92,ClientAll,COLUMN(Clients!$C$8),0))=TRUE,0,VLOOKUP($H92,ClientAll,COLUMN(Clients!$C$8),0))","v":0},0,{"$f":"IF(ISNA(VLOOKUP($D92,VehicleID,COLUMN(Vehicles!$A$8),0))=TRUE,\"E1\",IF(ISNA(VLOOKUP($H92,ClientID,COLUMN(Vehicles!$A$8),0))=TRUE,\"E2\",IF(AND($G92<>\"Business\",$H92<>\"XXX01\"),\"E3\",IF(AND($G92=\"Business\",$H92=\"XXX01\"),\"E4\",\"-\"))))","v":"-"}]
["2020-02-07",null,"TL0007","EXS222WC",35665,35678,"Private","XXX01","Various Private","Various Private","Private Travel",0,"C Wilson",13,0,{"$f":"IF(ISNA(VLOOKUP($H93,ClientAll,COLUMN(Clients!$C$8),0))=TRUE,0,VLOOKUP($H93,ClientAll,COLUMN(Clients!$C$8),0))","v":0},0,{"$f":"IF(ISNA(VLOOKUP($D93,VehicleID,COLUMN(Vehicles!$A$8),0))=TRUE,\"E1\",IF(ISNA(VLOOKUP($H93,ClientID,COLUMN(Vehicles!$A$8),0))=TRUE,\"E2\",IF(AND($G93<>\"Business\",$H93<>\"XXX01\"),\"E3\",IF(AND($G93=\"Business\",$H93=\"XXX01\"),\"E4\",\"-\"))))","v":"-"}]
["2020-02-10","08:00:00","TL0006","EXS111WC",53974,54049,"Business","ABC01","Work","Client","Client Consultation",3,"A Smith",75,225,{"$f":"IF(ISNA(VLOOKUP($H94,ClientAll,COLUMN(Clients!$C$8),0))=TRUE,0,VLOOKUP($H94,ClientAll,COLUMN(Clients!$C$8),0))","v":75},0,{"$f":"IF(ISNA(VLOOKUP($D94,VehicleID,COLUMN(Vehicles!$A$8),0))=TRUE,\"E1\",IF(ISNA(VLOOKUP($H94,ClientID,COLUMN(Vehicles!$A$8),0))=TRUE,\"E2\",IF(AND($G94<>\"Business\",$H94<>\"XXX01\"),\"E3\",IF(AND($G94=\"Business\",$H94=\"XXX01\"),\"E4\",\"-\"))))","v":"-"}]
["2020-02-10","08:00:00","TL0007","EXS222WC",35678,35710,"Business","TPS01","Work","Client","Client Consultation",3,"C Wilson",32,96,{"$f":"IF(ISNA(VLOOKUP($H95,ClientAll,COLUMN(Clients!$C$8),0))=TRUE,0,VLOOKUP($H95,ClientAll,COLUMN(Clients!$C$8),0))","v":32},0,{"$f":"IF(ISNA(VLOOKUP($D95,VehicleID,COLUMN(Vehicles!$A$8),0))=TRUE,\"E1\",IF(ISNA(VLOOKUP($H95,ClientID,COLUMN(Vehicles!$A$8),0))=TRUE,\"E2\",IF(AND($G95<>\"Business\",$H95<>\"XXX01\"),\"E3\",IF(AND($G95=\"Business\",$H95=\"XXX01\"),\"E4\",\"-\"))))","v":"-"}]
["2020-02-10","08:00:00","TL0003","EXS333WC",112713,113133,"Business","KZB01","Work","Client","Client Consultation",2.5,"P Butler",420,1050,{"$f":"IF(ISNA(VLOOKUP($H96,ClientAll,COLUMN(Clients!$C$8),0))=TRUE,0,VLOOKUP($H96,ClientAll,COLUMN(Clients!$C$8),0))","v":420},0,{"$f":"IF(ISNA(VLOOKUP($D96,VehicleID,COLUMN(Vehicles!$A$8),0))=TRUE,\"E1\",IF(ISNA(VLOOKUP($H96,ClientID,COLUMN(Vehicles!$A$8),0))=TRUE,\"E2\",IF(AND($G96<>\"Business\",$H96<>\"XXX01\"),\"E3\",IF(AND($G96=\"Business\",$H96=\"XXX01\"),\"E4\",\"-\"))))","v":"-"}]
["2020-02-10",null,"TL0006","EXS111WC",54049,54111,"Private","XXX01","Various Private","Various Private","Private Travel",0,"A Smith",62,0,{"$f":"IF(ISNA(VLOOKUP($H97,ClientAll,COLUMN(Clients!$C$8),0))=TRUE,0,VLOOKUP($H97,ClientAll,COLUMN(Clients!$C$8),0))","v":0},0,{"$f":"IF(ISNA(VLOOKUP($D97,VehicleID,COLUMN(Vehicles!$A$8),0))=TRUE,\"E1\",IF(ISNA(VLOOKUP($H97,ClientID,COLUMN(Vehicles!$A$8),0))=TRUE,\"E2\",IF(AND($G97<>\"Business\",$H97<>\"XXX01\"),\"E3\",IF(AND($G97=\"Business\",$H97=\"XXX01\"),\"E4\",\"-\"))))","v":"-"}]
["2020-02-10",null,"TL0007","EXS222WC",35710,35735,"Private","XXX01","Various Private","Various Private","Private Travel",0,"C Wilson",25,0,{"$f":"IF(ISNA(VLOOKUP($H98,ClientAll,COLUMN(Clients!$C$8),0))=TRUE,0,VLOOKUP($H98,ClientAll,COLUMN(Clients!$C$8),0))","v":0},0,{"$f":"IF(ISNA(VLOOKUP($D98,VehicleID,COLUMN(Vehicles!$A$8),0))=TRUE,\"E1\",IF(ISNA(VLOOKUP($H98,ClientID,COLUMN(Vehicles!$A$8),0))=TRUE,\"E2\",IF(AND($G98<>\"Business\",$H98<>\"XXX01\"),\"E3\",IF(AND($G98=\"Business\",$H98=\"XXX01\"),\"E4\",\"-\"))))","v":"-"}]
["2020-02-11","08:00:00","TL0006","EXS111WC",54111,54186,"Business","ABC01","Work","Client","Client Consultation",3,"A Smith",75,225,{"$f":"IF(ISNA(VLOOKUP($H99,ClientAll,COLUMN(Clients!$C$8),0))=TRUE,0,VLOOKUP($H99,ClientAll,COLUMN(Clients!$C$8),0))","v":75},0,{"$f":"IF(ISNA(VLOOKUP($D99,VehicleID,COLUMN(Vehicles!$A$8),0))=TRUE,\"E1\",IF(ISNA(VLOOKUP($H99,ClientID,COLUMN(Vehicles!$A$8),0))=TRUE,\"E2\",IF(AND($G99<>\"Business\",$H99<>\"XXX01\"),\"E3\",IF(AND($G99=\"Business\",$H99=\"XXX01\"),\"E4\",\"-\"))))","v":"-"}]
["2020-02-11","08:00:00","TL0007","EXS222WC",35735,35767,"Business","TPS01","Work","Client","Client Consultation",3,"C Wilson",32,96,{"$f":"IF(ISNA(VLOOKUP($H100,ClientAll,COLUMN(Clients!$C$8),0))=TRUE,0,VLOOKUP($H100,ClientAll,COLUMN(Clients!$C$8),0))","v":32},0,{"$f":"IF(ISNA(VLOOKUP($D100,VehicleID,COLUMN(Vehicles!$A$8),0))=TRUE,\"E1\",IF(ISNA(VLOOKUP($H100,ClientID,COLUMN(Vehicles!$A$8),0))=TRUE,\"E2\",IF(AND($G100<>\"Business\",$H100<>\"XXX01\"),\"E3\",IF(AND($G100=\"Business\",$H100=\"XXX01\"),\"E4\",\"-\"))))","v":"-"}]
["2020-02-11",null,"TL0006","EXS111WC",54186,54260,"Private","XXX01","Various Private","Various Private","Private Travel",0,"A Smith",74,0,{"$f":"IF(ISNA(VLOOKUP($H101,ClientAll,COLUMN(Clients!$C$8),0))=TRUE,0,VLOOKUP($H101,ClientAll,COLUMN(Clients!$C$8),0))","v":0},0,{"$f":"IF(ISNA(VLOOKUP($D101,VehicleID,COLUMN(Vehicles!$A$8),0))=TRUE,\"E1\",IF(ISNA(VLOOKUP($H101,ClientID,COLUMN(Vehicles!$A$8),0))=TRUE,\"E2\",IF(AND($G101<>\"Business\",$H101<>\"XXX01\"),\"E3\",IF(AND($G101=\"Business\",$H101=\"XXX01\"),\"E4\",\"-\"))))","v":"-"}]
["2020-02-11",null,"TL0007","EXS222WC",35767,35792,"Private","XXX01","Various Private","Various Private","Private Travel",0,"C Wilson",25,0,{"$f":"IF(ISNA(VLOOKUP($H102,ClientAll,COLUMN(Clients!$C$8),0))=TRUE,0,VLOOKUP($H102,ClientAll,COLUMN(Clients!$C$8),0))","v":0},0,{"$f":"IF(ISNA(VLOOKUP($D102,VehicleID,COLUMN(Vehicles!$A$8),0))=TRUE,\"E1\",IF(ISNA(VLOOKUP($H102,ClientID,COLUMN(Vehicles!$A$8),0))=TRUE,\"E2\",IF(AND($G102<>\"Business\",$H102<>\"XXX01\"),\"E3\",IF(AND($G102=\"Business\",$H102=\"XXX01\"),\"E4\",\"-\"))))","v":"-"}]
["2020-02-12","08:00:00","TL0006","EXS111WC",54260,54335,"Business","ABC01","Work","Client","Client Consultation",3,"A Smith",75,225,{"$f":"IF(ISNA(VLOOKUP($H103,ClientAll,COLUMN(Clients!$C$8),0))=TRUE,0,VLOOKUP($H103,ClientAll,COLUMN(Clients!$C$8),0))","v":75},0,{"$f":"IF(ISNA(VLOOKUP($D103,VehicleID,COLUMN(Vehicles!$A$8),0))=TRUE,\"E1\",IF(ISNA(VLOOKUP($H103,ClientID,COLUMN(Vehicles!$A$8),0))=TRUE,\"E2\",IF(AND($G103<>\"Business\",$H103<>\"XXX01\"),\"E3\",IF(AND($G103=\"Business\",$H103=\"XXX01\"),\"E4\",\"-\"))))","v":"-"}]
["2020-02-12","08:00:00","TL0007","EXS222WC",35792,35824,"Business","TPS01","Work","Client","Client Consultation",3,"C Wilson",32,96,{"$f":"IF(ISNA(VLOOKUP($H104,ClientAll,COLUMN(Clients!$C$8),0))=TRUE,0,VLOOKUP($H104,ClientAll,COLUMN(Clients!$C$8),0))","v":32},0,{"$f":"IF(ISNA(VLOOKUP($D104,VehicleID,COLUMN(Vehicles!$A$8),0))=TRUE,\"E1\",IF(ISNA(VLOOKUP($H104,ClientID,COLUMN(Vehicles!$A$8),0))=TRUE,\"E2\",IF(AND($G104<>\"Business\",$H104<>\"XXX01\"),\"E3\",IF(AND($G104=\"Business\",$H104=\"XXX01\"),\"E4\",\"-\"))))","v":"-"}]
["2020-02-12",null,"TL0006","EXS111WC",54335,54357,"Private","XXX01","Various Private","Various Private","Private Travel",0,"A Smith",22,0,{"$f":"IF(ISNA(VLOOKUP($H105,ClientAll,COLUMN(Clients!$C$8),0))=TRUE,0,VLOOKUP($H105,ClientAll,COLUMN(Clients!$C$8),0))","v":0},0,{"$f":"IF(ISNA(VLOOKUP($D105,VehicleID,COLUMN(Vehicles!$A$8),0))=TRUE,\"E1\",IF(ISNA(VLOOKUP($H105,ClientID,COLUMN(Vehicles!$A$8),0))=TRUE,\"E2\",IF(AND($G105<>\"Business\",$H105<>\"XXX01\"),\"E3\",IF(AND($G105=\"Business\",$H105=\"XXX01\"),\"E4\",\"-\"))))","v":"-"}]
["2020-02-12",null,"TL0007","EXS222WC",35824,35849,"Private","XXX01","Various Private","Various Private","Private Travel",0,"C Wilson",25,0,{"$f":"IF(ISNA(VLOOKUP($H106,ClientAll,COLUMN(Clients!$C$8),0))=TRUE,0,VLOOKUP($H106,ClientAll,COLUMN(Clients!$C$8),0))","v":0},0,{"$f":"IF(ISNA(VLOOKUP($D106,VehicleID,COLUMN(Vehicles!$A$8),0))=TRUE,\"E1\",IF(ISNA(VLOOKUP($H106,ClientID,COLUMN(Vehicles!$A$8),0))=TRUE,\"E2\",IF(AND($G106<>\"Business\",$H106<>\"XXX01\"),\"E3\",IF(AND($G106=\"Business\",$H106=\"XXX01\"),\"E4\",\"-\"))))","v":"-"}]
["2020-02-13","08:00:00","TL0006","EXS111WC",54357,54432,"Business","ABC01","Work","Client","Client Consultation",3,"A Smith",75,225,{"$f":"IF(ISNA(VLOOKUP($H107,ClientAll,COLUMN(Clients!$C$8),0))=TRUE,0,VLOOKUP($H107,ClientAll,COLUMN(Clients!$C$8),0))","v":75},0,{"$f":"IF(ISNA(VLOOKUP($D107,VehicleID,COLUMN(Vehicles!$A$8),0))=TRUE,\"E1\",IF(ISNA(VLOOKUP($H107,ClientID,COLUMN(Vehicles!$A$8),0))=TRUE,\"E2\",IF(AND($G107<>\"Business\",$H107<>\"XXX01\"),\"E3\",IF(AND($G107=\"Business\",$H107=\"XXX01\"),\"E4\",\"-\"))))","v":"-"}]
["2020-02-13","08:00:00","TL0007","EXS222WC",35849,35881,"Business","TPS01","Work","Client","Client Consultation",3,"C Wilson",32,96,{"$f":"IF(ISNA(VLOOKUP($H108,ClientAll,COLUMN(Clients!$C$8),0))=TRUE,0,VLOOKUP($H108,ClientAll,COLUMN(Clients!$C$8),0))","v":32},0,{"$f":"IF(ISNA(VLOOKUP($D108,VehicleID,COLUMN(Vehicles!$A$8),0))=TRUE,\"E1\",IF(ISNA(VLOOKUP($H108,ClientID,COLUMN(Vehicles!$A$8),0))=TRUE,\"E2\",IF(AND($G108<>\"Business\",$H108<>\"XXX01\"),\"E3\",IF(AND($G108=\"Business\",$H108=\"XXX01\"),\"E4\",\"-\"))))","v":"-"}]
["2020-02-13",null,"TL0006","EXS111WC",54432,54453,"Private","XXX01","Various Private","Various Private","Private Travel",0,"A Smith",21,0,{"$f":"IF(ISNA(VLOOKUP($H109,ClientAll,COLUMN(Clients!$C$8),0))=TRUE,0,VLOOKUP($H109,ClientAll,COLUMN(Clients!$C$8),0))","v":0},0,{"$f":"IF(ISNA(VLOOKUP($D109,VehicleID,COLUMN(Vehicles!$A$8),0))=TRUE,\"E1\",IF(ISNA(VLOOKUP($H109,ClientID,COLUMN(Vehicles!$A$8),0))=TRUE,\"E2\",IF(AND($G109<>\"Business\",$H109<>\"XXX01\"),\"E3\",IF(AND($G109=\"Business\",$H109=\"XXX01\"),\"E4\",\"-\"))))","v":"-"}]
["2020-02-13",null,"TL0007","EXS222WC",35881,35913,"Private","XXX01","Various Private","Various Private","Private Travel",0,"C Wilson",32,0,{"$f":"IF(ISNA(VLOOKUP($H110,ClientAll,COLUMN(Clients!$C$8),0))=TRUE,0,VLOOKUP($H110,ClientAll,COLUMN(Clients!$C$8),0))","v":0},0,{"$f":"IF(ISNA(VLOOKUP($D110,VehicleID,COLUMN(Vehicles!$A$8),0))=TRUE,\"E1\",IF(ISNA(VLOOKUP($H110,ClientID,COLUMN(Vehicles!$A$8),0))=TRUE,\"E2\",IF(AND($G110<>\"Business\",$H110<>\"XXX01\"),\"E3\",IF(AND($G110=\"Business\",$H110=\"XXX01\"),\"E4\",\"-\"))))","v":"-"}]
["2020-02-14","08:00:00","TL0006","EXS111WC",54453,54513,"Business","CCS01","Work","Client","Client Consultation",3,"A Smith",60,180,{"$f":"IF(ISNA(VLOOKUP($H111,ClientAll,COLUMN(Clients!$C$8),0))=TRUE,0,VLOOKUP($H111,ClientAll,COLUMN(Clients!$C$8),0))","v":60},0,{"$f":"IF(ISNA(VLOOKUP($D111,VehicleID,COLUMN(Vehicles!$A$8),0))=TRUE,\"E1\",IF(ISNA(VLOOKUP($H111,ClientID,COLUMN(Vehicles!$A$8),0))=TRUE,\"E2\",IF(AND($G111<>\"Business\",$H111<>\"XXX01\"),\"E3\",IF(AND($G111=\"Business\",$H111=\"XXX01\"),\"E4\",\"-\"))))","v":"-"}]
["2020-02-14","08:00:00","TL0007","EXS222WC",35913,36063,"Business","PTY01","Work","Client","Client Consultation",3,"C Wilson",150,450,{"$f":"IF(ISNA(VLOOKUP($H112,ClientAll,COLUMN(Clients!$C$8),0))=TRUE,0,VLOOKUP($H112,ClientAll,COLUMN(Clients!$C$8),0))","v":150},0,{"$f":"IF(ISNA(VLOOKUP($D112,VehicleID,COLUMN(Vehicles!$A$8),0))=TRUE,\"E1\",IF(ISNA(VLOOKUP($H112,ClientID,COLUMN(Vehicles!$A$8),0))=TRUE,\"E2\",IF(AND($G112<>\"Business\",$H112<>\"XXX01\"),\"E3\",IF(AND($G112=\"Business\",$H112=\"XXX01\"),\"E4\",\"-\"))))","v":"-"}]
["2020-02-14","17:00:00","TL0003","EXS333WC",113133,113553,"Business","KZB01","Client","Work","Client Consultation",2.5,"P Butler",420,1050,{"$f":"IF(ISNA(VLOOKUP($H113,ClientAll,COLUMN(Clients!$C$8),0))=TRUE,0,VLOOKUP($H113,ClientAll,COLUMN(Clients!$C$8),0))","v":420},0,{"$f":"IF(ISNA(VLOOKUP($D113,VehicleID,COLUMN(Vehicles!$A$8),0))=TRUE,\"E1\",IF(ISNA(VLOOKUP($H113,ClientID,COLUMN(Vehicles!$A$8),0))=TRUE,\"E2\",IF(AND($G113<>\"Business\",$H113<>\"XXX01\"),\"E3\",IF(AND($G113=\"Business\",$H113=\"XXX01\"),\"E4\",\"-\"))))","v":"-"}]
["2020-02-14",null,"TL0006","EXS111WC",54513,54523,"Private","XXX01","Various Private","Various Private","Private Travel",0,"A Smith",10,0,{"$f":"IF(ISNA(VLOOKUP($H114,ClientAll,COLUMN(Clients!$C$8),0))=TRUE,0,VLOOKUP($H114,ClientAll,COLUMN(Clients!$C$8),0))","v":0},0,{"$f":"IF(ISNA(VLOOKUP($D114,VehicleID,COLUMN(Vehicles!$A$8),0))=TRUE,\"E1\",IF(ISNA(VLOOKUP($H114,ClientID,COLUMN(Vehicles!$A$8),0))=TRUE,\"E2\",IF(AND($G114<>\"Business\",$H114<>\"XXX01\"),\"E3\",IF(AND($G114=\"Business\",$H114=\"XXX01\"),\"E4\",\"-\"))))","v":"-"}]
["2020-02-14",null,"TL0007","EXS222WC",36063,36104,"Private","XXX01","Various Private","Various Private","Private Travel",0,"C Wilson",41,0,{"$f":"IF(ISNA(VLOOKUP($H115,ClientAll,COLUMN(Clients!$C$8),0))=TRUE,0,VLOOKUP($H115,ClientAll,COLUMN(Clients!$C$8),0))","v":0},0,{"$f":"IF(ISNA(VLOOKUP($D115,VehicleID,COLUMN(Vehicles!$A$8),0))=TRUE,\"E1\",IF(ISNA(VLOOKUP($H115,ClientID,COLUMN(Vehicles!$A$8),0))=TRUE,\"E2\",IF(AND($G115<>\"Business\",$H115<>\"XXX01\"),\"E3\",IF(AND($G115=\"Business\",$H115=\"XXX01\"),\"E4\",\"-\"))))","v":"-"}]
["2020-02-17","08:00:00","TL0003","EXS333WC",113553,113973,"Business","KZB01","Work","Client","Client Consultation",2.5,"R Hughes",420,1050,{"$f":"IF(ISNA(VLOOKUP($H116,ClientAll,COLUMN(Clients!$C$8),0))=TRUE,0,VLOOKUP($H116,ClientAll,COLUMN(Clients!$C$8),0))","v":420},0,{"$f":"IF(ISNA(VLOOKUP($D116,VehicleID,COLUMN(Vehicles!$A$8),0))=TRUE,\"E1\",IF(ISNA(VLOOKUP($H116,ClientID,COLUMN(Vehicles!$A$8),0))=TRUE,\"E2\",IF(AND($G116<>\"Business\",$H116<>\"XXX01\"),\"E3\",IF(AND($G116=\"Business\",$H116=\"XXX01\"),\"E4\",\"-\"))))","v":"-"}]
["2020-02-18","08:00:00","TL0006","EXS111WC",54523,54553,"Business","DFM01","Work","Client","Client Consultation",3,"A Smith",30,90,{"$f":"IF(ISNA(VLOOKUP($H117,ClientAll,COLUMN(Clients!$C$8),0))=TRUE,0,VLOOKUP($H117,ClientAll,COLUMN(Clients!$C$8),0))","v":30},0,{"$f":"IF(ISNA(VLOOKUP($D117,VehicleID,COLUMN(Vehicles!$A$8),0))=TRUE,\"E1\",IF(ISNA(VLOOKUP($H117,ClientID,COLUMN(Vehicles!$A$8),0))=TRUE,\"E2\",IF(AND($G117<>\"Business\",$H117<>\"XXX01\"),\"E3\",IF(AND($G117=\"Business\",$H117=\"XXX01\"),\"E4\",\"-\"))))","v":"-"}]
["2020-02-18","08:00:00","TL0007","EXS222WC",36104,36136,"Business","TPS01","Work","Client","Client Consultation",3,"C Wilson",32,96,{"$f":"IF(ISNA(VLOOKUP($H118,ClientAll,COLUMN(Clients!$C$8),0))=TRUE,0,VLOOKUP($H118,ClientAll,COLUMN(Clients!$C$8),0))","v":32},0,{"$f":"IF(ISNA(VLOOKUP($D118,VehicleID,COLUMN(Vehicles!$A$8),0))=TRUE,\"E1\",IF(ISNA(VLOOKUP($H118,ClientID,COLUMN(Vehicles!$A$8),0))=TRUE,\"E2\",IF(AND($G118<>\"Business\",$H118<>\"XXX01\"),\"E3\",IF(AND($G118=\"Business\",$H118=\"XXX01\"),\"E4\",\"-\"))))","v":"-"}]
["2020-02-18",null,"TL0006","EXS111WC",54553,54573,"Private","XXX01","Various Private","Various Private","Private Travel",0,"A Smith",20,0,{"$f":"IF(ISNA(VLOOKUP($H119,ClientAll,COLUMN(Clients!$C$8),0))=TRUE,0,VLOOKUP($H119,ClientAll,COLUMN(Clients!$C$8),0))","v":0},0,{"$f":"IF(ISNA(VLOOKUP($D119,VehicleID,COLUMN(Vehicles!$A$8),0))=TRUE,\"E1\",IF(ISNA(VLOOKUP($H119,ClientID,COLUMN(Vehicles!$A$8),0))=TRUE,\"E2\",IF(AND($G119<>\"Business\",$H119<>\"XXX01\"),\"E3\",IF(AND($G119=\"Business\",$H119=\"XXX01\"),\"E4\",\"-\"))))","v":"-"}]
["2020-02-18",null,"TL0007","EXS222WC",36136,36184,"Private","XXX01","Various Private","Various Private","Private Travel",0,"C Wilson",48,0,{"$f":"IF(ISNA(VLOOKUP($H120,ClientAll,COLUMN(Clients!$C$8),0))=TRUE,0,VLOOKUP($H120,ClientAll,COLUMN(Clients!$C$8),0))","v":0},0,{"$f":"IF(ISNA(VLOOKUP($D120,VehicleID,COLUMN(Vehicles!$A$8),0))=TRUE,\"E1\",IF(ISNA(VLOOKUP($H120,ClientID,COLUMN(Vehicles!$A$8),0))=TRUE,\"E2\",IF(AND($G120<>\"Business\",$H120<>\"XXX01\"),\"E3\",IF(AND($G120=\"Business\",$H120=\"XXX01\"),\"E4\",\"-\"))))","v":"-"}]
["2020-02-19","08:15:00","TL0006","EXS111WC",54573,54661,"Business","DIG01","Work","Client","Client Consultation",3,"A Smith",88,264,{"$f":"IF(ISNA(VLOOKUP($H121,ClientAll,COLUMN(Clients!$C$8),0))=TRUE,0,VLOOKUP($H121,ClientAll,COLUMN(Clients!$C$8),0))","v":88},0,{"$f":"IF(ISNA(VLOOKUP($D121,VehicleID,COLUMN(Vehicles!$A$8),0))=TRUE,\"E1\",IF(ISNA(VLOOKUP($H121,ClientID,COLUMN(Vehicles!$A$8),0))=TRUE,\"E2\",IF(AND($G121<>\"Business\",$H121<>\"XXX01\"),\"E3\",IF(AND($G121=\"Business\",$H121=\"XXX01\"),\"E4\",\"-\"))))","v":"-"}]
["2020-02-19","09:15:00","TL0007","EXS222WC",36184,36239,"Business","TRF01","Work","Client","Client Consultation",3,"C Wilson",55,165,{"$f":"IF(ISNA(VLOOKUP($H122,ClientAll,COLUMN(Clients!$C$8),0))=TRUE,0,VLOOKUP($H122,ClientAll,COLUMN(Clients!$C$8),0))","v":55},0,{"$f":"IF(ISNA(VLOOKUP($D122,VehicleID,COLUMN(Vehicles!$A$8),0))=TRUE,\"E1\",IF(ISNA(VLOOKUP($H122,ClientID,COLUMN(Vehicles!$A$8),0))=TRUE,\"E2\",IF(AND($G122<>\"Business\",$H122<>\"XXX01\"),\"E3\",IF(AND($G122=\"Business\",$H122=\"XXX01\"),\"E4\",\"-\"))))","v":"-"}]
["2020-02-19",null,"TL0006","EXS111WC",54661,54666,"Private","XXX01","Various Private","Various Private","Private Travel",0,"A Smith",5,0,{"$f":"IF(ISNA(VLOOKUP($H123,ClientAll,COLUMN(Clients!$C$8),0))=TRUE,0,VLOOKUP($H123,ClientAll,COLUMN(Clients!$C$8),0))","v":0},0,{"$f":"IF(ISNA(VLOOKUP($D123,VehicleID,COLUMN(Vehicles!$A$8),0))=TRUE,\"E1\",IF(ISNA(VLOOKUP($H123,ClientID,COLUMN(Vehicles!$A$8),0))=TRUE,\"E2\",IF(AND($G123<>\"Business\",$H123<>\"XXX01\"),\"E3\",IF(AND($G123=\"Business\",$H123=\"XXX01\"),\"E4\",\"-\"))))","v":"-"}]
["2020-02-19",null,"TL0007","EXS222WC",36239,36260,"Private","XXX01","Various Private","Various Private","Private Travel",0,"C Wilson",21,0,{"$f":"IF(ISNA(VLOOKUP($H124,ClientAll,COLUMN(Clients!$C$8),0))=TRUE,0,VLOOKUP($H124,ClientAll,COLUMN(Clients!$C$8),0))","v":0},0,{"$f":"IF(ISNA(VLOOKUP($D124,VehicleID,COLUMN(Vehicles!$A$8),0))=TRUE,\"E1\",IF(ISNA(VLOOKUP($H124,ClientID,COLUMN(Vehicles!$A$8),0))=TRUE,\"E2\",IF(AND($G124<>\"Business\",$H124<>\"XXX01\"),\"E3\",IF(AND($G124=\"Business\",$H124=\"XXX01\"),\"E4\",\"-\"))))","v":"-"}]
["2020-02-20","08:00:00","TL0006","EXS111WC",54666,54766,"Business","ENE01","Work","Client","Client Consultation",3,"A Smith",100,300,{"$f":"IF(ISNA(VLOOKUP($H125,ClientAll,COLUMN(Clients!$C$8),0))=TRUE,0,VLOOKUP($H125,ClientAll,COLUMN(Clients!$C$8),0))","v":100},0,{"$f":"IF(ISNA(VLOOKUP($D125,VehicleID,COLUMN(Vehicles!$A$8),0))=TRUE,\"E1\",IF(ISNA(VLOOKUP($H125,ClientID,COLUMN(Vehicles!$A$8),0))=TRUE,\"E2\",IF(AND($G125<>\"Business\",$H125<>\"XXX01\"),\"E3\",IF(AND($G125=\"Business\",$H125=\"XXX01\"),\"E4\",\"-\"))))","v":"-"}]
["2020-02-20","08:00:00","TL0007","EXS222WC",36260,36410,"Business","PTY01","Work","Client","Client Consultation",3,"C Wilson",150,450,{"$f":"IF(ISNA(VLOOKUP($H126,ClientAll,COLUMN(Clients!$C$8),0))=TRUE,0,VLOOKUP($H126,ClientAll,COLUMN(Clients!$C$8),0))","v":150},0,{"$f":"IF(ISNA(VLOOKUP($D126,VehicleID,COLUMN(Vehicles!$A$8),0))=TRUE,\"E1\",IF(ISNA(VLOOKUP($H126,ClientID,COLUMN(Vehicles!$A$8),0))=TRUE,\"E2\",IF(AND($G126<>\"Business\",$H126<>\"XXX01\"),\"E3\",IF(AND($G126=\"Business\",$H126=\"XXX01\"),\"E4\",\"-\"))))","v":"-"}]
["2020-02-20",null,"TL0006","EXS111WC",54766,54802,"Private","XXX01","Various Private","Various Private","Private Travel",0,"A Smith",36,0,{"$f":"IF(ISNA(VLOOKUP($H127,ClientAll,COLUMN(Clients!$C$8),0))=TRUE,0,VLOOKUP($H127,ClientAll,COLUMN(Clients!$C$8),0))","v":0},0,{"$f":"IF(ISNA(VLOOKUP($D127,VehicleID,COLUMN(Vehicles!$A$8),0))=TRUE,\"E1\",IF(ISNA(VLOOKUP($H127,ClientID,COLUMN(Vehicles!$A$8),0))=TRUE,\"E2\",IF(AND($G127<>\"Business\",$H127<>\"XXX01\"),\"E3\",IF(AND($G127=\"Business\",$H127=\"XXX01\"),\"E4\",\"-\"))))","v":"-"}]
["2020-02-20",null,"TL0007","EXS222WC",36410,36418,"Private","XXX01","Various Private","Various Private","Private Travel",0,"C Wilson",8,0,{"$f":"IF(ISNA(VLOOKUP($H128,ClientAll,COLUMN(Clients!$C$8),0))=TRUE,0,VLOOKUP($H128,ClientAll,COLUMN(Clients!$C$8),0))","v":0},0,{"$f":"IF(ISNA(VLOOKUP($D128,VehicleID,COLUMN(Vehicles!$A$8),0))=TRUE,\"E1\",IF(ISNA(VLOOKUP($H128,ClientID,COLUMN(Vehicles!$A$8),0))=TRUE,\"E2\",IF(AND($G128<>\"Business\",$H128<>\"XXX01\"),\"E3\",IF(AND($G128=\"Business\",$H128=\"XXX01\"),\"E4\",\"-\"))))","v":"-"}]
["2020-02-21","17:00:00","TL0003","EXS333WC",113973,114393,"Business","KZB01","Client","Work","Client Consultation",2.5,"R Hughes",420,1050,{"$f":"IF(ISNA(VLOOKUP($H129,ClientAll,COLUMN(Clients!$C$8),0))=TRUE,0,VLOOKUP($H129,ClientAll,COLUMN(Clients!$C$8),0))","v":420},0,{"$f":"IF(ISNA(VLOOKUP($D129,VehicleID,COLUMN(Vehicles!$A$8),0))=TRUE,\"E1\",IF(ISNA(VLOOKUP($H129,ClientID,COLUMN(Vehicles!$A$8),0))=TRUE,\"E2\",IF(AND($G129<>\"Business\",$H129<>\"XXX01\"),\"E3\",IF(AND($G129=\"Business\",$H129=\"XXX01\"),\"E4\",\"-\"))))","v":"-"}]
["2020-02-24","08:00:00","TL0006","EXS111WC",54802,54902,"Business","ENE01","Work","Client","Client Consultation",3,"A Smith",100,300,{"$f":"IF(ISNA(VLOOKUP($H130,ClientAll,COLUMN(Clients!$C$8),0))=TRUE,0,VLOOKUP($H130,ClientAll,COLUMN(Clients!$C$8),0))","v":100},0,{"$f":"IF(ISNA(VLOOKUP($D130,VehicleID,COLUMN(Vehicles!$A$8),0))=TRUE,\"E1\",IF(ISNA(VLOOKUP($H130,ClientID,COLUMN(Vehicles!$A$8),0))=TRUE,\"E2\",IF(AND($G130<>\"Business\",$H130<>\"XXX01\"),\"E3\",IF(AND($G130=\"Business\",$H130=\"XXX01\"),\"E4\",\"-\"))))","v":"-"}]
["2020-02-24","08:00:00","TL0007","EXS222WC",36418,36450,"Business","TPS01","Work","Client","Client Consultation",3,"C Wilson",32,96,{"$f":"IF(ISNA(VLOOKUP($H131,ClientAll,COLUMN(Clients!$C$8),0))=TRUE,0,VLOOKUP($H131,ClientAll,COLUMN(Clients!$C$8),0))","v":32},0,{"$f":"IF(ISNA(VLOOKUP($D131,VehicleID,COLUMN(Vehicles!$A$8),0))=TRUE,\"E1\",IF(ISNA(VLOOKUP($H131,ClientID,COLUMN(Vehicles!$A$8),0))=TRUE,\"E2\",IF(AND($G131<>\"Business\",$H131<>\"XXX01\"),\"E3\",IF(AND($G131=\"Business\",$H131=\"XXX01\"),\"E4\",\"-\"))))","v":"-"}]
["2020-02-24","08:00:00","TL0003","EXS333WC",114393,114813,"Business","KZB01","Work","Client","Client Consultation",2.5,"P Butler",{"$f":"F132-E132","v":420},{"$f":"N132*L132","v":1050},{"$f":"IF(ISNA(VLOOKUP($H132,ClientAll,COLUMN(Clients!$C$8),0))=TRUE,0,VLOOKUP($H132,ClientAll,COLUMN(Clients!$C$8),0))","v":420},{"$f":"IF(G132=\"Private\",0,N132-P132)","v":0},{"$f":"IF(ISNA(VLOOKUP($D132,VehicleID,COLUMN(Vehicles!$A$8),0))=TRUE,\"E1\",IF(ISNA(VLOOKUP($H132,ClientID,COLUMN(Vehicles!$A$8),0))=TRUE,\"E2\",IF(AND($G132<>\"Business\",$H132<>\"XXX01\"),\"E3\",IF(AND($G132=\"Business\",$H132=\"XXX01\"),\"E4\",\"-\"))))","v":"-"}]
["2020-02-24",null,"TL0006","EXS111WC",54902,54926,"Private","XXX01","Various Private","Various Private","Private Travel",0,"A Smith",24,0,{"$f":"IF(ISNA(VLOOKUP($H133,ClientAll,COLUMN(Clients!$C$8),0))=TRUE,0,VLOOKUP($H133,ClientAll,COLUMN(Clients!$C$8),0))","v":0},0,{"$f":"IF(ISNA(VLOOKUP($D133,VehicleID,COLUMN(Vehicles!$A$8),0))=TRUE,\"E1\",IF(ISNA(VLOOKUP($H133,ClientID,COLUMN(Vehicles!$A$8),0))=TRUE,\"E2\",IF(AND($G133<>\"Business\",$H133<>\"XXX01\"),\"E3\",IF(AND($G133=\"Business\",$H133=\"XXX01\"),\"E4\",\"-\"))))","v":"-"}]
["2020-02-24",null,"TL0007","EXS222WC",36450,36483,"Private","XXX01","Various Private","Various Private","Private Travel",0,"C Wilson",33,0,{"$f":"IF(ISNA(VLOOKUP($H134,ClientAll,COLUMN(Clients!$C$8),0))=TRUE,0,VLOOKUP($H134,ClientAll,COLUMN(Clients!$C$8),0))","v":0},0,{"$f":"IF(ISNA(VLOOKUP($D134,VehicleID,COLUMN(Vehicles!$A$8),0))=TRUE,\"E1\",IF(ISNA(VLOOKUP($H134,ClientID,COLUMN(Vehicles!$A$8),0))=TRUE,\"E2\",IF(AND($G134<>\"Business\",$H134<>\"XXX01\"),\"E3\",IF(AND($G134=\"Business\",$H134=\"XXX01\"),\"E4\",\"-\"))))","v":"-"}]
["2020-02-25","08:00:00","TL0008","EXS111WC",54926,55026,"Business","ENE01","Work","Client","Client Consultation",3,"A Smith",100,300,{"$f":"IF(ISNA(VLOOKUP($H135,ClientAll,COLUMN(Clients!$C$8),0))=TRUE,0,VLOOKUP($H135,ClientAll,COLUMN(Clients!$C$8),0))","v":100},0,{"$f":"IF(ISNA(VLOOKUP($D135,VehicleID,COLUMN(Vehicles!$A$8),0))=TRUE,\"E1\",IF(ISNA(VLOOKUP($H135,ClientID,COLUMN(Vehicles!$A$8),0))=TRUE,\"E2\",IF(AND($G135<>\"Business\",$H135<>\"XXX01\"),\"E3\",IF(AND($G135=\"Business\",$H135=\"XXX01\"),\"E4\",\"-\"))))","v":"-"}]
["2020-02-25","08:00:00","TL0009","EXS222WC",36483,36515,"Business","TPS01","Work","Client","Client Consultation",3,"C Wilson",32,96,{"$f":"IF(ISNA(VLOOKUP($H136,ClientAll,COLUMN(Clients!$C$8),0))=TRUE,0,VLOOKUP($H136,ClientAll,COLUMN(Clients!$C$8),0))","v":32},0,{"$f":"IF(ISNA(VLOOKUP($D136,VehicleID,COLUMN(Vehicles!$A$8),0))=TRUE,\"E1\",IF(ISNA(VLOOKUP($H136,ClientID,COLUMN(Vehicles!$A$8),0))=TRUE,\"E2\",IF(AND($G136<>\"Business\",$H136<>\"XXX01\"),\"E3\",IF(AND($G136=\"Business\",$H136=\"XXX01\"),\"E4\",\"-\"))))","v":"-"}]
["2020-02-25",null,"TL0008","EXS111WC",55026,55041,"Private","XXX01","Various Private","Various Private","Private Travel",0,"A Smith",15,0,{"$f":"IF(ISNA(VLOOKUP($H137,ClientAll,COLUMN(Clients!$C$8),0))=TRUE,0,VLOOKUP($H137,ClientAll,COLUMN(Clients!$C$8),0))","v":0},0,{"$f":"IF(ISNA(VLOOKUP($D137,VehicleID,COLUMN(Vehicles!$A$8),0))=TRUE,\"E1\",IF(ISNA(VLOOKUP($H137,ClientID,COLUMN(Vehicles!$A$8),0))=TRUE,\"E2\",IF(AND($G137<>\"Business\",$H137<>\"XXX01\"),\"E3\",IF(AND($G137=\"Business\",$H137=\"XXX01\"),\"E4\",\"-\"))))","v":"-"}]
["2020-02-25",null,"TL0009","EXS222WC",36515,36556,"Private","XXX01","Various Private","Various Private","Private Travel",0,"C Wilson",41,0,{"$f":"IF(ISNA(VLOOKUP($H138,ClientAll,COLUMN(Clients!$C$8),0))=TRUE,0,VLOOKUP($H138,ClientAll,COLUMN(Clients!$C$8),0))","v":0},0,{"$f":"IF(ISNA(VLOOKUP($D138,VehicleID,COLUMN(Vehicles!$A$8),0))=TRUE,\"E1\",IF(ISNA(VLOOKUP($H138,ClientID,COLUMN(Vehicles!$A$8),0))=TRUE,\"E2\",IF(AND($G138<>\"Business\",$H138<>\"XXX01\"),\"E3\",IF(AND($G138=\"Business\",$H138=\"XXX01\"),\"E4\",\"-\"))))","v":"-"}]
["2020-02-26","08:00:00","TL0008","EXS111WC",55041,55116,"Business","FSF01","Work","Client","Client Consultation",3,"A Smith",75,225,{"$f":"IF(ISNA(VLOOKUP($H139,ClientAll,COLUMN(Clients!$C$8),0))=TRUE,0,VLOOKUP($H139,ClientAll,COLUMN(Clients!$C$8),0))","v":75},0,{"$f":"IF(ISNA(VLOOKUP($D139,VehicleID,COLUMN(Vehicles!$A$8),0))=TRUE,\"E1\",IF(ISNA(VLOOKUP($H139,ClientID,COLUMN(Vehicles!$A$8),0))=TRUE,\"E2\",IF(AND($G139<>\"Business\",$H139<>\"XXX01\"),\"E3\",IF(AND($G139=\"Business\",$H139=\"XXX01\"),\"E4\",\"-\"))))","v":"-"}]
["2020-02-26","08:00:00","TL0009","EXS222WC",36556,36706,"Business","PTY01","Work","Client","Client Consultation",3,"C Wilson",150,450,{"$f":"IF(ISNA(VLOOKUP($H140,ClientAll,COLUMN(Clients!$C$8),0))=TRUE,0,VLOOKUP($H140,ClientAll,COLUMN(Clients!$C$8),0))","v":150},0,{"$f":"IF(ISNA(VLOOKUP($D140,VehicleID,COLUMN(Vehicles!$A$8),0))=TRUE,\"E1\",IF(ISNA(VLOOKUP($H140,ClientID,COLUMN(Vehicles!$A$8),0))=TRUE,\"E2\",IF(AND($G140<>\"Business\",$H140<>\"XXX01\"),\"E3\",IF(AND($G140=\"Business\",$H140=\"XXX01\"),\"E4\",\"-\"))))","v":"-"}]
["2020-02-26",null,"TL0008","EXS111WC",55116,55157,"Private","XXX01","Various Private","Various Private","Private Travel",0,"A Smith",41,0,{"$f":"IF(ISNA(VLOOKUP($H141,ClientAll,COLUMN(Clients!$C$8),0))=TRUE,0,VLOOKUP($H141,ClientAll,COLUMN(Clients!$C$8),0))","v":0},0,{"$f":"IF(ISNA(VLOOKUP($D141,VehicleID,COLUMN(Vehicles!$A$8),0))=TRUE,\"E1\",IF(ISNA(VLOOKUP($H141,ClientID,COLUMN(Vehicles!$A$8),0))=TRUE,\"E2\",IF(AND($G141<>\"Business\",$H141<>\"XXX01\"),\"E3\",IF(AND($G141=\"Business\",$H141=\"XXX01\"),\"E4\",\"-\"))))","v":"-"}]
["2020-02-26",null,"TL0009","EXS222WC",36706,36731,"Private","XXX01","Various Private","Various Private","Private Travel",0,"C Wilson",25,0,{"$f":"IF(ISNA(VLOOKUP($H142,ClientAll,COLUMN(Clients!$C$8),0))=TRUE,0,VLOOKUP($H142,ClientAll,COLUMN(Clients!$C$8),0))","v":0},0,{"$f":"IF(ISNA(VLOOKUP($D142,VehicleID,COLUMN(Vehicles!$A$8),0))=TRUE,\"E1\",IF(ISNA(VLOOKUP($H142,ClientID,COLUMN(Vehicles!$A$8),0))=TRUE,\"E2\",IF(AND($G142<>\"Business\",$H142<>\"XXX01\"),\"E3\",IF(AND($G142=\"Business\",$H142=\"XXX01\"),\"E4\",\"-\"))))","v":"-"}]
["2020-02-27","08:00:00","TL0008","EXS111WC",55157,55187,"Business","DFM01","Work","Client","Client Consultation",3,"A Smith",30,90,{"$f":"IF(ISNA(VLOOKUP($H143,ClientAll,COLUMN(Clients!$C$8),0))=TRUE,0,VLOOKUP($H143,ClientAll,COLUMN(Clients!$C$8),0))","v":30},0,{"$f":"IF(ISNA(VLOOKUP($D143,VehicleID,COLUMN(Vehicles!$A$8),0))=TRUE,\"E1\",IF(ISNA(VLOOKUP($H143,ClientID,COLUMN(Vehicles!$A$8),0))=TRUE,\"E2\",IF(AND($G143<>\"Business\",$H143<>\"XXX01\"),\"E3\",IF(AND($G143=\"Business\",$H143=\"XXX01\"),\"E4\",\"-\"))))","v":"-"}]
["2020-02-27","08:00:00","TL0009","EXS222WC",36731,36763,"Business","TPS01","Work","Client","Client Consultation",3,"C Wilson",32,96,{"$f":"IF(ISNA(VLOOKUP($H144,ClientAll,COLUMN(Clients!$C$8),0))=TRUE,0,VLOOKUP($H144,ClientAll,COLUMN(Clients!$C$8),0))","v":32},0,{"$f":"IF(ISNA(VLOOKUP($D144,VehicleID,COLUMN(Vehicles!$A$8),0))=TRUE,\"E1\",IF(ISNA(VLOOKUP($H144,ClientID,COLUMN(Vehicles!$A$8),0))=TRUE,\"E2\",IF(AND($G144<>\"Business\",$H144<>\"XXX01\"),\"E3\",IF(AND($G144=\"Business\",$H144=\"XXX01\"),\"E4\",\"-\"))))","v":"-"}]
["2020-02-28","17:00:00","TL0003","EXS333WC",114813,115233,"Business","KZB01","Client","Work","Client Consultation",2.5,"P Butler",420,1050,{"$f":"IF(ISNA(VLOOKUP($H145,ClientAll,COLUMN(Clients!$C$8),0))=TRUE,0,VLOOKUP($H145,ClientAll,COLUMN(Clients!$C$8),0))","v":420},0,{"$f":"IF(ISNA(VLOOKUP($D145,VehicleID,COLUMN(Vehicles!$A$8),0))=TRUE,\"E1\",IF(ISNA(VLOOKUP($H145,ClientID,COLUMN(Vehicles!$A$8),0))=TRUE,\"E2\",IF(AND($G145<>\"Business\",$H145<>\"XXX01\"),\"E3\",IF(AND($G145=\"Business\",$H145=\"XXX01\"),\"E4\",\"-\"))))","v":"-"}]
["2020-02-28",null,"TL0008","EXS111WC",55187,55251,"Private","XXX01","Various Private","Various Private","Private Travel",0,"A Smith",64,0,{"$f":"IF(ISNA(VLOOKUP($H146,ClientAll,COLUMN(Clients!$C$8),0))=TRUE,0,VLOOKUP($H146,ClientAll,COLUMN(Clients!$C$8),0))","v":0},0,{"$f":"IF(ISNA(VLOOKUP($D146,VehicleID,COLUMN(Vehicles!$A$8),0))=TRUE,\"E1\",IF(ISNA(VLOOKUP($H146,ClientID,COLUMN(Vehicles!$A$8),0))=TRUE,\"E2\",IF(AND($G146<>\"Business\",$H146<>\"XXX01\"),\"E3\",IF(AND($G146=\"Business\",$H146=\"XXX01\"),\"E4\",\"-\"))))","v":"-"}]
["2020-02-28",null,"TL0009","EXS222WC",36763,36777,"Private","XXX01","Various Private","Various Private","Private Travel",0,"C Wilson",14,0,{"$f":"IF(ISNA(VLOOKUP($H147,ClientAll,COLUMN(Clients!$C$8),0))=TRUE,0,VLOOKUP($H147,ClientAll,COLUMN(Clients!$C$8),0))","v":0},0,{"$f":"IF(ISNA(VLOOKUP($D147,VehicleID,COLUMN(Vehicles!$A$8),0))=TRUE,\"E1\",IF(ISNA(VLOOKUP($H147,ClientID,COLUMN(Vehicles!$A$8),0))=TRUE,\"E2\",IF(AND($G147<>\"Business\",$H147<>\"XXX01\"),\"E3\",IF(AND($G147=\"Business\",$H147=\"XXX01\"),\"E4\",\"-\"))))","v":"-"}]
["2020-03-03","08:00:00","TL0008","EXS111WC",55251,55351,"Business","ENE01","Work","Client","Client Consultation",3,"A Smith",100,300,{"$f":"IF(ISNA(VLOOKUP($H148,ClientAll,COLUMN(Clients!$C$8),0))=TRUE,0,VLOOKUP($H148,ClientAll,COLUMN(Clients!$C$8),0))","v":100},0,{"$f":"IF(ISNA(VLOOKUP($D148,VehicleID,COLUMN(Vehicles!$A$8),0))=TRUE,\"E1\",IF(ISNA(VLOOKUP($H148,ClientID,COLUMN(Vehicles!$A$8),0))=TRUE,\"E2\",IF(AND($G148<>\"Business\",$H148<>\"XXX01\"),\"E3\",IF(AND($G148=\"Business\",$H148=\"XXX01\"),\"E4\",\"-\"))))","v":"-"}]
["2020-03-03","08:00:00","TL0009","EXS222WC",36777,36872,"Business","XXB01","Work","Client","Client Consultation",3,"C Wilson",95,285,{"$f":"IF(ISNA(VLOOKUP($H149,ClientAll,COLUMN(Clients!$C$8),0))=TRUE,0,VLOOKUP($H149,ClientAll,COLUMN(Clients!$C$8),0))","v":95},0,{"$f":"IF(ISNA(VLOOKUP($D149,VehicleID,COLUMN(Vehicles!$A$8),0))=TRUE,\"E1\",IF(ISNA(VLOOKUP($H149,ClientID,COLUMN(Vehicles!$A$8),0))=TRUE,\"E2\",IF(AND($G149<>\"Business\",$H149<>\"XXX01\"),\"E3\",IF(AND($G149=\"Business\",$H149=\"XXX01\"),\"E4\",\"-\"))))","v":"-"}]
["2020-03-03",null,"TL0008","EXS111WC",55351,55372,"Private","XXX01","Various Private","Various Private","Private Travel",0,"A Smith",21,0,{"$f":"IF(ISNA(VLOOKUP($H150,ClientAll,COLUMN(Clients!$C$8),0))=TRUE,0,VLOOKUP($H150,ClientAll,COLUMN(Clients!$C$8),0))","v":0},0,{"$f":"IF(ISNA(VLOOKUP($D150,VehicleID,COLUMN(Vehicles!$A$8),0))=TRUE,\"E1\",IF(ISNA(VLOOKUP($H150,ClientID,COLUMN(Vehicles!$A$8),0))=TRUE,\"E2\",IF(AND($G150<>\"Business\",$H150<>\"XXX01\"),\"E3\",IF(AND($G150=\"Business\",$H150=\"XXX01\"),\"E4\",\"-\"))))","v":"-"}]
["2020-03-03",null,"TL0009","EXS222WC",36872,36880,"Private","XXX01","Various Private","Various Private","Private Travel",0,"C Wilson",8,0,{"$f":"IF(ISNA(VLOOKUP($H151,ClientAll,COLUMN(Clients!$C$8),0))=TRUE,0,VLOOKUP($H151,ClientAll,COLUMN(Clients!$C$8),0))","v":0},0,{"$f":"IF(ISNA(VLOOKUP($D151,VehicleID,COLUMN(Vehicles!$A$8),0))=TRUE,\"E1\",IF(ISNA(VLOOKUP($H151,ClientID,COLUMN(Vehicles!$A$8),0))=TRUE,\"E2\",IF(AND($G151<>\"Business\",$H151<>\"XXX01\"),\"E3\",IF(AND($G151=\"Business\",$H151=\"XXX01\"),\"E4\",\"-\"))))","v":"-"}]
["2020-03-04","08:00:00","TL0008","EXS111WC",55372,55472,"Business","ENE01","Work","Client","Client Consultation",3,"A Smith",100,300,{"$f":"IF(ISNA(VLOOKUP($H152,ClientAll,COLUMN(Clients!$C$8),0))=TRUE,0,VLOOKUP($H152,ClientAll,COLUMN(Clients!$C$8),0))","v":100},0,{"$f":"IF(ISNA(VLOOKUP($D152,VehicleID,COLUMN(Vehicles!$A$8),0))=TRUE,\"E1\",IF(ISNA(VLOOKUP($H152,ClientID,COLUMN(Vehicles!$A$8),0))=TRUE,\"E2\",IF(AND($G152<>\"Business\",$H152<>\"XXX01\"),\"E3\",IF(AND($G152=\"Business\",$H152=\"XXX01\"),\"E4\",\"-\"))))","v":"-"}]
["2020-03-04","08:00:00","TL0009","EXS222WC",36880,36975,"Business","XXB01","Work","Client","Client Consultation",3,"C Wilson",95,285,{"$f":"IF(ISNA(VLOOKUP($H153,ClientAll,COLUMN(Clients!$C$8),0))=TRUE,0,VLOOKUP($H153,ClientAll,COLUMN(Clients!$C$8),0))","v":95},0,{"$f":"IF(ISNA(VLOOKUP($D153,VehicleID,COLUMN(Vehicles!$A$8),0))=TRUE,\"E1\",IF(ISNA(VLOOKUP($H153,ClientID,COLUMN(Vehicles!$A$8),0))=TRUE,\"E2\",IF(AND($G153<>\"Business\",$H153<>\"XXX01\"),\"E3\",IF(AND($G153=\"Business\",$H153=\"XXX01\"),\"E4\",\"-\"))))","v":"-"}]
["2020-03-04",null,"TL0008","EXS111WC",55472,55485,"Private","XXX01","Various Private","Various Private","Private Travel",0,"A Smith",13,0,{"$f":"IF(ISNA(VLOOKUP($H154,ClientAll,COLUMN(Clients!$C$8),0))=TRUE,0,VLOOKUP($H154,ClientAll,COLUMN(Clients!$C$8),0))","v":0},0,{"$f":"IF(ISNA(VLOOKUP($D154,VehicleID,COLUMN(Vehicles!$A$8),0))=TRUE,\"E1\",IF(ISNA(VLOOKUP($H154,ClientID,COLUMN(Vehicles!$A$8),0))=TRUE,\"E2\",IF(AND($G154<>\"Business\",$H154<>\"XXX01\"),\"E3\",IF(AND($G154=\"Business\",$H154=\"XXX01\"),\"E4\",\"-\"))))","v":"-"}]
["2020-03-04",null,"TL0009","EXS222WC",36975,36990,"Private","XXX01","Various Private","Various Private","Private Travel",0,"C Wilson",15,0,{"$f":"IF(ISNA(VLOOKUP($H155,ClientAll,COLUMN(Clients!$C$8),0))=TRUE,0,VLOOKUP($H155,ClientAll,COLUMN(Clients!$C$8),0))","v":0},0,{"$f":"IF(ISNA(VLOOKUP($D155,VehicleID,COLUMN(Vehicles!$A$8),0))=TRUE,\"E1\",IF(ISNA(VLOOKUP($H155,ClientID,COLUMN(Vehicles!$A$8),0))=TRUE,\"E2\",IF(AND($G155<>\"Business\",$H155<>\"XXX01\"),\"E3\",IF(AND($G155=\"Business\",$H155=\"XXX01\"),\"E4\",\"-\"))))","v":"-"}]
["2020-03-05","08:30:00","TL0008","EXS111WC",55485,55585,"Business","ENE01","Work","Client","Client Consultation",3,"A Smith",100,300,{"$f":"IF(ISNA(VLOOKUP($H156,ClientAll,COLUMN(Clients!$C$8),0))=TRUE,0,VLOOKUP($H156,ClientAll,COLUMN(Clients!$C$8),0))","v":100},0,{"$f":"IF(ISNA(VLOOKUP($D156,VehicleID,COLUMN(Vehicles!$A$8),0))=TRUE,\"E1\",IF(ISNA(VLOOKUP($H156,ClientID,COLUMN(Vehicles!$A$8),0))=TRUE,\"E2\",IF(AND($G156<>\"Business\",$H156<>\"XXX01\"),\"E3\",IF(AND($G156=\"Business\",$H156=\"XXX01\"),\"E4\",\"-\"))))","v":"-"}]
["2020-03-05","09:30:00","TL0009","EXS222WC",36990,37085,"Business","XXB01","Work","Client","Client Consultation",3,"C Wilson",95,285,{"$f":"IF(ISNA(VLOOKUP($H157,ClientAll,COLUMN(Clients!$C$8),0))=TRUE,0,VLOOKUP($H157,ClientAll,COLUMN(Clients!$C$8),0))","v":95},0,{"$f":"IF(ISNA(VLOOKUP($D157,VehicleID,COLUMN(Vehicles!$A$8),0))=TRUE,\"E1\",IF(ISNA(VLOOKUP($H157,ClientID,COLUMN(Vehicles!$A$8),0))=TRUE,\"E2\",IF(AND($G157<>\"Business\",$H157<>\"XXX01\"),\"E3\",IF(AND($G157=\"Business\",$H157=\"XXX01\"),\"E4\",\"-\"))))","v":"-"}]
["2020-03-05",null,"TL0008","EXS111WC",55585,55609,"Private","XXX01","Various Private","Various Private","Private Travel",0,"A Smith",24,0,{"$f":"IF(ISNA(VLOOKUP($H158,ClientAll,COLUMN(Clients!$C$8),0))=TRUE,0,VLOOKUP($H158,ClientAll,COLUMN(Clients!$C$8),0))","v":0},0,{"$f":"IF(ISNA(VLOOKUP($D158,VehicleID,COLUMN(Vehicles!$A$8),0))=TRUE,\"E1\",IF(ISNA(VLOOKUP($H158,ClientID,COLUMN(Vehicles!$A$8),0))=TRUE,\"E2\",IF(AND($G158<>\"Business\",$H158<>\"XXX01\"),\"E3\",IF(AND($G158=\"Business\",$H158=\"XXX01\"),\"E4\",\"-\"))))","v":"-"}]
["2020-03-05",null,"TL0009","EXS222WC",37085,37099,"Private","XXX01","Various Private","Various Private","Private Travel",0,"C Wilson",14,0,{"$f":"IF(ISNA(VLOOKUP($H159,ClientAll,COLUMN(Clients!$C$8),0))=TRUE,0,VLOOKUP($H159,ClientAll,COLUMN(Clients!$C$8),0))","v":0},0,{"$f":"IF(ISNA(VLOOKUP($D159,VehicleID,COLUMN(Vehicles!$A$8),0))=TRUE,\"E1\",IF(ISNA(VLOOKUP($H159,ClientID,COLUMN(Vehicles!$A$8),0))=TRUE,\"E2\",IF(AND($G159<>\"Business\",$H159<>\"XXX01\"),\"E3\",IF(AND($G159=\"Business\",$H159=\"XXX01\"),\"E4\",\"-\"))))","v":"-"}]
["2020-03-06","08:00:00","TL0008","EXS111WC",55609,55709,"Business","ENE01","Work","Client","Client Consultation",3,"A Smith",100,300,{"$f":"IF(ISNA(VLOOKUP($H160,ClientAll,COLUMN(Clients!$C$8),0))=TRUE,0,VLOOKUP($H160,ClientAll,COLUMN(Clients!$C$8),0))","v":100},0,{"$f":"IF(ISNA(VLOOKUP($D160,VehicleID,COLUMN(Vehicles!$A$8),0))=TRUE,\"E1\",IF(ISNA(VLOOKUP($H160,ClientID,COLUMN(Vehicles!$A$8),0))=TRUE,\"E2\",IF(AND($G160<>\"Business\",$H160<>\"XXX01\"),\"E3\",IF(AND($G160=\"Business\",$H160=\"XXX01\"),\"E4\",\"-\"))))","v":"-"}]
["2020-03-06","08:00:00","TL0009","EXS222WC",37099,37194,"Business","XXB01","Work","Client","Client Consultation",3,"C Wilson",95,285,{"$f":"IF(ISNA(VLOOKUP($H161,ClientAll,COLUMN(Clients!$C$8),0))=TRUE,0,VLOOKUP($H161,ClientAll,COLUMN(Clients!$C$8),0))","v":95},0,{"$f":"IF(ISNA(VLOOKUP($D161,VehicleID,COLUMN(Vehicles!$A$8),0))=TRUE,\"E1\",IF(ISNA(VLOOKUP($H161,ClientID,COLUMN(Vehicles!$A$8),0))=TRUE,\"E2\",IF(AND($G161<>\"Business\",$H161<>\"XXX01\"),\"E3\",IF(AND($G161=\"Business\",$H161=\"XXX01\"),\"E4\",\"-\"))))","v":"-"}]
["2020-03-07",null,"TL0008","EXS111WC",55709,55724,"Private","XXX01","Various Private","Various Private","Private Travel",0,"A Smith",15,0,{"$f":"IF(ISNA(VLOOKUP($H162,ClientAll,COLUMN(Clients!$C$8),0))=TRUE,0,VLOOKUP($H162,ClientAll,COLUMN(Clients!$C$8),0))","v":0},0,{"$f":"IF(ISNA(VLOOKUP($D162,VehicleID,COLUMN(Vehicles!$A$8),0))=TRUE,\"E1\",IF(ISNA(VLOOKUP($H162,ClientID,COLUMN(Vehicles!$A$8),0))=TRUE,\"E2\",IF(AND($G162<>\"Business\",$H162<>\"XXX01\"),\"E3\",IF(AND($G162=\"Business\",$H162=\"XXX01\"),\"E4\",\"-\"))))","v":"-"}]
["2020-03-07",null,"TL0009","EXS222WC",37194,37206,"Private","XXX01","Various Private","Various Private","Private Travel",0,"C Wilson",12,0,{"$f":"IF(ISNA(VLOOKUP($H163,ClientAll,COLUMN(Clients!$C$8),0))=TRUE,0,VLOOKUP($H163,ClientAll,COLUMN(Clients!$C$8),0))","v":0},0,{"$f":"IF(ISNA(VLOOKUP($D163,VehicleID,COLUMN(Vehicles!$A$8),0))=TRUE,\"E1\",IF(ISNA(VLOOKUP($H163,ClientID,COLUMN(Vehicles!$A$8),0))=TRUE,\"E2\",IF(AND($G163<>\"Business\",$H163<>\"XXX01\"),\"E3\",IF(AND($G163=\"Business\",$H163=\"XXX01\"),\"E4\",\"-\"))))","v":"-"}]
["2020-03-10","08:00:00","TL0008","EXS111WC",55724,55799,"Business","FSF01","Work","Client","Client Consultation",3,"A Smith",75,225,{"$f":"IF(ISNA(VLOOKUP($H164,ClientAll,COLUMN(Clients!$C$8),0))=TRUE,0,VLOOKUP($H164,ClientAll,COLUMN(Clients!$C$8),0))","v":75},0,{"$f":"IF(ISNA(VLOOKUP($D164,VehicleID,COLUMN(Vehicles!$A$8),0))=TRUE,\"E1\",IF(ISNA(VLOOKUP($H164,ClientID,COLUMN(Vehicles!$A$8),0))=TRUE,\"E2\",IF(AND($G164<>\"Business\",$H164<>\"XXX01\"),\"E3\",IF(AND($G164=\"Business\",$H164=\"XXX01\"),\"E4\",\"-\"))))","v":"-"}]
["2020-03-10","08:00:00","TL0009","EXS222WC",37206,37301,"Business","XXB01","Work","Client","Client Consultation",3,"C Wilson",95,285,{"$f":"IF(ISNA(VLOOKUP($H165,ClientAll,COLUMN(Clients!$C$8),0))=TRUE,0,VLOOKUP($H165,ClientAll,COLUMN(Clients!$C$8),0))","v":95},0,{"$f":"IF(ISNA(VLOOKUP($D165,VehicleID,COLUMN(Vehicles!$A$8),0))=TRUE,\"E1\",IF(ISNA(VLOOKUP($H165,ClientID,COLUMN(Vehicles!$A$8),0))=TRUE,\"E2\",IF(AND($G165<>\"Business\",$H165<>\"XXX01\"),\"E3\",IF(AND($G165=\"Business\",$H165=\"XXX01\"),\"E4\",\"-\"))))","v":"-"}]
["2020-03-10","08:00:00","TL0003","EXS333WC",115233,115513,"Business","INS01","Work","Client","Client Consultation",2.5,"P Butler",280,700,{"$f":"IF(ISNA(VLOOKUP($H166,ClientAll,COLUMN(Clients!$C$8),0))=TRUE,0,VLOOKUP($H166,ClientAll,COLUMN(Clients!$C$8),0))","v":280},0,{"$f":"IF(ISNA(VLOOKUP($D166,VehicleID,COLUMN(Vehicles!$A$8),0))=TRUE,\"E1\",IF(ISNA(VLOOKUP($H166,ClientID,COLUMN(Vehicles!$A$8),0))=TRUE,\"E2\",IF(AND($G166<>\"Business\",$H166<>\"XXX01\"),\"E3\",IF(AND($G166=\"Business\",$H166=\"XXX01\"),\"E4\",\"-\"))))","v":"-"}]
["2020-03-10",null,"TL0008","EXS111WC",55799,55855,"Private","XXX01","Various Private","Various Private","Private Travel",0,"A Smith",56,0,{"$f":"IF(ISNA(VLOOKUP($H167,ClientAll,COLUMN(Clients!$C$8),0))=TRUE,0,VLOOKUP($H167,ClientAll,COLUMN(Clients!$C$8),0))","v":0},0,{"$f":"IF(ISNA(VLOOKUP($D167,VehicleID,COLUMN(Vehicles!$A$8),0))=TRUE,\"E1\",IF(ISNA(VLOOKUP($H167,ClientID,COLUMN(Vehicles!$A$8),0))=TRUE,\"E2\",IF(AND($G167<>\"Business\",$H167<>\"XXX01\"),\"E3\",IF(AND($G167=\"Business\",$H167=\"XXX01\"),\"E4\",\"-\"))))","v":"-"}]
["2020-03-10",null,"TL0009","EXS222WC",37301,37316,"Private","XXX01","Various Private","Various Private","Private Travel",0,"C Wilson",15,0,{"$f":"IF(ISNA(VLOOKUP($H168,ClientAll,COLUMN(Clients!$C$8),0))=TRUE,0,VLOOKUP($H168,ClientAll,COLUMN(Clients!$C$8),0))","v":0},0,{"$f":"IF(ISNA(VLOOKUP($D168,VehicleID,COLUMN(Vehicles!$A$8),0))=TRUE,\"E1\",IF(ISNA(VLOOKUP($H168,ClientID,COLUMN(Vehicles!$A$8),0))=TRUE,\"E2\",IF(AND($G168<>\"Business\",$H168<>\"XXX01\"),\"E3\",IF(AND($G168=\"Business\",$H168=\"XXX01\"),\"E4\",\"-\"))))","v":"-"}]
["2020-03-11","08:00:00","TL0008","EXS111WC",55855,55930,"Business","FSF01","Work","Client","Client Consultation",3,"A Smith",75,225,{"$f":"IF(ISNA(VLOOKUP($H169,ClientAll,COLUMN(Clients!$C$8),0))=TRUE,0,VLOOKUP($H169,ClientAll,COLUMN(Clients!$C$8),0))","v":75},0,{"$f":"IF(ISNA(VLOOKUP($D169,VehicleID,COLUMN(Vehicles!$A$8),0))=TRUE,\"E1\",IF(ISNA(VLOOKUP($H169,ClientID,COLUMN(Vehicles!$A$8),0))=TRUE,\"E2\",IF(AND($G169<>\"Business\",$H169<>\"XXX01\"),\"E3\",IF(AND($G169=\"Business\",$H169=\"XXX01\"),\"E4\",\"-\"))))","v":"-"}]
["2020-03-11","08:00:00","TL0009","EXS222WC",37316,37466,"Business","PTY01","Work","Client","Client Consultation",3,"C Wilson",150,450,{"$f":"IF(ISNA(VLOOKUP($H170,ClientAll,COLUMN(Clients!$C$8),0))=TRUE,0,VLOOKUP($H170,ClientAll,COLUMN(Clients!$C$8),0))","v":150},0,{"$f":"IF(ISNA(VLOOKUP($D170,VehicleID,COLUMN(Vehicles!$A$8),0))=TRUE,\"E1\",IF(ISNA(VLOOKUP($H170,ClientID,COLUMN(Vehicles!$A$8),0))=TRUE,\"E2\",IF(AND($G170<>\"Business\",$H170<>\"XXX01\"),\"E3\",IF(AND($G170=\"Business\",$H170=\"XXX01\"),\"E4\",\"-\"))))","v":"-"}]
["2020-03-11",null,"TL0008","EXS111WC",55930,55955,"Private","XXX01","Various Private","Various Private","Private Travel",0,"A Smith",25,0,{"$f":"IF(ISNA(VLOOKUP($H171,ClientAll,COLUMN(Clients!$C$8),0))=TRUE,0,VLOOKUP($H171,ClientAll,COLUMN(Clients!$C$8),0))","v":0},0,{"$f":"IF(ISNA(VLOOKUP($D171,VehicleID,COLUMN(Vehicles!$A$8),0))=TRUE,\"E1\",IF(ISNA(VLOOKUP($H171,ClientID,COLUMN(Vehicles!$A$8),0))=TRUE,\"E2\",IF(AND($G171<>\"Business\",$H171<>\"XXX01\"),\"E3\",IF(AND($G171=\"Business\",$H171=\"XXX01\"),\"E4\",\"-\"))))","v":"-"}]
["2020-03-11",null,"TL0009","EXS222WC",37466,37507,"Private","XXX01","Various Private","Various Private","Private Travel",0,"C Wilson",41,0,{"$f":"IF(ISNA(VLOOKUP($H172,ClientAll,COLUMN(Clients!$C$8),0))=TRUE,0,VLOOKUP($H172,ClientAll,COLUMN(Clients!$C$8),0))","v":0},0,{"$f":"IF(ISNA(VLOOKUP($D172,VehicleID,COLUMN(Vehicles!$A$8),0))=TRUE,\"E1\",IF(ISNA(VLOOKUP($H172,ClientID,COLUMN(Vehicles!$A$8),0))=TRUE,\"E2\",IF(AND($G172<>\"Business\",$H172<>\"XXX01\"),\"E3\",IF(AND($G172=\"Business\",$H172=\"XXX01\"),\"E4\",\"-\"))))","v":"-"}]
["2020-03-12","08:00:00","TL0008","EXS111WC",55955,56030,"Business","FSF01","Work","Client","Client Consultation",3,"A Smith",75,225,{"$f":"IF(ISNA(VLOOKUP($H173,ClientAll,COLUMN(Clients!$C$8),0))=TRUE,0,VLOOKUP($H173,ClientAll,COLUMN(Clients!$C$8),0))","v":75},0,{"$f":"IF(ISNA(VLOOKUP($D173,VehicleID,COLUMN(Vehicles!$A$8),0))=TRUE,\"E1\",IF(ISNA(VLOOKUP($H173,ClientID,COLUMN(Vehicles!$A$8),0))=TRUE,\"E2\",IF(AND($G173<>\"Business\",$H173<>\"XXX01\"),\"E3\",IF(AND($G173=\"Business\",$H173=\"XXX01\"),\"E4\",\"-\"))))","v":"-"}]
["2020-03-12","08:20:00","TL0009","EXS222WC",37507,37657,"Business","PTY01","Work","Client","Client Consultation",3,"C Wilson",150,450,{"$f":"IF(ISNA(VLOOKUP($H174,ClientAll,COLUMN(Clients!$C$8),0))=TRUE,0,VLOOKUP($H174,ClientAll,COLUMN(Clients!$C$8),0))","v":150},0,{"$f":"IF(ISNA(VLOOKUP($D174,VehicleID,COLUMN(Vehicles!$A$8),0))=TRUE,\"E1\",IF(ISNA(VLOOKUP($H174,ClientID,COLUMN(Vehicles!$A$8),0))=TRUE,\"E2\",IF(AND($G174<>\"Business\",$H174<>\"XXX01\"),\"E3\",IF(AND($G174=\"Business\",$H174=\"XXX01\"),\"E4\",\"-\"))))","v":"-"}]
["2020-03-12",null,"TL0008","EXS111WC",56030,56054,"Private","XXX01","Various Private","Various Private","Private Travel",0,"A Smith",24,0,{"$f":"IF(ISNA(VLOOKUP($H175,ClientAll,COLUMN(Clients!$C$8),0))=TRUE,0,VLOOKUP($H175,ClientAll,COLUMN(Clients!$C$8),0))","v":0},0,{"$f":"IF(ISNA(VLOOKUP($D175,VehicleID,COLUMN(Vehicles!$A$8),0))=TRUE,\"E1\",IF(ISNA(VLOOKUP($H175,ClientID,COLUMN(Vehicles!$A$8),0))=TRUE,\"E2\",IF(AND($G175<>\"Business\",$H175<>\"XXX01\"),\"E3\",IF(AND($G175=\"Business\",$H175=\"XXX01\"),\"E4\",\"-\"))))","v":"-"}]
["2020-03-12",null,"TL0009","EXS222WC",37657,37679,"Private","XXX01","Various Private","Various Private","Private Travel",0,"C Wilson",22,0,{"$f":"IF(ISNA(VLOOKUP($H176,ClientAll,COLUMN(Clients!$C$8),0))=TRUE,0,VLOOKUP($H176,ClientAll,COLUMN(Clients!$C$8),0))","v":0},0,{"$f":"IF(ISNA(VLOOKUP($D176,VehicleID,COLUMN(Vehicles!$A$8),0))=TRUE,\"E1\",IF(ISNA(VLOOKUP($H176,ClientID,COLUMN(Vehicles!$A$8),0))=TRUE,\"E2\",IF(AND($G176<>\"Business\",$H176<>\"XXX01\"),\"E3\",IF(AND($G176=\"Business\",$H176=\"XXX01\"),\"E4\",\"-\"))))","v":"-"}]
["2020-03-13","08:00:00","TL0011","EXS222WC",37679,37829,"Business","PTY01","Work","Client","Client Consultation",3,"C Wilson",150,450,{"$f":"IF(ISNA(VLOOKUP($H177,ClientAll,COLUMN(Clients!$C$8),0))=TRUE,0,VLOOKUP($H177,ClientAll,COLUMN(Clients!$C$8),0))","v":150},0,{"$f":"IF(ISNA(VLOOKUP($D177,VehicleID,COLUMN(Vehicles!$A$8),0))=TRUE,\"E1\",IF(ISNA(VLOOKUP($H177,ClientID,COLUMN(Vehicles!$A$8),0))=TRUE,\"E2\",IF(AND($G177<>\"Business\",$H177<>\"XXX01\"),\"E3\",IF(AND($G177=\"Business\",$H177=\"XXX01\"),\"E4\",\"-\"))))","v":"-"}]
["2020-03-13","09:00:00","TL0010","EXS111WC",56054,56129,"Business","FSF01","Work","Client","Client Consultation",3,"A Smith",75,225,{"$f":"IF(ISNA(VLOOKUP($H178,ClientAll,COLUMN(Clients!$C$8),0))=TRUE,0,VLOOKUP($H178,ClientAll,COLUMN(Clients!$C$8),0))","v":75},0,{"$f":"IF(ISNA(VLOOKUP($D178,VehicleID,COLUMN(Vehicles!$A$8),0))=TRUE,\"E1\",IF(ISNA(VLOOKUP($H178,ClientID,COLUMN(Vehicles!$A$8),0))=TRUE,\"E2\",IF(AND($G178<>\"Business\",$H178<>\"XXX01\"),\"E3\",IF(AND($G178=\"Business\",$H178=\"XXX01\"),\"E4\",\"-\"))))","v":"-"}]
["2020-03-13",null,"TL0010","EXS111WC",56129,56165,"Private","XXX01","Various Private","Various Private","Private Travel",0,"A Smith",36,0,{"$f":"IF(ISNA(VLOOKUP($H179,ClientAll,COLUMN(Clients!$C$8),0))=TRUE,0,VLOOKUP($H179,ClientAll,COLUMN(Clients!$C$8),0))","v":0},0,{"$f":"IF(ISNA(VLOOKUP($D179,VehicleID,COLUMN(Vehicles!$A$8),0))=TRUE,\"E1\",IF(ISNA(VLOOKUP($H179,ClientID,COLUMN(Vehicles!$A$8),0))=TRUE,\"E2\",IF(AND($G179<>\"Business\",$H179<>\"XXX01\"),\"E3\",IF(AND($G179=\"Business\",$H179=\"XXX01\"),\"E4\",\"-\"))))","v":"-"}]
["2020-03-13",null,"TL0011","EXS222WC",37829,37861,"Private","XXX01","Various Private","Various Private","Private Travel",0,"C Wilson",32,0,{"$f":"IF(ISNA(VLOOKUP($H180,ClientAll,COLUMN(Clients!$C$8),0))=TRUE,0,VLOOKUP($H180,ClientAll,COLUMN(Clients!$C$8),0))","v":0},0,{"$f":"IF(ISNA(VLOOKUP($D180,VehicleID,COLUMN(Vehicles!$A$8),0))=TRUE,\"E1\",IF(ISNA(VLOOKUP($H180,ClientID,COLUMN(Vehicles!$A$8),0))=TRUE,\"E2\",IF(AND($G180<>\"Business\",$H180<>\"XXX01\"),\"E3\",IF(AND($G180=\"Business\",$H180=\"XXX01\"),\"E4\",\"-\"))))","v":"-"}]
["2020-03-14","17:00:00","TL0003","EXS333WC",115513,115793,"Business","INS01","Client","Work","Client Consultation",2.5,"P Butler",280,700,{"$f":"IF(ISNA(VLOOKUP($H181,ClientAll,COLUMN(Clients!$C$8),0))=TRUE,0,VLOOKUP($H181,ClientAll,COLUMN(Clients!$C$8),0))","v":280},0,{"$f":"IF(ISNA(VLOOKUP($D181,VehicleID,COLUMN(Vehicles!$A$8),0))=TRUE,\"E1\",IF(ISNA(VLOOKUP($H181,ClientID,COLUMN(Vehicles!$A$8),0))=TRUE,\"E2\",IF(AND($G181<>\"Business\",$H181<>\"XXX01\"),\"E3\",IF(AND($G181=\"Business\",$H181=\"XXX01\"),\"E4\",\"-\"))))","v":"-"}]
["2020-03-17","08:00:00","TL0010","EXS111WC",56165,56240,"Business","FSF01","Work","Client","Client Consultation",3,"A Smith",75,225,{"$f":"IF(ISNA(VLOOKUP($H182,ClientAll,COLUMN(Clients!$C$8),0))=TRUE,0,VLOOKUP($H182,ClientAll,COLUMN(Clients!$C$8),0))","v":75},0,{"$f":"IF(ISNA(VLOOKUP($D182,VehicleID,COLUMN(Vehicles!$A$8),0))=TRUE,\"E1\",IF(ISNA(VLOOKUP($H182,ClientID,COLUMN(Vehicles!$A$8),0))=TRUE,\"E2\",IF(AND($G182<>\"Business\",$H182<>\"XXX01\"),\"E3\",IF(AND($G182=\"Business\",$H182=\"XXX01\"),\"E4\",\"-\"))))","v":"-"}]
["2020-03-17","08:00:00","TL0011","EXS222WC",37861,38011,"Business","PTY01","Work","Client","Client Consultation",3,"C Wilson",150,450,{"$f":"IF(ISNA(VLOOKUP($H183,ClientAll,COLUMN(Clients!$C$8),0))=TRUE,0,VLOOKUP($H183,ClientAll,COLUMN(Clients!$C$8),0))","v":150},0,{"$f":"IF(ISNA(VLOOKUP($D183,VehicleID,COLUMN(Vehicles!$A$8),0))=TRUE,\"E1\",IF(ISNA(VLOOKUP($H183,ClientID,COLUMN(Vehicles!$A$8),0))=TRUE,\"E2\",IF(AND($G183<>\"Business\",$H183<>\"XXX01\"),\"E3\",IF(AND($G183=\"Business\",$H183=\"XXX01\"),\"E4\",\"-\"))))","v":"-"}]
["2020-03-17",null,"TL0010","EXS111WC",56240,56255,"Private","XXX01","Various Private","Various Private","Private Travel",0,"A Smith",15,0,{"$f":"IF(ISNA(VLOOKUP($H184,ClientAll,COLUMN(Clients!$C$8),0))=TRUE,0,VLOOKUP($H184,ClientAll,COLUMN(Clients!$C$8),0))","v":0},0,{"$f":"IF(ISNA(VLOOKUP($D184,VehicleID,COLUMN(Vehicles!$A$8),0))=TRUE,\"E1\",IF(ISNA(VLOOKUP($H184,ClientID,COLUMN(Vehicles!$A$8),0))=TRUE,\"E2\",IF(AND($G184<>\"Business\",$H184<>\"XXX01\"),\"E3\",IF(AND($G184=\"Business\",$H184=\"XXX01\"),\"E4\",\"-\"))))","v":"-"}]
["2020-03-17",null,"TL0011","EXS222WC",38011,38019,"Private","XXX01","Various Private","Various Private","Private Travel",0,"C Wilson",8,0,{"$f":"IF(ISNA(VLOOKUP($H185,ClientAll,COLUMN(Clients!$C$8),0))=TRUE,0,VLOOKUP($H185,ClientAll,COLUMN(Clients!$C$8),0))","v":0},0,{"$f":"IF(ISNA(VLOOKUP($D185,VehicleID,COLUMN(Vehicles!$A$8),0))=TRUE,\"E1\",IF(ISNA(VLOOKUP($H185,ClientID,COLUMN(Vehicles!$A$8),0))=TRUE,\"E2\",IF(AND($G185<>\"Business\",$H185<>\"XXX01\"),\"E3\",IF(AND($G185=\"Business\",$H185=\"XXX01\"),\"E4\",\"-\"))))","v":"-"}]
["2020-03-18","08:00:00","TL0010","EXS111WC",56255,56330,"Business","ABC01","Work","Client","Client Consultation",3,"A Smith",75,225,{"$f":"IF(ISNA(VLOOKUP($H186,ClientAll,COLUMN(Clients!$C$8),0))=TRUE,0,VLOOKUP($H186,ClientAll,COLUMN(Clients!$C$8),0))","v":75},0,{"$f":"IF(ISNA(VLOOKUP($D186,VehicleID,COLUMN(Vehicles!$A$8),0))=TRUE,\"E1\",IF(ISNA(VLOOKUP($H186,ClientID,COLUMN(Vehicles!$A$8),0))=TRUE,\"E2\",IF(AND($G186<>\"Business\",$H186<>\"XXX01\"),\"E3\",IF(AND($G186=\"Business\",$H186=\"XXX01\"),\"E4\",\"-\"))))","v":"-"}]
["2020-03-18","08:00:00","TL0011","EXS222WC",38019,38094,"Business","ABC01","Work","Client","Client Consultation",3,"C Wilson",75,225,{"$f":"IF(ISNA(VLOOKUP($H187,ClientAll,COLUMN(Clients!$C$8),0))=TRUE,0,VLOOKUP($H187,ClientAll,COLUMN(Clients!$C$8),0))","v":75},0,{"$f":"IF(ISNA(VLOOKUP($D187,VehicleID,COLUMN(Vehicles!$A$8),0))=TRUE,\"E1\",IF(ISNA(VLOOKUP($H187,ClientID,COLUMN(Vehicles!$A$8),0))=TRUE,\"E2\",IF(AND($G187<>\"Business\",$H187<>\"XXX01\"),\"E3\",IF(AND($G187=\"Business\",$H187=\"XXX01\"),\"E4\",\"-\"))))","v":"-"}]
["2020-03-18",null,"TL0010","EXS111WC",56330,56351,"Private","XXX01","Various Private","Various Private","Private Travel",0,"A Smith",21,0,{"$f":"IF(ISNA(VLOOKUP($H188,ClientAll,COLUMN(Clients!$C$8),0))=TRUE,0,VLOOKUP($H188,ClientAll,COLUMN(Clients!$C$8),0))","v":0},0,{"$f":"IF(ISNA(VLOOKUP($D188,VehicleID,COLUMN(Vehicles!$A$8),0))=TRUE,\"E1\",IF(ISNA(VLOOKUP($H188,ClientID,COLUMN(Vehicles!$A$8),0))=TRUE,\"E2\",IF(AND($G188<>\"Business\",$H188<>\"XXX01\"),\"E3\",IF(AND($G188=\"Business\",$H188=\"XXX01\"),\"E4\",\"-\"))))","v":"-"}]
["2020-03-18",null,"TL0011","EXS222WC",38094,38116,"Private","XXX01","Various Private","Various Private","Private Travel",0,"C Wilson",22,0,{"$f":"IF(ISNA(VLOOKUP($H189,ClientAll,COLUMN(Clients!$C$8),0))=TRUE,0,VLOOKUP($H189,ClientAll,COLUMN(Clients!$C$8),0))","v":0},0,{"$f":"IF(ISNA(VLOOKUP($D189,VehicleID,COLUMN(Vehicles!$A$8),0))=TRUE,\"E1\",IF(ISNA(VLOOKUP($H189,ClientID,COLUMN(Vehicles!$A$8),0))=TRUE,\"E2\",IF(AND($G189<>\"Business\",$H189<>\"XXX01\"),\"E3\",IF(AND($G189=\"Business\",$H189=\"XXX01\"),\"E4\",\"-\"))))","v":"-"}]
["2020-03-19","08:00:00","TL0010","EXS111WC",56351,56426,"Business","ABC01","Work","Client","Client Consultation",3,"A Smith",75,225,{"$f":"IF(ISNA(VLOOKUP($H190,ClientAll,COLUMN(Clients!$C$8),0))=TRUE,0,VLOOKUP($H190,ClientAll,COLUMN(Clients!$C$8),0))","v":75},0,{"$f":"IF(ISNA(VLOOKUP($D190,VehicleID,COLUMN(Vehicles!$A$8),0))=TRUE,\"E1\",IF(ISNA(VLOOKUP($H190,ClientID,COLUMN(Vehicles!$A$8),0))=TRUE,\"E2\",IF(AND($G190<>\"Business\",$H190<>\"XXX01\"),\"E3\",IF(AND($G190=\"Business\",$H190=\"XXX01\"),\"E4\",\"-\"))))","v":"-"}]
["2020-03-19","08:00:00","TL0011","EXS222WC",38116,38191,"Business","XYS01","Work","Client","Client Consultation",3,"C Wilson",75,225,{"$f":"IF(ISNA(VLOOKUP($H191,ClientAll,COLUMN(Clients!$C$8),0))=TRUE,0,VLOOKUP($H191,ClientAll,COLUMN(Clients!$C$8),0))","v":75},0,{"$f":"IF(ISNA(VLOOKUP($D191,VehicleID,COLUMN(Vehicles!$A$8),0))=TRUE,\"E1\",IF(ISNA(VLOOKUP($H191,ClientID,COLUMN(Vehicles!$A$8),0))=TRUE,\"E2\",IF(AND($G191<>\"Business\",$H191<>\"XXX01\"),\"E3\",IF(AND($G191=\"Business\",$H191=\"XXX01\"),\"E4\",\"-\"))))","v":"-"}]
["2020-03-19",null,"TL0010","EXS111WC",56426,56531,"Private","XXX01","Various Private","Various Private","Private Travel",0,"A Smith",105,0,{"$f":"IF(ISNA(VLOOKUP($H192,ClientAll,COLUMN(Clients!$C$8),0))=TRUE,0,VLOOKUP($H192,ClientAll,COLUMN(Clients!$C$8),0))","v":0},0,{"$f":"IF(ISNA(VLOOKUP($D192,VehicleID,COLUMN(Vehicles!$A$8),0))=TRUE,\"E1\",IF(ISNA(VLOOKUP($H192,ClientID,COLUMN(Vehicles!$A$8),0))=TRUE,\"E2\",IF(AND($G192<>\"Business\",$H192<>\"XXX01\"),\"E3\",IF(AND($G192=\"Business\",$H192=\"XXX01\"),\"E4\",\"-\"))))","v":"-"}]
["2020-03-19",null,"TL0011","EXS222WC",38191,38203,"Private","XXX01","Various Private","Various Private","Private Travel",0,"C Wilson",12,0,{"$f":"IF(ISNA(VLOOKUP($H193,ClientAll,COLUMN(Clients!$C$8),0))=TRUE,0,VLOOKUP($H193,ClientAll,COLUMN(Clients!$C$8),0))","v":0},0,{"$f":"IF(ISNA(VLOOKUP($D193,VehicleID,COLUMN(Vehicles!$A$8),0))=TRUE,\"E1\",IF(ISNA(VLOOKUP($H193,ClientID,COLUMN(Vehicles!$A$8),0))=TRUE,\"E2\",IF(AND($G193<>\"Business\",$H193<>\"XXX01\"),\"E3\",IF(AND($G193=\"Business\",$H193=\"XXX01\"),\"E4\",\"-\"))))","v":"-"}]
["2020-03-24","08:00:00","TL0010","EXS111WC",56531,56631,"Business","ENE01","Work","Client","Client Consultation",3,"A Smith",100,300,{"$f":"IF(ISNA(VLOOKUP($H194,ClientAll,COLUMN(Clients!$C$8),0))=TRUE,0,VLOOKUP($H194,ClientAll,COLUMN(Clients!$C$8),0))","v":100},0,{"$f":"IF(ISNA(VLOOKUP($D194,VehicleID,COLUMN(Vehicles!$A$8),0))=TRUE,\"E1\",IF(ISNA(VLOOKUP($H194,ClientID,COLUMN(Vehicles!$A$8),0))=TRUE,\"E2\",IF(AND($G194<>\"Business\",$H194<>\"XXX01\"),\"E3\",IF(AND($G194=\"Business\",$H194=\"XXX01\"),\"E4\",\"-\"))))","v":"-"}]
["2020-03-24","08:00:00","TL0011","EXS222WC",38203,38278,"Business","XYS01","Work","Client","Client Consultation",3,"C Wilson",75,225,{"$f":"IF(ISNA(VLOOKUP($H195,ClientAll,COLUMN(Clients!$C$8),0))=TRUE,0,VLOOKUP($H195,ClientAll,COLUMN(Clients!$C$8),0))","v":75},0,{"$f":"IF(ISNA(VLOOKUP($D195,VehicleID,COLUMN(Vehicles!$A$8),0))=TRUE,\"E1\",IF(ISNA(VLOOKUP($H195,ClientID,COLUMN(Vehicles!$A$8),0))=TRUE,\"E2\",IF(AND($G195<>\"Business\",$H195<>\"XXX01\"),\"E3\",IF(AND($G195=\"Business\",$H195=\"XXX01\"),\"E4\",\"-\"))))","v":"-"}]
["2020-03-24",null,"TL0010","EXS111WC",56631,56656,"Private","XXX01","Various Private","Various Private","Private Travel",0,"A Smith",{"$f":"F196-E196","v":25},{"$f":"N196*L196","v":0},{"$f":"IF(ISNA(VLOOKUP($H196,ClientAll,COLUMN(Clients!$C$8),0))=TRUE,0,VLOOKUP($H196,ClientAll,COLUMN(Clients!$C$8),0))","v":0},{"$f":"IF(G196=\"Private\",0,N196-P196)","v":0},{"$f":"IF(ISNA(VLOOKUP($D196,VehicleID,COLUMN(Vehicles!$A$8),0))=TRUE,\"E1\",IF(ISNA(VLOOKUP($H196,ClientID,COLUMN(Vehicles!$A$8),0))=TRUE,\"E2\",IF(AND($G196<>\"Business\",$H196<>\"XXX01\"),\"E3\",IF(AND($G196=\"Business\",$H196=\"XXX01\"),\"E4\",\"-\"))))","v":"-"}]
["2020-03-24",null,"TL0011","EXS222WC",38278,38293,"Private","XXX01","Various Private","Various Private","Private Travel",0,"C Wilson",15,0,{"$f":"IF(ISNA(VLOOKUP($H197,ClientAll,COLUMN(Clients!$C$8),0))=TRUE,0,VLOOKUP($H197,ClientAll,COLUMN(Clients!$C$8),0))","v":0},0,{"$f":"IF(ISNA(VLOOKUP($D197,VehicleID,COLUMN(Vehicles!$A$8),0))=TRUE,\"E1\",IF(ISNA(VLOOKUP($H197,ClientID,COLUMN(Vehicles!$A$8),0))=TRUE,\"E2\",IF(AND($G197<>\"Business\",$H197<>\"XXX01\"),\"E3\",IF(AND($G197=\"Business\",$H197=\"XXX01\"),\"E4\",\"-\"))))","v":"-"}]
["2020-03-25","08:00:00","TL0010","EXS111WC",56656,56744,"Business","DIG01","Work","Client","Client Consultation",3,"A Smith",88,264,{"$f":"IF(ISNA(VLOOKUP($H198,ClientAll,COLUMN(Clients!$C$8),0))=TRUE,0,VLOOKUP($H198,ClientAll,COLUMN(Clients!$C$8),0))","v":88},0,{"$f":"IF(ISNA(VLOOKUP($D198,VehicleID,COLUMN(Vehicles!$A$8),0))=TRUE,\"E1\",IF(ISNA(VLOOKUP($H198,ClientID,COLUMN(Vehicles!$A$8),0))=TRUE,\"E2\",IF(AND($G198<>\"Business\",$H198<>\"XXX01\"),\"E3\",IF(AND($G198=\"Business\",$H198=\"XXX01\"),\"E4\",\"-\"))))","v":"-"}]
["2020-03-25","08:00:00","TL0011","EXS222WC",38293,38368,"Business","XYS01","Work","Client","Client Consultation",3,"C Wilson",75,225,{"$f":"IF(ISNA(VLOOKUP($H199,ClientAll,COLUMN(Clients!$C$8),0))=TRUE,0,VLOOKUP($H199,ClientAll,COLUMN(Clients!$C$8),0))","v":75},0,{"$f":"IF(ISNA(VLOOKUP($D199,VehicleID,COLUMN(Vehicles!$A$8),0))=TRUE,\"E1\",IF(ISNA(VLOOKUP($H199,ClientID,COLUMN(Vehicles!$A$8),0))=TRUE,\"E2\",IF(AND($G199<>\"Business\",$H199<>\"XXX01\"),\"E3\",IF(AND($G199=\"Business\",$H199=\"XXX01\"),\"E4\",\"-\"))))","v":"-"}]
["2020-03-25",null,"TL0010","EXS111WC",56744,56770,"Private","XXX01","Various Private","Various Private","Private Travel",0,"A Smith",26,0,{"$f":"IF(ISNA(VLOOKUP($H200,ClientAll,COLUMN(Clients!$C$8),0))=TRUE,0,VLOOKUP($H200,ClientAll,COLUMN(Clients!$C$8),0))","v":0},0,{"$f":"IF(ISNA(VLOOKUP($D200,VehicleID,COLUMN(Vehicles!$A$8),0))=TRUE,\"E1\",IF(ISNA(VLOOKUP($H200,ClientID,COLUMN(Vehicles!$A$8),0))=TRUE,\"E2\",IF(AND($G200<>\"Business\",$H200<>\"XXX01\"),\"E3\",IF(AND($G200=\"Business\",$H200=\"XXX01\"),\"E4\",\"-\"))))","v":"-"}]
["2020-03-25",null,"TL0011","EXS222WC",38368,38388,"Private","XXX01","Various Private","Various Private","Private Travel",0,"C Wilson",20,0,{"$f":"IF(ISNA(VLOOKUP($H201,ClientAll,COLUMN(Clients!$C$8),0))=TRUE,0,VLOOKUP($H201,ClientAll,COLUMN(Clients!$C$8),0))","v":0},0,{"$f":"IF(ISNA(VLOOKUP($D201,VehicleID,COLUMN(Vehicles!$A$8),0))=TRUE,\"E1\",IF(ISNA(VLOOKUP($H201,ClientID,COLUMN(Vehicles!$A$8),0))=TRUE,\"E2\",IF(AND($G201<>\"Business\",$H201<>\"XXX01\"),\"E3\",IF(AND($G201=\"Business\",$H201=\"XXX01\"),\"E4\",\"-\"))))","v":"-"}]
["2020-03-26","08:00:00","TL0010","EXS111WC",56770,56800,"Business","DFM01","Work","Client","Client Consultation",3,"A Smith",30,90,{"$f":"IF(ISNA(VLOOKUP($H202,ClientAll,COLUMN(Clients!$C$8),0))=TRUE,0,VLOOKUP($H202,ClientAll,COLUMN(Clients!$C$8),0))","v":30},0,{"$f":"IF(ISNA(VLOOKUP($D202,VehicleID,COLUMN(Vehicles!$A$8),0))=TRUE,\"E1\",IF(ISNA(VLOOKUP($H202,ClientID,COLUMN(Vehicles!$A$8),0))=TRUE,\"E2\",IF(AND($G202<>\"Business\",$H202<>\"XXX01\"),\"E3\",IF(AND($G202=\"Business\",$H202=\"XXX01\"),\"E4\",\"-\"))))","v":"-"}]
["2020-03-26","08:00:00","TL0011","EXS222WC",38388,38463,"Business","XYS01","Work","Client","Client Consultation",3,"C Wilson",75,225,{"$f":"IF(ISNA(VLOOKUP($H203,ClientAll,COLUMN(Clients!$C$8),0))=TRUE,0,VLOOKUP($H203,ClientAll,COLUMN(Clients!$C$8),0))","v":75},0,{"$f":"IF(ISNA(VLOOKUP($D203,VehicleID,COLUMN(Vehicles!$A$8),0))=TRUE,\"E1\",IF(ISNA(VLOOKUP($H203,ClientID,COLUMN(Vehicles!$A$8),0))=TRUE,\"E2\",IF(AND($G203<>\"Business\",$H203<>\"XXX01\"),\"E3\",IF(AND($G203=\"Business\",$H203=\"XXX01\"),\"E4\",\"-\"))))","v":"-"}]
["2020-03-26",null,"TL0010","EXS111WC",56800,56834,"Private","XXX01","Various Private","Various Private","Private Travel",0,"A Smith",34,0,{"$f":"IF(ISNA(VLOOKUP($H204,ClientAll,COLUMN(Clients!$C$8),0))=TRUE,0,VLOOKUP($H204,ClientAll,COLUMN(Clients!$C$8),0))","v":0},0,{"$f":"IF(ISNA(VLOOKUP($D204,VehicleID,COLUMN(Vehicles!$A$8),0))=TRUE,\"E1\",IF(ISNA(VLOOKUP($H204,ClientID,COLUMN(Vehicles!$A$8),0))=TRUE,\"E2\",IF(AND($G204<>\"Business\",$H204<>\"XXX01\"),\"E3\",IF(AND($G204=\"Business\",$H204=\"XXX01\"),\"E4\",\"-\"))))","v":"-"}]
["2020-03-26",null,"TL0011","EXS222WC",38463,38481,"Private","XXX01","Various Private","Various Private","Private Travel",0,"C Wilson",18,0,{"$f":"IF(ISNA(VLOOKUP($H205,ClientAll,COLUMN(Clients!$C$8),0))=TRUE,0,VLOOKUP($H205,ClientAll,COLUMN(Clients!$C$8),0))","v":0},0,{"$f":"IF(ISNA(VLOOKUP($D205,VehicleID,COLUMN(Vehicles!$A$8),0))=TRUE,\"E1\",IF(ISNA(VLOOKUP($H205,ClientID,COLUMN(Vehicles!$A$8),0))=TRUE,\"E2\",IF(AND($G205<>\"Business\",$H205<>\"XXX01\"),\"E3\",IF(AND($G205=\"Business\",$H205=\"XXX01\"),\"E4\",\"-\"))))","v":"-"}]
["2020-03-27","08:00:00","TL0010","EXS111WC",56834,56879,"Business","ECE01","Work","Client","Client Consultation",3,"A Smith",45,135,{"$f":"IF(ISNA(VLOOKUP($H206,ClientAll,COLUMN(Clients!$C$8),0))=TRUE,0,VLOOKUP($H206,ClientAll,COLUMN(Clients!$C$8),0))","v":45},0,{"$f":"IF(ISNA(VLOOKUP($D206,VehicleID,COLUMN(Vehicles!$A$8),0))=TRUE,\"E1\",IF(ISNA(VLOOKUP($H206,ClientID,COLUMN(Vehicles!$A$8),0))=TRUE,\"E2\",IF(AND($G206<>\"Business\",$H206<>\"XXX01\"),\"E3\",IF(AND($G206=\"Business\",$H206=\"XXX01\"),\"E4\",\"-\"))))","v":"-"}]
["2020-03-27","08:00:00","TL0011","EXS222WC",38481,38556,"Business","XYS01","Work","Client","Client Consultation",3,"C Wilson",75,225,{"$f":"IF(ISNA(VLOOKUP($H207,ClientAll,COLUMN(Clients!$C$8),0))=TRUE,0,VLOOKUP($H207,ClientAll,COLUMN(Clients!$C$8),0))","v":75},0,{"$f":"IF(ISNA(VLOOKUP($D207,VehicleID,COLUMN(Vehicles!$A$8),0))=TRUE,\"E1\",IF(ISNA(VLOOKUP($H207,ClientID,COLUMN(Vehicles!$A$8),0))=TRUE,\"E2\",IF(AND($G207<>\"Business\",$H207<>\"XXX01\"),\"E3\",IF(AND($G207=\"Business\",$H207=\"XXX01\"),\"E4\",\"-\"))))","v":"-"}]
["2020-03-27",null,"TL0010","EXS111WC",56879,56926,"Private","XXX01","Various Private","Various Private","Private Travel",0,"A Smith",47,0,{"$f":"IF(ISNA(VLOOKUP($H208,ClientAll,COLUMN(Clients!$C$8),0))=TRUE,0,VLOOKUP($H208,ClientAll,COLUMN(Clients!$C$8),0))","v":0},0,{"$f":"IF(ISNA(VLOOKUP($D208,VehicleID,COLUMN(Vehicles!$A$8),0))=TRUE,\"E1\",IF(ISNA(VLOOKUP($H208,ClientID,COLUMN(Vehicles!$A$8),0))=TRUE,\"E2\",IF(AND($G208<>\"Business\",$H208<>\"XXX01\"),\"E3\",IF(AND($G208=\"Business\",$H208=\"XXX01\"),\"E4\",\"-\"))))","v":"-"}]
["2020-03-27",null,"TL0011","EXS222WC",38556,38578,"Private","XXX01","Various Private","Various Private","Private Travel",0,"C Wilson",22,0,{"$f":"IF(ISNA(VLOOKUP($H209,ClientAll,COLUMN(Clients!$C$8),0))=TRUE,0,VLOOKUP($H209,ClientAll,COLUMN(Clients!$C$8),0))","v":0},0,{"$f":"IF(ISNA(VLOOKUP($D209,VehicleID,COLUMN(Vehicles!$A$8),0))=TRUE,\"E1\",IF(ISNA(VLOOKUP($H209,ClientID,COLUMN(Vehicles!$A$8),0))=TRUE,\"E2\",IF(AND($G209<>\"Business\",$H209<>\"XXX01\"),\"E3\",IF(AND($G209=\"Business\",$H209=\"XXX01\"),\"E4\",\"-\"))))","v":"-"}]
["2020-03-28","08:00:00","TL0010","EXS111WC",56926,57026,"Business","ENE01","Work","Client","Client Consultation",3,"A Smith",100,300,{"$f":"IF(ISNA(VLOOKUP($H210,ClientAll,COLUMN(Clients!$C$8),0))=TRUE,0,VLOOKUP($H210,ClientAll,COLUMN(Clients!$C$8),0))","v":100},0,{"$f":"IF(ISNA(VLOOKUP($D210,VehicleID,COLUMN(Vehicles!$A$8),0))=TRUE,\"E1\",IF(ISNA(VLOOKUP($H210,ClientID,COLUMN(Vehicles!$A$8),0))=TRUE,\"E2\",IF(AND($G210<>\"Business\",$H210<>\"XXX01\"),\"E3\",IF(AND($G210=\"Business\",$H210=\"XXX01\"),\"E4\",\"-\"))))","v":"-"}]
["2020-03-28","08:00:00","TL0011","EXS222WC",38578,38653,"Business","XYS01","Work","Client","Client Consultation",3,"C Wilson",75,225,{"$f":"IF(ISNA(VLOOKUP($H211,ClientAll,COLUMN(Clients!$C$8),0))=TRUE,0,VLOOKUP($H211,ClientAll,COLUMN(Clients!$C$8),0))","v":75},0,{"$f":"IF(ISNA(VLOOKUP($D211,VehicleID,COLUMN(Vehicles!$A$8),0))=TRUE,\"E1\",IF(ISNA(VLOOKUP($H211,ClientID,COLUMN(Vehicles!$A$8),0))=TRUE,\"E2\",IF(AND($G211<>\"Business\",$H211<>\"XXX01\"),\"E3\",IF(AND($G211=\"Business\",$H211=\"XXX01\"),\"E4\",\"-\"))))","v":"-"}]
["2020-03-28",null,"TL0010","EXS111WC",57026,57049,"Private","XXX01","Various Private","Various Private","Private Travel",0,"A Smith",23,0,{"$f":"IF(ISNA(VLOOKUP($H212,ClientAll,COLUMN(Clients!$C$8),0))=TRUE,0,VLOOKUP($H212,ClientAll,COLUMN(Clients!$C$8),0))","v":0},0,{"$f":"IF(ISNA(VLOOKUP($D212,VehicleID,COLUMN(Vehicles!$A$8),0))=TRUE,\"E1\",IF(ISNA(VLOOKUP($H212,ClientID,COLUMN(Vehicles!$A$8),0))=TRUE,\"E2\",IF(AND($G212<>\"Business\",$H212<>\"XXX01\"),\"E3\",IF(AND($G212=\"Business\",$H212=\"XXX01\"),\"E4\",\"-\"))))","v":"-"}]
["2020-03-28",null,"TL0011","EXS222WC",38653,38686,"Private","XXX01","Various Private","Various Private","Private Travel",0,"C Wilson",33,0,{"$f":"IF(ISNA(VLOOKUP($H213,ClientAll,COLUMN(Clients!$C$8),0))=TRUE,0,VLOOKUP($H213,ClientAll,COLUMN(Clients!$C$8),0))","v":0},0,{"$f":"IF(ISNA(VLOOKUP($D213,VehicleID,COLUMN(Vehicles!$A$8),0))=TRUE,\"E1\",IF(ISNA(VLOOKUP($H213,ClientID,COLUMN(Vehicles!$A$8),0))=TRUE,\"E2\",IF(AND($G213<>\"Business\",$H213<>\"XXX01\"),\"E3\",IF(AND($G213=\"Business\",$H213=\"XXX01\"),\"E4\",\"-\"))))","v":"-"}]
["2020-03-31","08:00:00","TL0010","EXS111WC",57049,57124,"Business","FSF01","Work","Client","Client Consultation",3,"A Smith",75,225,{"$f":"IF(ISNA(VLOOKUP($H214,ClientAll,COLUMN(Clients!$C$8),0))=TRUE,0,VLOOKUP($H214,ClientAll,COLUMN(Clients!$C$8),0))","v":75},0,{"$f":"IF(ISNA(VLOOKUP($D214,VehicleID,COLUMN(Vehicles!$A$8),0))=TRUE,\"E1\",IF(ISNA(VLOOKUP($H214,ClientID,COLUMN(Vehicles!$A$8),0))=TRUE,\"E2\",IF(AND($G214<>\"Business\",$H214<>\"XXX01\"),\"E3\",IF(AND($G214=\"Business\",$H214=\"XXX01\"),\"E4\",\"-\"))))","v":"-"}]
["2020-03-31","08:00:00","TL0011","EXS222WC",38686,38836,"Business","PTY01","Work","Client","Client Consultation",3,"C Wilson",150,450,{"$f":"IF(ISNA(VLOOKUP($H215,ClientAll,COLUMN(Clients!$C$8),0))=TRUE,0,VLOOKUP($H215,ClientAll,COLUMN(Clients!$C$8),0))","v":150},0,{"$f":"IF(ISNA(VLOOKUP($D215,VehicleID,COLUMN(Vehicles!$A$8),0))=TRUE,\"E1\",IF(ISNA(VLOOKUP($H215,ClientID,COLUMN(Vehicles!$A$8),0))=TRUE,\"E2\",IF(AND($G215<>\"Business\",$H215<>\"XXX01\"),\"E3\",IF(AND($G215=\"Business\",$H215=\"XXX01\"),\"E4\",\"-\"))))","v":"-"}]

{"sheet":"Clients","index":4,"n_rows":28,"n_cols":15,"rows_kept":28,"cut":false,"hidden":true,"merged":[[6,12,6,14],[6,9,6,11],[3,11,3,13]]}
["Client Charge Sheet"]
["© www.excel-skills.com"]
[null,"Total Business Trip Mileage",{"$f":"IF($K$5=\"All\",SUMPRODUCT((LogDate>=$G$5)*(LogDate<=$I$5)*(LogType=\"Business\")*(LogDistance)),SUMPRODUCT((LogDate>=$G$5)*(LogDate<=$I$5)*(LogVehicle=$K$5)*(LogType=\"Business\")*(LogDistance)))","v":14308},{"$f":"IF(C$5=0,0,C3/C$5)","v":0.79888330541596875},null,"Filter Selections:"]
[null,"Total Private Trip Mileage",{"$f":"IF($K$5=\"All\",SUMPRODUCT((LogDate>=$G$5)*(LogDate<=$I$5)*(LogType<>\"Business\")*(LogDistance)),SUMPRODUCT((LogDate>=$G$5)*(LogDate<=$I$5)*(LogVehicle=$K$5)*(LogType<>\"Business\")*(LogDistance)))","v":3602},{"$f":"IF(C$5=0,0,C4/C$5)","v":0.20111669458403128},null,"From Date:","2020-01-01","To Date:","2020-03-31","Vehicle:",null,{"$f":"IF($K$5=\"All\",\"All vehicles\",VLOOKUP($K$4,VehicleAll,COLUMN(Vehicles!$B$8),0))","v":"All vehicles"}]
[null,"Total All Trip Mileage",{"$f":"SUM(C3:C4)","v":17910},null,null,null,{"$f":"IF(ISBLANK($G4)=TRUE,DATE(YEAR(TODAY())-5,1,1),$G4)","v":"2020-01-01"},null,{"$f":"IF(ISBLANK($I4)=TRUE,DATE(YEAR(TODAY()),MONTH(TODAY())+1,0),$I4)","v":"2020-03-31"},null,{"$f":"IF(ISBLANK($K4)=TRUE,\"All\",$K4)","v":"All"}]
[]
[null,null,null,{"$f":"SUBTOTAL(109,OFFSET(D$8,1,0,ClientCount,1))","v":17910},{"$f":"SUBTOTAL(109,OFFSET(E$8,1,0,ClientCount,1))","v":40134},null,null,null,null,"Total Mileage",null,null,"Number of Trips"]
["Client Code","Client Name","Travel Distance","Total \nMileage","Total \nCharges","Rate \nCharged","Number of Trips","Average Distance","Distance Variance",{"$f":"DATE(YEAR($I$5),MONTH($I$5)+1,0)","v":"2020-03-31"},{"$f":"DATE(YEAR(J8),MONTH(J8),0)","v":"2020-02-29"},{"$f":"DATE(YEAR(J8),MONTH(J8)-1,0)","v":"2020-01-31"},{"$f":"DATE(YEAR($I$5),MONTH($I$5)+1,0)","v":"2020-03-31"},{"$f":"DATE(YEAR(M8),MONTH(M8),0)","v":"2020-02-29"},{"$f":"DATE(YEAR(M8),MONTH(M8)-1,0)","v":"2020-01-31"}]
["ABC01","ABC Limited",75,{"$f":"IF($K$5=\"All\",SUMPRODUCT((LogDate>=$G$5)*(LogDate<=$I$5)*(LogClient=$A9)*(LogDistance)),SUMPRODUCT((LogDate>=$G$5)*(LogDate<=$I$5)*(LogVehicle=$K$5)*(LogClient=$A9)*(LogDistance)))","v":750},{"$f":"IF($K$5=\"All\",SUMPRODUCT((LogDate>=$G$5)*(LogDate<=$I$5)*(LogClient=$A9)*(LogCost)),SUMPRODUCT((LogDate>=$G$5)*(LogDate<=$I$5)*(LogVehicle=$K$5)*(LogClient=$A9)*(LogCost)))","v":2250},{"$f":"IF(D9=0,0,E9/D9)","v":3},{"$f":"IF($K$5=\"All\",SUMPRODUCT((LogDate>=$G$5)*(LogDate<=$I$5)*(LogClient=$A9)*(1)),SUMPRODUCT((LogDate>=$G$5)*(LogDate<=$I$5)*(LogVehicle=$K$5)*(LogClient=$A9)*(1)))","v":10},{"$f":"IF(G9=0,0,D9/G9)","v":75},{"$f":"IF(OR(H9=0,C9=0),0,H9-C9)","v":0},{"$f":"IF($K$5=\"All\",SUMPRODUCT((LogDate>=DATE(YEAR(J$8),MONTH(J$8),1))*(LogDate<=J$8)*(LogClient=$A9)*(LogDistance)),SUMPRODUCT((LogDate>=DATE(YEAR(J$8),MONTH(J$8),1))*(LogDate<=J$8)*(LogVehicle=$K$5)*(LogClient=$A9)*(LogDistance)))","v":225},525,0,{"$f":"IF($K$5=\"All\",SUMPRODUCT((LogDate>=DATE(YEAR(M$8),MONTH(M$8),1))*(LogDate<=M$8)*(LogClient=$A9)*(1)),SUMPRODUCT((LogDate>=DATE(YEAR(M$8),MONTH(M$8),1))*(LogDate<=M$8)*(LogVehicle=$K$5)*(LogClient=$A9)*(1)))","v":3},7,0]
["CCS01","CC Supplies",60,120,360,{"$f":"IF(D10=0,0,E10/D10)","v":3},2,{"$f":"IF(G10=0,0,D10/G10)","v":60},{"$f":"IF(OR(H10=0,C10=0),0,H10-C10)","v":0},0,60,60,0,1,1]
["DFM01","DF Manufacturing",30,90,270,3,3,30,0,30,60,0,1,2,0]
["DIG01","Digicom",88,616,1848,3,7,88,0,88,88,440,1,1,5]
["ECE01","EC Estate Agents",45,45,135,3,1,45,0,45,0,0,1,0,0]
["ENE01","Energy Incorporated",100,2400,7200,3,24,100,0,600,500,1300,6,5,13]
["FSF01","FS Financial Services",75,525,1575,3,7,75,0,450,75,0,6,1,0]
["GPA01","GP Accountants",120,0,0,0,0,0,0,0,0,0,0,0,0]
["INS01","Insurance Solutions",280,560,1400,2.5,2,280,0,560,0,0,2,0,0]
["ITS01","IT Solutions",415,1660,4150,2.5,4,415,0,0,0,1660,0,0,4]
["KZB01","KZN Bonds",420,3360,8400,2.5,8,420,0,0,3360,0,0,8,0]
["PTY01","PTY Consultants",150,2700,8100,3,18,150,0,750,450,1500,5,3,10]
["SAB01","SA Bonds",40,120,360,3,3,40,0,0,0,120,0,0,3]
["TPS01","The Paint Shop",32,352,1056,3,11,32,0,0,352,0,0,11,0]
["TRF01","TRF Solutions",55,55,165,3,1,55,0,0,55,0,0,1,0]
["WCA01","WC Financial Advisors",15,30,90,3,2,15,0,0,0,30,0,0,2]
["WWR01","WW Retail",48,0,0,0,0,0,0,0,0,0,0,0,0]
["XXB01","XX Building Supplies",95,475,1425,3,5,95,0,475,0,0,5,0,0]
["XYS01","XY Services",75,450,1350,3,6,75,0,450,0,0,6,0,0]
["XXX01","Unassigned Private Travel",0,3602,0,0,98,36.755102040816325,0,819,1035,1748,32,32,34]

{"sheet":"Vehicles","index":5,"n_rows":11,"n_cols":17,"rows_kept":11,"cut":false,"hidden":true,"merged":[[3,11,3,13],[6,8,6,10],[6,11,6,13],[6,14,6,16]]}
["Vehicle Charge Sheet"]
["© www.excel-skills.com"]
[null,"Total Business Trip Mileage",{"$f":"IF($K$5=\"All\",SUMPRODUCT((LogDate>=$G$5)*(LogDate<=$I$5)*(LogType=\"Business\")*(LogDistance)),SUMPRODUCT((LogDate>=$G$5)*(LogDate<=$I$5)*(LogVehicle=$K$5)*(LogType=\"Business\")*(LogDistance)))","v":14308},{"$f":"IF(C$5=0,0,C3/C$5)","v":0.79888330541596875},null,"Filter Selections:"]
[null,"Total Private Trip Mileage",{"$f":"IF($K$5=\"All\",SUMPRODUCT((LogDate>=$G$5)*(LogDate<=$I$5)*(LogType<>\"Business\")*(LogDistance)),SUMPRODUCT((LogDate>=$G$5)*(LogDate<=$I$5)*(LogVehicle=$K$5)*(LogType<>\"Business\")*(LogDistance)))","v":3602},{"$f":"IF(C$5=0,0,C4/C$5)","v":0.20111669458403128},null,"From Date:","2020-01-01","To Date:","2020-03-31","Client:",null,{"$f":"IF($K$5=\"All\",\"All clients\",VLOOKUP($K$4,ClientAll,COLUMN(Clients!$B$8),0))","v":"All clients"}]
[null,"Total All Trip Mileage",{"$f":"SUM(C3:C4)","v":17910},null,null,null,{"$f":"IF(ISBLANK($G4)=TRUE,DATE(YEAR(TODAY())-5,1,1),$G4)","v":"2020-01-01"},null,{"$f":"IF(ISBLANK($I4)=TRUE,DATE(YEAR(TODAY()),MONTH(TODAY())+1,0),$I4)","v":"2020-03-31"},null,{"$f":"IF(ISBLANK($K4)=TRUE,\"All\",$K4)","v":"All"}]
[]
[null,null,{"$f":"SUBTOTAL(109,OFFSET(C$8,1,0,ClientCount,1))","v":17910},{"$f":"SUBTOTAL(109,OFFSET(D$8,1,0,ClientCount,1))","v":40134},null,null,null,null,"Total Mileage",null,null,"Business %",null,null,"Number of Business Trips"]
["Vehicle Reg Number","Vehicle Description","Total Mileage","Total Charges","Business Mileage","Business Travel %","Rate Charged","Business \nTrips",{"$f":"DATE(YEAR($I$5),MONTH($I$5)+1,0)","v":"2020-03-31"},{"$f":"DATE(YEAR(I8),MONTH(I8),0)","v":"2020-02-29"},{"$f":"DATE(YEAR(I8),MONTH(I8)-1,0)","v":"2020-01-31"},{"$f":"DATE(YEAR($I$5),MONTH($I$5)+1,0)","v":"2020-03-31"},{"$f":"DATE(YEAR(L8),MONTH(L8),0)","v":"2020-02-29"},{"$f":"DATE(YEAR(L8),MONTH(L8)-1,0)","v":"2020-01-31"},{"$f":"DATE(YEAR($I$5),MONTH($I$5)+1,0)","v":"2020-03-31"},{"$f":"DATE(YEAR(O8),MONTH(O8),0)","v":"2020-02-29"},{"$f":"DATE(YEAR(O8),MONTH(O8)-1,0)","v":"2020-01-31"}]
["EXS111WC","BMW - A Smith",{"$f":"IF($K$5=\"All\",SUMPRODUCT((LogDate>=$G$5)*(LogDate<=$I$5)*(LogVehicle=$A9)*(LogDistance)),SUMPRODUCT((LogDate>=$G$5)*(LogDate<=$I$5)*(LogClient=$K$5)*(LogVehicle=$A9)*(LogDistance)))","v":6709},{"$f":"IF($K$5=\"All\",SUMPRODUCT((LogDate>=$G$5)*(LogDate<=$I$5)*(LogVehicle=$A9)*(LogCost)),SUMPRODUCT((LogDate>=$G$5)*(LogDate<=$I$5)*(LogClient=$K$5)*(LogVehicle=$A9)*(LogCost)))","v":12513},{"$f":"IF($K$5=\"All\",SUMPRODUCT((LogDate>=$G$5)*(LogDate<=$I$5)*(LogType=\"Business\")*(LogVehicle=$A9)*(LogDistance)),SUMPRODUCT((LogDate>=$G$5)*(LogDate<=$I$5)*(LogType=\"Business\")*(LogClient=$K$5)*(LogVehicle=$A9)*(LogDistance)))","v":4171},{"$f":"IF(C9=0,0,E9/C9)","v":0.62170219108660008},{"$f":"IF(E9=0,0,D9/E9)","v":3},{"$f":"IF($K$5=\"All\",SUMPRODUCT((LogDate>=$G$5)*(LogDate<=$I$5)*(LogType=\"Business\")*(LogVehicle=$A9)*(1)),SUMPRODUCT((LogDate>=$G$5)*(LogDate<=$I$5)*(LogType=\"Business\")*(LogClient=$K$5)*(LogVehicle=$A9)*(1)))","v":50},{"$f":"IF($K$5=\"All\",SUMPRODUCT((LogDate>=DATE(YEAR(I$8),MONTH(I$8),1))*(LogDate<=I$8)*(LogVehicle=$A9)*(LogDistance)),SUMPRODUCT((LogDate>=DATE(YEAR(I$8),MONTH(I$8),1))*(LogDate<=I$8)*(LogClient=$K$5)*(LogVehicle=$A9)*(LogDistance)))","v":1873},1859,2977,{"$f":"IF($K$5=\"All\",IF(SUMPRODUCT((LogDate>=DATE(YEAR(I$8),MONTH(I$8),1))*(LogDate<=I$8)*(LogVehicle=$A9)*(LogDistance))=0,0,SUMPRODUCT((LogDate>=DATE(YEAR(I$8),MONTH(I$8),1))*(LogDate<=I$8)*(LogType=\"Business\")*(LogVehicle=$A9)*(LogDistance))/SUMPRODUCT((LogDate>=DATE(YEAR(I$8),MONTH(I$8),1))*(LogDate<=I$8)*(LogVehicle=$A9)*(LogDistance))),IF(SUMPRODUCT((LogDate>=DATE(YEAR(I$8),MONTH(I$8),1))*(LogDate<=I$8)*(LogClient=$K$5)*(LogVehicle=$A9)*(LogDistance))=0,0,SUMPRODUCT((LogDate>=DATE(YEAR(I$8),MONTH(I$8),1))*(LogDate<=I$8)*(LogType=\"Business\")*(LogClient=$K$5)*(LogVehicle=$A9)*(LogDistance))/SUMPRODUCT((LogDate>=DATE(YEAR(I$8),MONTH(I$8),1))*(LogDate<=I$8)*(LogClient=$K$5)*(LogVehicle=$A9)*(LogDistance))))","v":0.72770955686065131},0.6498117267348037,0.53745381256298286,{"$f":"IF($K$5=\"All\",SUMPRODUCT((LogDate>=DATE(YEAR(I$8),MONTH(I$8),1))*(LogDate<=I$8)*(LogType=\"Business\")*(LogVehicle=$A9)*(1)),SUMPRODUCT((LogDate>=DATE(YEAR(I$8),MONTH(I$8),1))*(LogDate<=I$8)*(LogType=\"Business\")*(LogClient=$K$5)*(LogVehicle=$A9)*(1)))","v":17},16,17]
["EXS222WC","Toyota - C Wilson",{"$f":"IF($K$5=\"All\",SUMPRODUCT((LogDate>=$G$5)*(LogDate<=$I$5)*(LogVehicle=$A10)*(LogDistance)),SUMPRODUCT((LogDate>=$G$5)*(LogDate<=$I$5)*(LogClient=$K$5)*(LogVehicle=$A10)*(LogDistance)))","v":5621},{"$f":"IF($K$5=\"All\",SUMPRODUCT((LogDate>=$G$5)*(LogDate<=$I$5)*(LogVehicle=$A10)*(LogCost)),SUMPRODUCT((LogDate>=$G$5)*(LogDate<=$I$5)*(LogClient=$K$5)*(LogVehicle=$A10)*(LogCost)))","v":13671},{"$f":"IF($K$5=\"All\",SUMPRODUCT((LogDate>=$G$5)*(LogDate<=$I$5)*(LogType=\"Business\")*(LogVehicle=$A10)*(LogDistance)),SUMPRODUCT((LogDate>=$G$5)*(LogDate<=$I$5)*(LogType=\"Business\")*(LogClient=$K$5)*(LogVehicle=$A10)*(LogDistance)))","v":4557},{"$f":"IF(C10=0,0,E10/C10)","v":0.8107098381070984},{"$f":"IF(E10=0,0,D10/E10)","v":3},{"$f":"IF($K$5=\"All\",SUMPRODUCT((LogDate>=$G$5)*(LogDate<=$I$5)*(LogType=\"Business\")*(LogVehicle=$A10)*(1)),SUMPRODUCT((LogDate>=$G$5)*(LogDate<=$I$5)*(LogType=\"Business\")*(LogClient=$K$5)*(LogVehicle=$A10)*(1)))","v":50},2059,1341,2221,0.84992714910150557,0.71364653243847875,0.8329581269698334,17,16,17]
["EXS333WC","Ford - Pool Car",{"$f":"IF($K$5=\"All\",SUMPRODUCT((LogDate>=$G$5)*(LogDate<=$I$5)*(LogVehicle=$A11)*(LogDistance)),SUMPRODUCT((LogDate>=$G$5)*(LogDate<=$I$5)*(LogClient=$K$5)*(LogVehicle=$A11)*(LogDistance)))","v":5580},{"$f":"IF($K$5=\"All\",SUMPRODUCT((LogDate>=$G$5)*(LogDate<=$I$5)*(LogVehicle=$A11)*(LogCost)),SUMPRODUCT((LogDate>=$G$5)*(LogDate<=$I$5)*(LogClient=$K$5)*(LogVehicle=$A11)*(LogCost)))","v":13950},{"$f":"IF($K$5=\"All\",SUMPRODUCT((LogDate>=$G$5)*(LogDate<=$I$5)*(LogType=\"Business\")*(LogVehicle=$A11)*(LogDistance)),SUMPRODUCT((LogDate>=$G$5)*(LogDate<=$I$5)*(LogType=\"Business\")*(LogClient=$K$5)*(LogVehicle=$A11)*(LogDistance)))","v":5580},{"$f":"IF(C11=0,0,E11/C11)","v":1},{"$f":"IF(E11=0,0,D11/E11)","v":2.5},{"$f":"IF($K$5=\"All\",SUMPRODUCT((LogDate>=$G$5)*(LogDate<=$I$5)*(LogType=\"Business\")*(LogVehicle=$A11)*(1)),SUMPRODUCT((LogDate>=$G$5)*(LogDate<=$I$5)*(LogType=\"Business\")*(LogClient=$K$5)*(LogVehicle=$A11)*(1)))","v":14},560,3360,1660,1,1,1,2,8,4]

{"sheet":"Form","index":6,"n_rows":6,"n_cols":12,"rows_kept":6,"cut":false,"hidden":true,"merged":[]}
[]
[null,"Vehicle Logbook Form",null,null,null,null,null,null,null,"Vehicle Registration Number:"]
[null,"© www.excel-skills.com",null,null,null,null,null,null,null,null,"Form Number:","TL00001"]
[]
[null,"Travel Date","Travel Time","Odometer Opening","Odometer Closing","Travel Type","Client Code","From","To","Purpose","Driver","Signature"]
[null,{"$f":"TODAY()","v":"2021-01-27"},"08:00:00",31520,31620,"Business","AAA001","Work","Client","Client Consulation","A Smith","XXXXXXXXXXXXXXXXXXXXXXX"]